Workbook

Sheet Cover Page
A1: Appendix - APS+HIVST Costing WorkSheets
A2: Project name | B2: APS+HIVST STUDY
A3: Description | B3: Costing Worksheets
A4: Contacts | B4: Victor Mudhune
B5: KEMRI - CGHR
B6: vmudhune@kemri.go.ke
A8: Research question | B8: What is the incremental costs of offering the option of HIV self-testing within assisted partner services (APS) in Western Kenya?
A10: Approximate guides for amortization | B10: Buildings: Annual space rental rate within the locality
B11: Vehicles: 10 years
B12: Equipment: 5 years, unless life expectancy of equipment otherwise specified
B13: Training: 5 years (to account for likely repeats, change in protocol, staff changeover), unless expected cycle of training expected sooner
B14: Discounting rate: 3%
A16: Perspective | B16: Payer
A18: Service delivery areas | B18: 1. Health Facility - Inlcude facility administrative costs, utilities, testing supplies, personnel time and buildings
B19: 2. Dispensing Pharmacy - include dispensing fee, communication costs
B20: 3. Supporting NGO - Include administrative costs, supervisory visits costs, vehicle, HIVST kits
A22: Assumptions | B22: Approach
A23: Cost Allocation | B23: Microcosting | C23: Time and motion for personnel time, and item identificaiton for HIV testing, used to determine cost per test conducted.
B24: Macrocosting | C24: Facility overhead allocation covers cost of utilities and administration apportioned by floor space, HTS building and cabinets, per unit test conducted in a facility
B26: Bootstrapping | C26: Used to develop random allocation of facility specific costs to estimate averages and confidence intervals for the same
A28: Incremental Costing | B28: Vehicle Cost | C28: Apportioned cost of Vehicle annuitized cost based on number of clients served at pharmacy service point as a proportion of all clients served at the three service points.
B29: HIVST Personnel (Fixed) | C29: Annual cost of driver and coordinator, apportioned by client volumes in the pharmacy vs across all supported sites.
B30: Pharmacy Communication (Fixed) | C30: Overall commuication allocated to pharmacy as a fraction of all pharmacy tests conducted across the 12 pharmacies
B31: HIVST Training | C31: Annuitized cost of training divided by the total number of tests conducted in a year
B32: Supervisory Field Trips | C32: Incurred field trip costs in a year apportioned by client proportions seen at the pharmacy vs across all sites, divided by the total number of tests conducted in the pharmacies
B33: HIVST Personnel (Variable) | C33: Time and motion survey to determine average personnel time in minutes per test, multipied by MoH payroll rate per minute.
B34: HIVST Communication (variable) | C34: Time and motion survey to determine average phone communication time in minutes, multiplies by call rate per minute.
B35: HTS Supplies | C35: Cost of HIVST as per national procurement system (KEMSA), including 21.5% tax and 8% distribution costs.
B36: Pharmacy Dispensing Fee | C36: Fixed charge given to the pharmacy for each HIVST dispensing kit issued.
B37: Facility Overhead Allocation | C37: Facility utility and adminstrative costs apportioned by floor space, including building rate and cabinets all per unit test codnucted at the facility.
B38: FBT Personnel | C38: Time and motion survey to determine average personnel time in minutes per test, multipied by MoH payroll rate per minute.
B39: FBT HTS Supplies | C39: Microcosting to identify items used in HIV testing, multiplied by unit costs
A41: Comparison of activities | B41: APS+HIVST Study

Sheet Summary
B2: APS+HIVST - INCREMENTAL COST PER HIVST TEST
B3: Fixed Costs | C3: Measure | D3: Units | E3: Total Cost | F3: Unit Cost | G3: Percent
B4: Capital Items
B5: Vehicle | C5: Annuitized and apportioned, per test | D5: ='Local Data'!B7 -> 3897 | E5: ='Analysis - NGO Survey'!F17 -> 2456.66227 | F5: =E5/D5 -> 0.6303983245 | G5: =F5/$F$17 -> 0.0702827675 | P5: =124880/60 -> 2081.333333
B6: Support Activities
B7: Support personnel | C7: Apportioned, per unit | D7: ='Local Data'!B7 -> 3897 | E7: ='Analysis - NGO Survey'!F38+'Analysis - NGO Survey'!F42 -> 1127.513789 | F7: =E7/D7 -> 0.2893286603 | G7: =F7/$F$17 -> 0.03225709551
B8: Pharmacy Communication | C8: Annual, per unit | D8: ='Local Data'!B7 -> 3897 | E8: ='Analysis - NGO Survey'!F31 -> 427.5897175 | F8: =E8/D8 -> 0.1097227912 | G8: =F8/$F$17 -> 0.01223293452
B9: Startup HIVST Training | C9: Annuitized, per unit | D9: ='Local Data'!B7 -> 3897 | E9: ='Analysis - NGO Survey'!E10 -> 281.5805112 | F9: =E9/D9 -> 0.07225571239 | G9: =F9/$F$17 -> 0.00805575021
C10: Total | F10: =SUM(F4:F9) -> 1.101705488 | G10: =F10/F17 -> 0.1228285477
B11: Variable Costs | C11: Measure | D11: Units | E11: Unit Cost | F11: Total Cost
B12: Personnel | C12: Minutes per followup | D12: =BootStrappings!O7 -> 43.9565625 | E12: =(('Analysis - NGO Survey'!E40/3)/'Local Data'!B60) -> 0.0603419021 | F12: =D12*E12 -> 2.652422591 | G12: =F12/$F$17 -> 0.295717157
B13: Communication | C13: Minutes per followup | D13: =BootStrappings!AA7 -> 30.554 | E13: ='Local Data'!D29 -> 0.03126325613 | F13: =D13*E13 -> 0.9552175278 | G13: =F13/$F$17 -> 0.1064966844
B14: HTS Supplies | C14: per test | D14: 1 | E14: ='Local Data'!B54 -> 3.41172 | F14: =D14*E14 -> 3.41172 | G14: =F14/$F$17 -> 0.3803708136
B15: Pharmacy Dispensing Fee | C15: per test | D15: 1 | E15: ='Analysis - NGO Survey'!D37 -> 0.8483922966 | F15: =D15*E15 -> 0.8483922966 | G15: =F15/$F$17 -> 0.0945867973
C16: Total | F16: =SUM(F12:F15) -> 7.867752415 | G16: =F16/F17 -> 0.8771714523
B17: TOTAL COST | F17: =F16+F10 -> 8.969457904 | G17: =G10+G16 -> 1
B18: APS+HIVST - COST SAVING (HIV NEGATIVE CASE)
B19: Activity | C19: Measure | D19: Units | E19: Unit Cost | F19: Total Cost
B20: Fixed Costs
B21: Av. Overhead Allocation | C21: Apportioned per test | D21: 1 | E21: =BootStrappings!AX6 -> 0.3819944326 | F21: =D21*E21 -> 0.3819944326 | G21: =F21/$F$27 -> 0.03456646768
B22: Av. HTS Space Allocation | C22: Apportioned per test | D22: =BootStrappings!BI6 -> 0.04222327955 | E22: ='Local Data'!B66 -> 28.61 | F22: =D22*E22 -> 1.208008028 | G22: =F22/$F$27 -> 0.109311987
B23: Variable Costs
B24: Communication | C24: minutes per followup | D24: =BootStrappings!BX7 -> 26.96758621 | E24: ='Local Data'!D29 -> 0.03126325613 | F24: =D24*E24 -> 0.8430945548 | G24: =F24/F27 -> 0.07629116604
B25: Personnel | C25: Minutes per test+Followup | D25: =BootStrappings!AM7+D24 -> 119.5268939 | E25: =E12 -> 0.0603419021 | F25: =D25*E25 -> 7.212480129 | G25: =F25/$F$27 -> 0.6526533898
B26: HTS Supplies | C26: per test | D26: 1 | E26: ='Analysis - Facility Survey'!R21 -> 1.405434375 | F26: =D26*E26 -> 1.405434375 | G26: =F26/$F$27 -> 0.1271769894
B27: TOTAL COST | F27: =SUM(F21:F26) -> 11.05101152 | G27: =SUM(G21:G26) -> 1

Sheet Local Data
A1: Project Information
B2: From | C2: To
A3: Time Period | B3: 2021-03-01 | C3: 2022-04-01
A4: Time Period Considered | B4: 2021-04-21 | C4: 2022-03-22
A6: Study Arm Allocation | B6: Total | C6: Proportion
A7: Intervention | B7: 3897 | C7: =B7/B9 -> 0.6129285939
A8: Control | B8: 2461 | C8: =B8/B9 -> 0.3870714061
B9: =SUM(B7:B8) -> 6358 | C9: =SUM(C7:C8) -> 1
A11: Health Facility | B11: Number Tested | C11: Proportion
A12: Airport Health Centre | B12: 114 | C12: =B12/$B$24 -> 0.02925327175
A13: Kabondo Sub County Hospital | B13: 472 | C13: =B13/$B$24 -> 0.1211188093
A14: Kauma Health Centre | B14: 221 | C14: 0.05671028997
A15: Kowino Dispensary | B15: 195 | C15: 0.05003849115
A16: Nyangiela Sub County Hospital | B16: 316 | C16: 0.08108801642
A17: Ojola Health Centre | B17: 144 | C17: 0.03695150115
A18: Othoro Sub County Hospital | B18: 272 | C18: 0.06979727996
A19: Port Florence Hospital | B19: 214 | C19: 0.05491403644
A20: RDH | B20: 1001 | C20: 0.2568642546
A21: Simba Opepo Dispensary | B21: 142 | C21: 0.03643828586
A22: St Elizabeth Chiga Health Centre | B22: 445 | C22: 0.1141904029
A23: Tala Dispensary | B23: 361 | C23: =B23/$B$24 -> 0.09263536053
B24: =SUM(B12:B23) -> 3897 | C24: =SUM(C12:C23) -> 1
A26: Contextual Information
A27: Phone Service Rates
A28: Service Provider | B28: Peak | C28: Off Peak | D28: Average
A29: Safaricom | B29: =4.87/'Local Data'!B61 -> 0.04131670484 | C29: =2.5/'Local Data'!B61 -> 0.02120980741 | D29: =AVERAGE(B29:C29) -> 0.03126325613
A30: Airtel | B30: =4.5/'Local Data'!B61 -> 0.03817765335 | C30: =2.78/'Local Data'!B61 -> 0.02358530585 | D30: =AVERAGE(B30:C30) -> 0.0308814796
A31: Telkom | B31: =4.3/'Local Data'!B61 -> 0.03648086875 | C31: =2.78/'Local Data'!B61 -> 0.02358530585 | D31: 0.0300330873
A33: MOH Pay Scale
B34: Public Health Worker | F34: Administrator | G34: Doctor
A35: Qualification | B35: Masters | C35: Bachelor | D35: DPH | E35: Cert | F35: Bachelor | G35: Bachelor | H35: Driver
A36: Scale | B36: CPBS07/M | C36: CPBS08/L | D36: CPBS09/K | E36: CPBS10/J | F36: CPBS07/M | G36: CPBS06/N | H36: CPSB14 / E
A37: Basic | B37: 50970 | C37: 44770 | D37: 35270 | E37: 29470 | F37: 50970 | G37: 71370 | H37: 16670
A38: House Allowance | B38: 22000 | C38: 22000 | D38: 12800 | E38: 7500 | F38: 22000 | G38: 25500 | H38: 3730
A39: Commuter Allowance | B39: 4000 | C39: 3000 | D39: 3000 | E39: 3000 | F39: 4000 | G39: 4000 | H39: 3000
A40: Hardship Allowance | B40: 14650 | C40: 12300 | D40: 10900 | E40: 8200 | F40: 14650 | G40: 17100 | H40: 3700
A41: Emergency call All / Health Risk | B41: 3000 | C41: 3000 | D41: 2000 | E41: 2000 | F41: 0 | G41: 30000 | H41: 0
A42: Extraneous | B42: 5000 | C42: 5000 | D42: 5000 | E42: 5000 | F42: 5000 | G42: 30000 | H42: 7000
A43: Medical Risk | B43: 5000 | C43: 5000 | D43: 5000 | E43: 5000 | F43: 5000 | G43: 32500 | H43: 7000
A44: Non-Practice | B44: 0 | C44: 0 | D44: 0 | E44: 0 | F44: 0 | G44: 32000 | H44: 0
A45: TOTAL | B45: =SUM(B37:B44) -> 104620 | C45: 95070 | D45: 73970 | E45: 60170 | F45: 101620 | G45: 242470 | H45: 41100
A46: Daily Subsistence Allowance | B46: 11200 | C46: 11200 | D46: 11200 | E46: 7500 | F46: 11200 | G46: 11200 | H46: 4200
A48: HIV Test Kits Prices
B49: Oral-HIVST | C49: BB-HIVST | D49: Tscreen | E49: Determine | F49: First Response | G49: Most Expensive BB Test | H49: Comment
A50: Cost | B50: =65/25 -> 2.6 | C50: 1.15 | D50: 0.782 | E50: 0.84 | F50: 1 | G50: 4
A51: Applicable taxTax | B51: =B50*21.5% -> 0.559 | C51: 0.24725 | D51: 0.16813 | E51: 0.1806 | F51: 0.215 | G51: 0.86 | H51: 21.5% based on KEMSA, can be sero rated based on procurement terms
A52: TOTAL COST | B52: =SUM(B50:B51) -> 3.159 | C52: 1.39725 | D52: 0.95013 | E52: 1.0206 | F52: 1.215 | G52: 4.86
A53: Distribution Cost | B53: =B52*8% -> 0.25272 | C53: 0.11178 | D53: 0.0760104 | E53: 0.081648 | F53: 0.0972 | G53: 0.3888 | H53: 8% based on KEMSA
A54: TOTAL COST/KIT | B54: =SUM(B52:B53) -> 3.41172 | C54: 1.50903 | D54: 1.0261404 | E54: 1.102248 | F54: 1.3122 | G54: 5.2488
A55: *BB - Blood Based Tests
A56: *Tscreen - considered optional switch
A58: Economic Variables
A59: Variable | B59: Rate | C59: Comment
A60: Minutes of work in a year | B60: =52*5*8*60 -> 124800 | C60: Minutes
A61: Currency Conversion Rate (2021/2022) | B61: 117.87 | C61: KSh per USD
A62: Target Year GDP (2022) | B62: 136 | C62: USD
A63: Asset Discounting Rate | B63: 0.03
A64: Useful life of Training | B64: 5 | C64: Years
A65: Lifetime of Vehicle | B65: 10 | C65: Years
A66: Rental of Floor Space within community | B66: =28.61 -> 28.61 | C66: per sq. m | D66: 8.55to51.28 | E66: Based on commercial property rent value
A67: Cost of Latex Gloves | B67: =750/B61 -> 6.362942224 | C67: Pack of 50s
A68: Cost of Alcohol Swabs | B68: =90/B61 -> 0.7635530669 | C68: pack of 100s
A69: Cost of Sharps Container | B69: =3500/B61 -> 29.69373038 | C69: pack of 500s
A71: Metric Conversions
A72: Variable | B72: Rate | C72: Comments
A73: Estimated Length per pace sq. | B73: =(0.762)^2 -> 0.580644 | C73: metres sq.

Sheet BootStrappings
B2: Bootstrap Exercise to Calculate Mean Time for Partner Tracing and Procedures (HIVST) | R2: Bootstrap Exercise to Calculate Mean Phone Utilization Time (HIVST) | AD2: Bootstrap Exercise to Calculate Mean Provider Utilization Time for Delivered Testing | AP2: Bootstrap Exercise to Calcualte Mean Facility Overhead Allocation | BA2: Bootstrap Exercise to Calcualte Mean HTS Area per Test within Facilities | BM2: Bootstrap Exercise to Calculate Mean Tacing Time (Facility Based Testing)
B5: Data Summary | M5: Final Output | R5: Data Summary | Y5: Final Output | AD5: Data Summary | AK5: Final Output | AP5: Data Summary | AW5: Final Output | BA5: Data Summary | BH5: Final Output | BP5: Data Summary | BW5: Final Output
B6: n | C6: =COUNT(BootStrappings!$C$15:$C$62) -> 48 | N6: Hrs | O6: Minutes | R6: n | S6: =COUNT(BootStrappings!$D$15:$D$62) -> 48 | Z6: Hrs | AA6: Minutes | AD6: n | AE6: =COUNT(BootStrappings!AF32:AF44) -> 13 | AL6: Hrs | AM6: Minutes | AP6: n | AQ6: =COUNT(AQ30:AQ41) -> 12 | AW6: mean | AX6: =AVERAGE($AU$14:$AU$1013) -> 0.3819944326 | BA6: n | BB6: =COUNT(BB30:BB41) -> 12 | BH6: mean | BI6: =AVERAGE($BF$14:$BF$10133) -> 0.04222327955 | BP6: n | BQ6: =COUNT(BN14:BN42) -> 29 | BX6: Minutes
B7: mean | C7: =AVERAGE(BootStrappings!$C$15:$C$62) -> 0.7361111111 | M7: mean | N7: =AVERAGE($K$14:$K$1013) -> 0.732609375 | O7: =N7*60 -> 43.9565625 | R7: mean | S7: =AVERAGE(BootStrappings!$D$15:$D$62) -> 0.5118055556 | Y7: mean | Z7: =AVERAGE($W$14:$W$1013) -> 0.5092333333 | AA7: =Z7*60 -> 30.554 | AD7: mean | AE7: =AVERAGE(BootStrappings!AF32:AF44) -> 1.542307692 | AK7: mean | AL7: =AVERAGE($AI$14:$AI$1013) -> 1.542655128 | AM7: =BootStrappings!AL7*60 -> 92.55930769 | AP7: mean | AQ7: =AVERAGE(AQ30:AQ41) -> 1.00445439 | AW7: Standard Deviation | AX7: =STDEV($AU$14:$AU$1013) -> 0.1448654248 | BA7: mean | BB7: =AVERAGE(BB30:BB41) -> 0.04122563727 | BH7: Standard Deviation | BI7: =STDEV($BF$14:$BF$10133) -> 0.01740106645 | BP7: mean | BQ7: =AVERAGE(BN14:BN42) -> 26.93103448 | BW7: mean | BX7: =AVERAGE($BU$14:$BU$1013) -> 26.96758621
B8: standard deviation | C8: =STDEV(BootStrappings!$C$15:$C$62) -> 0.6853182841 | M8: Standard Deviation | N8: =STDEV($K$14:$K$1013) -> 0.09837090837 | O8: 5.902254502 | R8: standard deviation | S8: =STDEV(BootStrappings!$D$15:$D$62) -> 0.4039983137 | Y8: Standard Deviation | Z8: =STDEV($W$14:$W$1013) -> 0.05854856766 | AA8: 3.51291406 | AD8: standard deviation | AE8: =STDEV(BootStrappings!AF32:AF44) -> 1.003711063 | AK8: Standard Deviation | AL8: =STDEV($AI$14:$AI$1013) -> 0.2702772064 | AM8: =BootStrappings!AL8*60 -> 16.21663238 | AP8: standard deviation | AQ8: =STDEV(AQ30:AQ41) -> 1.474106285 | AW8: Median | AX8: =MEDIAN($AU$14:$AU$1013) -> 0.3690470953 | BA8: standard deviation | BB8: =STDEV(BB30:BB41) -> 0.06332379511 | BH8: Median | BI8: =MEDIAN($BF$14:$BF$10133) -> 0.04027706504 | BP8: standard deviation | BQ8: =STDEV(BN14:BN42) -> 17.18165765 | BW8: Standard Deviation | BX8: =STDEV($BU$14:$BU$1013) -> 3.071565118
B9: standard error | C9: =C6/(SQRT(C8)) -> 57.98225185 | M9: Median | N9: =MEDIAN($K$14:$K$1013) -> 0.7286458333 | O9: 43.71875 | R9: standard error | S9: =S6/(SQRT(S8)) -> 75.51817067 | Y9: Median | Z9: =MEDIAN($W$14:$W$1013) -> 0.5074652778 | AA9: 30.44791667 | AD9: standard error | AE9: =AE6/(SQRT(AE8)) -> 12.97594502 | AK9: Median | AL9: =MEDIAN($AI$14:$AI$1013) -> 1.544230769 | AM9: =BootStrappings!AL9*60 -> 92.65384615 | AP9: standard error | AQ9: =AQ6/(SQRT(AQ8)) -> 9.88363838 | AW9: 2.5th percentile | AX9: =PERCENTILE($AU$14:$AU$1013,0.025) -> 0.1557493294 | BA9: standard error | BB9: =BB6/(SQRT(BB8)) -> 47.68675589 | BH9: 2.5th percentile | BI9: =PERCENTILE($BF$14:$BF$10133,0.025) -> 0.01578523332 | BP9: standard error | BQ9: =BQ6/(SQRT(BQ8)) -> 6.996252373 | BW9: Median | BX9: =MEDIAN($BU$14:$BU$1013) -> 26.79310345
B10: skew | C10: =SKEW(BootStrappings!$C$15:$C$62) -> 2.395826855 | M10: 2.5th percentile | N10: =PERCENTILE($K$14:$K$1013,0.025) -> 0.5583246528 | O10: 33.49947917 | R10: skew | S10: =SKEW(BootStrappings!$D$15:$D$62) -> 2.014055765 | Y10: 2.5th percentile | Z10: =PERCENTILE($W$14:$W$1013,0.025) -> 0.3982552083 | AA10: 23.8953125 | AD10: skew | AE10: =SKEW(BootStrappings!AF32:AF44) -> 0.1331777202 | AK10: 2.5th percentile | AL10: =PERCENTILE($AI$14:$AI$1013,0.025) -> 1.015384615 | AM10: =BootStrappings!AL10*60 -> 60.92307692 | AP10: skew | AQ10: =SKEW(AQ30:AQ41) -> 2.638374913 | AW10: 97.5th percentile | AX10: =PERCENTILE($AU$14:$AU$1013,0.975) -> 0.7125759796 | BA10: skew | BB10: =SKEW(BB30:BB41) -> 2.834043639 | BH10: 97.5th percentile | BI10: =PERCENTILE($BF$14:$BF$10133,0.975) -> 0.08018455418 | BP10: skew | BQ10: =SKEW(BN14:BN42) -> 2.327444562 | BW10: 2.5th percentile | BX10: =PERCENTILE($BU$14:$BU$1013,0.025) -> 21.93017241
M11: 97.5th percentile | N11: =PERCENTILE($K$14:$K$1013,0.975) -> 0.9427951389 | O11: 56.56770833 | Y11: 97.5th percentile | Z11: =PERCENTILE($W$14:$W$1013,0.975) -> 0.6260677083 | AA11: 37.5640625 | AK11: 97.5th percentile | AL11: =PERCENTILE($AI$14:$AI$1013,0.975) -> 2.064358974 | AM11: =BootStrappings!AL11*60 -> 123.8615385 | AW11: min | AX11: =MIN($AU$14:$AU$1013) -> 0.100314527 | BH11: min | BI11: =MIN($BF$14:$BF$10133) -> 0.01077894 | BW11: 97.5th percentile | BX11: =PERCENTILE($BU$14:$BU$1013,0.975) -> 33.82758621
B12: Allocation Table | F12: Random Sequence | J12: Bootstrap means: | M12: min | N12: =MIN($K$14:$K$1013) -> 0.4673611111 | O12: 28.04166667 | R12: Random Sequence | V12: Bootstrap means: | Y12: min | Z12: =MIN($W$14:$W$1013) -> 0.3621527778 | AA12: 21.72916667 | AD12: Random Sequence | AH12: Bootstrap means: | AK12: min | AL12: =MIN($AI$14:$AI$1013) -> 0.6 | AM12: =BootStrappings!AL12*60 -> 36 | AP12: Random Sequence | AT12: Bootrap Overheads: | AW12: max | AX12: =MAX($AU$14:$AU$1013) -> 1.050387651 | BA12: Random Sequence | BE12: Bootrap Overheads: | BH12: max | BI12: =MAX($BF$14:$BF$10133) -> 0.1182215994 | BL12: Allocation Table | BP12: Random Sequence | BT12: Bootstrap means: | BW12: min | BX12: =MIN($BU$14:$BU$1013) -> 19.44827586
B13: Duration Summary | C13: Tracing | D13: Phone Calls | E13: =COUNTIF('Raw Time Motion - HIVST'!$B$8:$AW$8,"HIVST") -> 11 | F13: Client | G13: Random | H13: Time | J13: Bootstrap replication: | K13: Mean Time | M13: max | N13: =MAX($K$14:$K$1013) -> 1.091666667 | O13: 65.5 | R13: Client | S13: Random | T13: Time | V13: Bootstrap replication: | W13: Mean Time | Y13: max | Z13: =MAX($W$14:$W$1013) -> 0.7131944444 | AA13: 42.79166667 | AD13: Client | AE13: Random | AF13: Time | AH13: Bootstrap replication: | AI13: Mean Time | AK13: max | AL13: =MAX($AI$14:$AI$1013) -> 2.532051282 | AM13: =BootStrappings!AL13*60 -> 151.9230769 | AP13: Facility | AQ13: Random | AR13: Overhead/Test | AT13: Bootrstrap replication | AU13: Average OH | BA13: Facility | BB13: Random | BC13: Space/Test | BE13: Bootrstrap replication | BF13: Average OH | BL13: Client | BM13: Tracing Time (hrs) | BN13: Tracing Time (mins) | BP13: Client | BQ13: Random | BR13: Time | BT13: Bootstrap replication: | BU13: Mean Time | BW13: max | BX13: =MAX($BU$14:$BU$1013) -> 39.55172414
B14: Client | C14: Duration (Hours) | D14: Duration (Hours) | E14: =COUNTIF('Raw Time Motion - HIVST'!$B$8:$AW$8,"Facility Based") -> 29 | F14: 1 | G14: =INT(RAND()*(48)+1) -> 14 | H14: =VLOOKUP(G14,BootStrappings!$B$15:$C$62,2,FALSE) -> 0.2 | J14: 1 | K14: 0.6666666667 | R14: 1 | S14: =INT(RAND()*(48)+1) -> 40 | T14: =VLOOKUP(S14,BootStrappings!$B$15:$D$62,3,FALSE) -> 0.2 | V14: 1 | W14: 0.4388888889 | AD14: 1 | AE14: =INT(RAND()*(13)+1) -> 4 | AF14: =VLOOKUP(AE14,BootStrappings!$AD$32:$AF$44,3,FALSE) -> 2.666666667 | AH14: 1 | AI14: 1.334615385 | AP14: 1 | AQ14: =INT(RAND()*(12)+1) -> 11 | AR14: =VLOOKUP(AQ14,BootStrappings!$AP$30:$AQ$41,2,FALSE) -> 0.4199200488 | AT14: 1 | AU14: 0.2484793477 | BA14: 1 | BB14: =INT(RAND()*(12)+1) -> 1 | BC14: =VLOOKUP(BB14,$BA$30:$BB$41,2,FALSE) -> 0.00972277294 | BE14: 1 | BF14: 0.05577964326 | BL14: 1 | BM14: 0.5 | BN14: =BM14*60 -> 30 | BP14: 1 | BQ14: =INT(RAND()*(29)+1) -> 4 | BR14: =VLOOKUP(BQ14,$BL$14:$BN$42,3,FALSE) -> 35 | BT14: 1 | BU14: 26.4137931
B15: 1 | C15: ='Raw Time Motion - HIVST'!B34 -> 0.5 | D15: 0.5 | E15: =COUNTIF('Raw Time Motion - HIVST'!$B$8:$AW$8,".") -> 8 | F15: 2 | G15: 38 | H15: =VLOOKUP(G15,BootStrappings!$B$15:$C$62,2,FALSE) -> 0.75 | J15: 2 | K15: 0.6694444444 | R15: 2 | S15: 48 | T15: =VLOOKUP(S15,BootStrappings!$B$15:$D$62,3,FALSE) -> 0.6666666667 | V15: 2 | W15: 0.4850694444 | AD15: 2 | AE15: 3 | AF15: =VLOOKUP(AE15,BootStrappings!$AD$32:$AF$44,3,FALSE) -> 0.3 | AH15: 2 | AI15: 1.357692308 | AP15: 2 | AQ15: =INT(RAND()*(12)+1) -> 9 | AR15: =VLOOKUP(AQ15,BootStrappings!$AP$30:$AQ$41,2,FALSE) -> 0.2344113402 | AT15: 2 | AU15: 0.3347098073 | BA15: 2 | BB15: =INT(RAND()*(12)+1) -> 2 | BC15: =VLOOKUP(BB15,$BA$30:$BB$41,2,FALSE) -> 0.006430166113 | BE15: 2 | BF15: 0.01797465796 | BL15: 2 | BM15: 1.283333333 | BN15: =BM15*60 -> 77 | BP15: 2 | BQ15: =INT(RAND()*(29)+1) -> 10 | BR15: =VLOOKUP(BQ15,$BL$14:$BN$42,3,FALSE) -> 28 | BT15: 2 | BU15: 27.75862069
B16: 2 | C16: ='Raw Time Motion - HIVST'!C34 -> 1.283333333 | D16: 1.283333333 | F16: 3 | G16: 3 | H16: =VLOOKUP(G16,BootStrappings!$B$15:$C$62,2,FALSE) -> 0.4833333333 | J16: 3 | K16: 0.7881944444 | R16: 3 | S16: 41 | T16: =VLOOKUP(S16,BootStrappings!$B$15:$D$62,3,FALSE) -> 0.3333333333 | V16: 3 | W16: 0.5020833333 | AD16: 3 | AE16: 2 | AF16: =VLOOKUP(AE16,BootStrappings!$AD$32:$AF$44,3,FALSE) -> 1.5 | AH16: 3 | AI16: 1.423076923 | AP16: 3 | AQ16: 11 | AR16: =VLOOKUP(AQ16,BootStrappings!$AP$30:$AQ$41,2,FALSE) -> 0.4199200488 | AT16: 3 | AU16: 0.2239362607 | BA16: 3 | BB16: 8 | BC16: 0.06147995294 | BE16: 3 | BF16: 0.03702599425 | BL16: 3 | BM16: 0.3333333333 | BN16: 20 | BP16: 3 | BQ16: 26 | BR16: 31 | BT16: 3 | BU16: 30.55172414
B17: 3 | C17: ='Raw Time Motion - HIVST'!D34 -> 0.4833333333 | D17: 0.4833333333 | F17: 4 | G17: 8 | H17: =VLOOKUP(G17,BootStrappings!$B$15:$C$62,2,FALSE) -> 0.4833333333 | J17: 4 | K17: 0.8909722222 | R17: 4 | S17: 17 | T17: =VLOOKUP(S17,BootStrappings!$B$15:$D$62,3,FALSE) -> 0.4666666667 | V17: 4 | W17: 0.5180555556 | AD17: 4 | AE17: 1 | AF17: =VLOOKUP(AE17,BootStrappings!$AD$32:$AF$44,3,FALSE) -> 1.833333333 | AH17: 4 | AI17: 1.588461538 | AP17: 4 | AQ17: 6 | AR17: =VLOOKUP(AQ17,BootStrappings!$AP$30:$AQ$41,2,FALSE) -> 0.1592578364 | AT17: 4 | AU17: 0.4242190602 | BA17: 4 | BB17: 3 | BC17: 0.0215692422 | BE17: 4 | BF17: 0.03822029381 | BL17: 4 | BM17: 0.5833333333 | BN17: 35 | BP17: 4 | BQ17: 20 | BR17: 47 | BT17: 4 | BU17: 26.4137931
B18: 4 | C18: ='Raw Time Motion - HIVST'!E34 -> 0.3333333333 | D18: 0.3333333333 | F18: 5 | G18: 28 | H18: =VLOOKUP(G18,BootStrappings!$B$15:$C$62,2,FALSE) -> 0.4333333333 | J18: 5 | K18: 0.7152777778 | R18: 5 | S18: 47 | T18: =VLOOKUP(S18,BootStrappings!$B$15:$D$62,3,FALSE) -> 0.25 | V18: 5 | W18: 0.4263888889 | AD18: 5 | AE18: 6 | AF18: =VLOOKUP(AE18,BootStrappings!$AD$32:$AF$44,3,FALSE) -> 2.833333333 | AH18: 5 | AI18: 1.623076923 | AP18: 5 | AQ18: 2 | AR18: =VLOOKUP(AQ18,BootStrappings!$AP$30:$AQ$41,2,FALSE) -> 0.2767217185 | AT18: 5 | AU18: 0.2271537927 | BA18: 5 | BB18: 12 | BC18: 0.0228240566 | BE18: 5 | BF18: 0.03944638574 | BL18: 5 | BM18: 0.25 | BN18: 15 | BP18: 5 | BQ18: 19 | BR18: 23 | BT18: 5 | BU18: 24.82758621
B19: 5 | C19: ='Raw Time Motion - HIVST'!F34 -> 0.5833333333 | D19: 0.5833333333 | F19: 6 | G19: 31 | H19: =VLOOKUP(G19,BootStrappings!$B$15:$C$62,2,FALSE) -> 2.866666667 | J19: 6 | K19: 0.7756944444 | R19: 6 | S19: 13 | T19: =VLOOKUP(S19,BootStrappings!$B$15:$D$62,3,FALSE) -> 0.2166666667 | V19: 6 | W19: 0.4875 | AD19: 6 | AE19: 4 | AF19: =VLOOKUP(AE19,BootStrappings!$AD$32:$AF$44,3,FALSE) -> 2.666666667 | AH19: 6 | AI19: 1.448717949 | AP19: 6 | AQ19: 1 | AR19: =VLOOKUP(AQ19,BootStrappings!$AP$30:$AQ$41,2,FALSE) -> 0.232079021 | AT19: 6 | AU19: 0.4320912692 | BA19: 6 | BB19: 8 | BC19: 0.06147995294 | BE19: 6 | BF19: 0.05971043086 | BL19: 6 | BM19: 0.2 | BN19: 12 | BP19: 6 | BQ19: 8 | BR19: 20 | BT19: 6 | BU19: 27.72413793
B20: 6 | C20: ='Raw Time Motion - HIVST'!G34 -> 0.25 | D20: 0.25 | F20: 7 | G20: 38 | H20: =VLOOKUP(G20,BootStrappings!$B$15:$C$62,2,FALSE) -> 0.75 | J20: 7 | K20: 0.8020833333 | R20: 7 | S20: 1 | T20: =VLOOKUP(S20,BootStrappings!$B$15:$D$62,3,FALSE) -> 0.5 | V20: 7 | W20: 0.4958333333 | AD20: 7 | AE20: 9 | AF20: =VLOOKUP(AE20,BootStrappings!$AD$32:$AF$44,3,FALSE) -> 0.3 | AH20: 7 | AI20: 1.235897436 | AP20: 7 | AQ20: 2 | AR20: =VLOOKUP(AQ20,BootStrappings!$AP$30:$AQ$41,2,FALSE) -> 0.2767217185 | AT20: 7 | AU20: 0.3347683528 | BA20: 7 | BB20: 2 | BC20: 0.006430166113 | BE20: 7 | BF20: 0.05554791839 | BL20: 7 | BM20: 0.4833333333 | BN20: 29 | BP20: 7 | BQ20: 14 | BR20: 28 | BT20: 7 | BU20: 30.93103448
B21: 7 | C21: ='Raw Time Motion - HIVST'!H34 -> 0.2 | D21: 0.2 | F21: 8 | G21: 18 | H21: =VLOOKUP(G21,BootStrappings!$B$15:$C$62,2,FALSE) -> 1.25 | J21: 8 | K21: 0.8666666667 | R21: 8 | S21: 42 | T21: =VLOOKUP(S21,BootStrappings!$B$15:$D$62,3,FALSE) -> 0.45 | V21: 8 | W21: 0.4243055556 | AD21: 8 | AE21: 9 | AF21: =VLOOKUP(AE21,BootStrappings!$AD$32:$AF$44,3,FALSE) -> 0.3 | AH21: 8 | AI21: 1.762820513 | AP21: 8 | AQ21: 6 | AR21: =VLOOKUP(AQ21,BootStrappings!$AP$30:$AQ$41,2,FALSE) -> 0.1592578364 | AT21: 8 | AU21: 0.1792079713 | BA21: 8 | BB21: 12 | BC21: 0.0228240566 | BE21: 8 | BF21: 0.08903940425 | BL21: 8 | BM21: 0.3333333333 | BN21: 20 | BP21: 8 | BQ21: 17 | BR21: 21 | BT21: 8 | BU21: 28.10344828
B22: 8 | C22: ='Raw Time Motion - HIVST'!I34 -> 0.4833333333 | D22: 0.4833333333 | F22: 9 | G22: 22 | H22: =VLOOKUP(G22,BootStrappings!$B$15:$C$62,2,FALSE) -> 0.3166666667 | J22: 9 | K22: 0.8298611111 | R22: 9 | S22: 21 | T22: =VLOOKUP(S22,BootStrappings!$B$15:$D$62,3,FALSE) -> 0.08333333333 | V22: 9 | W22: 0.4430555556 | AD22: 9 | AE22: 9 | AF22: =VLOOKUP(AE22,BootStrappings!$AD$32:$AF$44,3,FALSE) -> 0.3 | AH22: 9 | AI22: 1.448717949 | AP22: 9 | AQ22: 9 | AR22: =VLOOKUP(AQ22,BootStrappings!$AP$30:$AQ$41,2,FALSE) -> 0.2344113402 | AT22: 9 | AU22: 0.2870216213 | BA22: 9 | BB22: 9 | BC22: 0.01021910731 | BE22: 9 | BF22: 0.0395354348 | BL22: 9 | BM22: 0.5 | BN22: 30 | BP22: 9 | BQ22: 15 | BR22: 17 | BT22: 9 | BU22: 23.86206897
B23: 9 | C23: ='Raw Time Motion - HIVST'!J34 -> 0.3333333333 | D23: 0.3333333333 | F23: 10 | G23: 46 | H23: =VLOOKUP(G23,BootStrappings!$B$15:$C$62,2,FALSE) -> 0.3 | J23: 10 | K23: 0.6319444444 | R23: 10 | S23: 37 | T23: =VLOOKUP(S23,BootStrappings!$B$15:$D$62,3,FALSE) -> 0.2666666667 | V23: 10 | W23: 0.5354166667 | AD23: 10 | AE23: 13 | AF23: =VLOOKUP(AE23,BootStrappings!$AD$32:$AF$44,3,FALSE) -> 0.4666666667 | AH23: 10 | AI23: 1.447435897 | AP23: 10 | AQ23: 8 | AR23: =VLOOKUP(AQ23,BootStrappings!$AP$30:$AQ$41,2,FALSE) -> 1.6430446 | AT23: 10 | AU23: 0.3646967873 | BA23: 10 | BB23: 1 | BC23: 0.00972277294 | BE23: 10 | BF23: 0.03747230493 | BL23: 10 | BM23: 0.4666666667 | BN23: 28 | BP23: 10 | BQ23: 13 | BR23: 19 | BT23: 10 | BU23: 26
B24: 10 | C24: ='Raw Time Motion - HIVST'!K34 -> 0.5 | D24: 0.5 | F24: 11 | G24: 16 | H24: =VLOOKUP(G24,BootStrappings!$B$15:$C$62,2,FALSE) -> 1.5 | J24: 11 | K24: 0.6465277778 | R24: 11 | S24: 17 | T24: =VLOOKUP(S24,BootStrappings!$B$15:$D$62,3,FALSE) -> 0.4666666667 | V24: 11 | W24: 0.4472222222 | AD24: 11 | AE24: 4 | AF24: =VLOOKUP(AE24,BootStrappings!$AD$32:$AF$44,3,FALSE) -> 2.666666667 | AH24: 11 | AI24: 1.528205128 | AP24: 11 | AQ24: 3 | AR24: =VLOOKUP(AQ24,BootStrappings!$AP$30:$AQ$41,2,FALSE) -> 0.4554009951 | AT24: 11 | AU24: 0.4072718619 | BA24: 11 | BB24: 5 | BC24: 0.01137124113 | BE24: 11 | BF24: 0.02978113497 | BL24: 11 | BM24: 0.2166666667 | BN24: 13 | BP24: 11 | BQ24: 20 | BR24: 47 | BT24: 11 | BU24: 26.10344828
B25: 11 | C25: ='Raw Time Motion - HIVST'!L34 -> 0.4666666667 | D25: 0.4666666667 | F25: 12 | G25: 48 | H25: =VLOOKUP(G25,BootStrappings!$B$15:$C$62,2,FALSE) -> 0.6666666667 | J25: 12 | K25: 0.8104166667 | R25: 12 | S25: 3 | T25: =VLOOKUP(S25,BootStrappings!$B$15:$D$62,3,FALSE) -> 0.4833333333 | V25: 12 | W25: 0.6253472222 | AD25: 12 | AE25: 8 | AF25: =VLOOKUP(AE25,BootStrappings!$AD$32:$AF$44,3,FALSE) -> 1.366666667 | AH25: 12 | AI25: 1.338461538 | AP25: 12 | AQ25: 3 | AR25: =VLOOKUP(AQ25,BootStrappings!$AP$30:$AQ$41,2,FALSE) -> 0.4554009951 | AT25: 12 | AU25: 0.2985063743 | BA25: 12 | BB25: 8 | BC25: =VLOOKUP(BB25,$BA$30:$BB$41,2,FALSE) -> 0.06147995294 | BE25: 12 | BF25: 0.02909964803 | BL25: 12 | BM25: 0.2 | BN25: 12 | BP25: 12 | BQ25: 14 | BR25: 28 | BT25: 12 | BU25: 27.27586207
B26: 12 | C26: ='Raw Time Motion - HIVST'!M34 -> 3.616666667 | D26: 1.583333333 | F26: 13 | G26: 48 | H26: =VLOOKUP(G26,BootStrappings!$B$15:$C$62,2,FALSE) -> 0.6666666667 | J26: 13 | K26: 0.7201388889 | R26: 13 | S26: 13 | T26: =VLOOKUP(S26,BootStrappings!$B$15:$D$62,3,FALSE) -> 0.2166666667 | V26: 13 | W26: 0.6246527778 | AD26: 13 | AE26: 2 | AF26: =VLOOKUP(AE26,BootStrappings!$AD$32:$AF$44,3,FALSE) -> 1.5 | AH26: 13 | AI26: 1.642307692 | AQ26: Average | AR26: =AVERAGE(AR14:AR25) -> 0.4138789583 | AT26: 13 | AU26: 0.3903202398 | BB26: Average | BC26: =AVERAGE(BC14:BC25) -> 0.02546278673 | BE26: 13 | BF26: 0.04175622773 | BL26: 13 | BM26: 0.3166666667 | BN26: 19 | BP26: 13 | BQ26: 13 | BR26: 19 | BT26: 13 | BU26: 30.20689655
B27: 13 | C27: ='Raw Time Motion - HIVST'!N34 -> 0.2166666667 | D27: 0.2166666667 | F27: 14 | G27: 21 | H27: =VLOOKUP(G27,BootStrappings!$B$15:$C$62,2,FALSE) -> 0.9166666667 | J27: 14 | K27: 0.853125 | R27: 14 | S27: 1 | T27: =VLOOKUP(S27,BootStrappings!$B$15:$D$62,3,FALSE) -> 0.5 | V27: 14 | W27: 0.5836805556 | AH27: 14 | AI27: 1.632051282 | AT27: 14 | AU27: 0.2766429515 | BE27: 14 | BF27: 0.04922580925 | BL27: 14 | BM27: 0.4666666667 | BN27: 28 | BP27: 14 | BQ27: 7 | BR27: 29 | BT27: 14 | BU27: 27.34482759
B28: 14 | C28: ='Raw Time Motion - HIVST'!O34 -> 0.2 | D28: 0.2 | F28: 15 | G28: 32 | H28: =VLOOKUP(G28,BootStrappings!$B$15:$C$62,2,FALSE) -> 0.3833333333 | J28: 15 | K28: 0.6302083333 | R28: 15 | S28: 13 | T28: =VLOOKUP(S28,BootStrappings!$B$15:$D$62,3,FALSE) -> 0.2166666667 | V28: 15 | W28: 0.5704861111 | AE28: Average | AF28: =AVERAGE(AF14:AF26) -> 1.438461538 | AH28: 15 | AI28: 1.626923077 | AP28: Allocation Table | AT28: 15 | AU28: 0.2206864282 | BA28: Allocation Table | BE28: 15 | BF28: 0.02840012827 | BL28: 15 | BM28: 0.2833333333 | BN28: 17 | BP28: 15 | BQ28: 5 | BR28: 15 | BT28: 15 | BU28: 25.51724138
B29: 15 | C29: ='Raw Time Motion - HIVST'!P34 -> 0.9833333333 | D29: 0.9833333333 | F29: 16 | G29: 12 | H29: =VLOOKUP(G29,BootStrappings!$B$15:$C$62,2,FALSE) -> 3.616666667 | J29: 16 | K29: 0.5777777778 | R29: 16 | S29: 9 | T29: =VLOOKUP(S29,BootStrappings!$B$15:$D$62,3,FALSE) -> 0.3333333333 | V29: 16 | W29: 0.5135416667 | AH29: 16 | AI29: 1.776923077 | AP29: Facility | AQ29: Overhead/Test | AT29: 16 | AU29: 0.4288599854 | BA29: Facility | BB29: Area/Test | BE29: 16 | BF29: 0.07446967267 | BL29: 16 | BM29: 0.5333333333 | BN29: 32 | BP29: 16 | BQ29: 22 | BR29: 12 | BT29: 16 | BU29: 24.96551724
B30: 16 | C30: ='Raw Time Motion - HIVST'!Q34 -> 1.5 | D30: 1.5 | F30: 17 | G30: 39 | H30: =VLOOKUP(G30,BootStrappings!$B$15:$C$62,2,FALSE) -> 0.2166666667 | J30: 17 | K30: 0.7743055556 | R30: 17 | S30: 6 | T30: =VLOOKUP(S30,BootStrappings!$B$15:$D$62,3,FALSE) -> 0.25 | V30: 17 | W30: 0.4763888889 | AD30: Allocation Table | AH30: 17 | AI30: 1.643589744 | AP30: 1 | AQ30: ='Analysis - Facility Survey'!C12 -> 0.232079021 | AT30: 17 | AU30: 0.1834181788 | BA30: 1 | BB30: ='Analysis - Facility Survey'!C5*'Local Data'!B73/'Analysis - Facility Survey'!C11 -> 0.00972277294 | BE30: 17 | BF30: 0.0805585133 | BL30: 17 | BM30: 0.35 | BN30: 21 | BP30: 17 | BQ30: 25 | BR30: 32 | BT30: 17 | BU30: 30.55172414
B31: 17 | C31: ='Raw Time Motion - HIVST'!R34 -> 1.55 | D31: 0.4666666667 | F31: 18 | G31: 46 | H31: =VLOOKUP(G31,BootStrappings!$B$15:$C$62,2,FALSE) -> 0.3 | J31: 18 | K31: 0.7243055556 | R31: 18 | S31: 41 | T31: =VLOOKUP(S31,BootStrappings!$B$15:$D$62,3,FALSE) -> 0.3333333333 | V31: 18 | W31: 0.5642361111 | AD31: Client | AE31: Duration (Minutes) | AF31: Duration (Hours) | AH31: 18 | AI31: 1.203846154 | AP31: 2 | AQ31: ='Analysis - Facility Survey'!D12 -> 0.2767217185 | AT31: 18 | AU31: 0.2796831391 | BA31: 2 | BB31: ='Analysis - Facility Survey'!D5*'Local Data'!B73/'Analysis - Facility Survey'!D11 -> 0.006430166113 | BE31: 18 | BF31: 0.02860600117 | BL31: 18 | BM31: 1.416666667 | BN31: 85 | BP31: 18 | BQ31: 5 | BR31: 15 | BT31: 18 | BU31: 36.48275862
B32: 18 | C32: ='Raw Time Motion - HIVST'!S34 -> 1.25 | D32: 0.2166666667 | F32: 19 | G32: 7 | H32: =VLOOKUP(G32,BootStrappings!$B$15:$C$62,2,FALSE) -> 0.2 | J32: 19 | K32: 0.6777777778 | R32: 19 | S32: 37 | T32: =VLOOKUP(S32,BootStrappings!$B$15:$D$62,3,FALSE) -> 0.2666666667 | V32: 19 | W32: 0.5107638889 | AD32: 1 | AE32: ='Raw Time Motion - PDT'!B45*1440 -> 110 | AF32: =AE32/60 -> 1.833333333 | AH32: 19 | AI32: 1.334615385 | AP32: 3 | AQ32: ='Analysis - Facility Survey'!E12 -> 0.4554009951 | AT32: 19 | AU32: 0.3543002663 | BA32: 3 | BB32: ='Analysis - Facility Survey'!E5*'Local Data'!B73/'Analysis - Facility Survey'!E11 -> 0.0215692422 | BE32: 19 | BF32: 0.07533160742 | BL32: 19 | BM32: 0.3833333333 | BN32: 23 | BP32: 19 | BQ32: 5 | BR32: 15 | BT32: 19 | BU32: 24.24137931
B33: 19 | C33: ='Raw Time Motion - HIVST'!T34 -> 1.116666667 | D33: 0.2833333333 | F33: 20 | G33: 25 | H33: =VLOOKUP(G33,BootStrappings!$B$15:$C$62,2,FALSE) -> 0.2833333333 | J33: 20 | K33: 0.6347222222 | R33: 20 | S33: 16 | T33: =VLOOKUP(S33,BootStrappings!$B$15:$D$62,3,FALSE) -> 1.5 | V33: 20 | W33: 0.453125 | AD33: 2 | AE33: ='Raw Time Motion - PDT'!C45*1440 -> 90 | AF33: 1.5 | AH33: 20 | AI33: 1.614102564 | AP33: 4 | AQ33: ='Analysis - Facility Survey'!F12 -> 1.990886387 | AT33: 20 | AU33: 0.4019835679 | BA33: 4 | BB33: ='Analysis - Facility Survey'!F5*'Local Data'!B73/'Analysis - Facility Survey'!F11 -> 0.0733224534 | BE33: 20 | BF33: 0.05785489889 | BL33: 20 | BM33: 0.7833333333 | BN33: 47 | BP33: 20 | BQ33: 24 | BR33: 27 | BT33: 20 | BU33: 25.03448276
B34: 20 | C34: ='Raw Time Motion - HIVST'!U34 -> 1.383333333 | D34: 0.3333333333 | F34: 21 | G34: 36 | H34: =VLOOKUP(G34,BootStrappings!$B$15:$C$62,2,FALSE) -> 0.6166666667 | J34: 21 | K34: 0.8194444444 | R34: 21 | S34: 29 | T34: =VLOOKUP(S34,BootStrappings!$B$15:$D$62,3,FALSE) -> 0.35 | V34: 21 | W34: 0.5253472222 | AD34: 3 | AE34: ='Raw Time Motion - PDT'!D45*1440 -> 18 | AF34: 0.3 | AH34: 21 | AI34: 1.335897436 | AP34: 5 | AQ34: ='Analysis - Facility Survey'!G12 -> 0.2331808944 | AT34: 21 | AU34: 0.3766914153 | BA34: 5 | BB34: ='Analysis - Facility Survey'!G5*'Local Data'!B73/'Analysis - Facility Survey'!G11 -> 0.01137124113 | BE34: 21 | BF34: 0.04142729355 | BL34: 21 | BM34: 0.2166666667 | BN34: 13 | BP34: 21 | BQ34: 18 | BR34: 85 | BT34: 21 | BU34: 23.93103448
B35: 21 | C35: ='Raw Time Motion - HIVST'!V34 -> 0.9166666667 | D35: 0.08333333333 | F35: 22 | G35: 1 | H35: =VLOOKUP(G35,BootStrappings!$B$15:$C$62,2,FALSE) -> 0.5 | J35: 22 | K35: 0.8083333333 | R35: 22 | S35: 20 | T35: =VLOOKUP(S35,BootStrappings!$B$15:$D$62,3,FALSE) -> 0.3333333333 | V35: 22 | W35: 0.4413194444 | AD35: 4 | AE35: ='Raw Time Motion - PDT'!E45*1440 -> 160 | AF35: 2.666666667 | AH35: 22 | AI35: 0.9897435897 | AP35: 6 | AQ35: ='Analysis - Facility Survey'!H12 -> 0.1592578364 | AT35: 22 | AU35: 0.5492834594 | BA35: 6 | BB35: ='Analysis - Facility Survey'!H5*'Local Data'!B73/'Analysis - Facility Survey'!H11 -> 0.004670058981 | BE35: 22 | BF35: 0.03183790812 | BL35: 22 | BM35: 0.2 | BN35: 12 | BP35: 22 | BQ35: 12 | BR35: 12 | BT35: 22 | BU35: 26.5862069
B36: 22 | C36: ='Raw Time Motion - HIVST'!W34 -> 0.3166666667 | D36: 0.3166666667 | F36: 23 | G36: 43 | H36: =VLOOKUP(G36,BootStrappings!$B$15:$C$62,2,FALSE) -> 0.5333333333 | J36: 23 | K36: 0.7732638889 | R36: 23 | S36: 5 | T36: =VLOOKUP(S36,BootStrappings!$B$15:$D$62,3,FALSE) -> 0.5833333333 | V36: 23 | W36: 0.45625 | AD36: 5 | AE36: ='Raw Time Motion - PDT'!F45*1440 -> 175 | AF36: 2.916666667 | AH36: 23 | AI36: 1.964102564 | AP36: 7 | AQ36: ='Analysis - Facility Survey'!I12 -> 5.298430647 | AT36: 23 | AU36: 0.33762744 | BA36: 7 | BB36: ='Analysis - Facility Survey'!I5*'Local Data'!B73/'Analysis - Facility Survey'!I11 -> 0.2303381157 | BE36: 23 | BF36: 0.01626150134 | BL36: 23 | BM36: 0.3333333333 | BN36: 20 | BP36: 23 | BQ36: 26 | BR36: 31 | BT36: 23 | BU36: 30.44827586
B37: 23 | C37: ='Raw Time Motion - HIVST'!X34 -> 0.05 | D37: 0.05 | F37: 24 | G37: 37 | H37: =VLOOKUP(G37,BootStrappings!$B$15:$C$62,2,FALSE) -> 1.633333333 | J37: 24 | K37: 0.6399305556 | R37: 24 | S37: 29 | T37: =VLOOKUP(S37,BootStrappings!$B$15:$D$62,3,FALSE) -> 0.35 | V37: 24 | W37: 0.534375 | AD37: 6 | AE37: ='Raw Time Motion - PDT'!G45*1440 -> 170 | AF37: 2.833333333 | AH37: 24 | AI37: 2.038461538 | AP37: 8 | AQ37: ='Analysis - Facility Survey'!J12 -> 1.6430446 | AT37: 24 | AU37: 0.3725266129 | BA37: 8 | BB37: ='Analysis - Facility Survey'!J5*'Local Data'!B73/'Analysis - Facility Survey'!J11 -> 0.06147995294 | BE37: 24 | BF37: 0.03432168168 | BL37: 24 | BM37: 0.45 | BN37: 27 | BP37: 24 | BQ37: 27 | BR37: 20 | BT37: 24 | BU37: 27.24137931
B38: 24 | C38: ='Raw Time Motion - HIVST'!Y34 -> 0.4666666667 | D38: 0.4666666667 | F38: 25 | G38: 16 | H38: =VLOOKUP(G38,BootStrappings!$B$15:$C$62,2,FALSE) -> 1.5 | J38: 25 | K38: 0.6395833333 | R38: 25 | S38: 23 | T38: =VLOOKUP(S38,BootStrappings!$B$15:$D$62,3,FALSE) -> 0.05 | V38: 25 | W38: 0.5517361111 | AD38: 7 | AE38: ='Raw Time Motion - PDT'!H45*1440 -> 165 | AF38: 2.75 | AH38: 25 | AI38: 1.693589744 | AP38: 9 | AQ38: ='Analysis - Facility Survey'!K12 -> 0.2344113402 | AT38: 25 | AU38: 0.2231512149 | BA38: 9 | BB38: ='Analysis - Facility Survey'!K5*'Local Data'!B73/'Analysis - Facility Survey'!K11 -> 0.01021910731 | BE38: 25 | BF38: 0.03408603247 | BL38: 25 | BM38: 0.5333333333 | BN38: 32 | BP38: 25 | BQ38: 16 | BR38: 32 | BT38: 25 | BU38: 31.37931034
B39: 25 | C39: ='Raw Time Motion - HIVST'!Z34 -> 0.2833333333 | D39: 0.2833333333 | F39: 26 | G39: 48 | H39: =VLOOKUP(G39,BootStrappings!$B$15:$C$62,2,FALSE) -> 0.6666666667 | J39: 26 | K39: 0.6548611111 | R39: 26 | S39: 25 | T39: =VLOOKUP(S39,BootStrappings!$B$15:$D$62,3,FALSE) -> 0.2833333333 | V39: 26 | W39: 0.5024305556 | AD39: 8 | AE39: ='Raw Time Motion - PDT'!I45*1440 -> 82 | AF39: 1.366666667 | AH39: 26 | AI39: 2.043589744 | AP39: 10 | AQ39: ='Analysis - Facility Survey'!L12 -> 0.4902181479 | AT39: 26 | AU39: 0.4176889643 | BA39: 10 | BB39: ='Analysis - Facility Survey'!L5*'Local Data'!B73/'Analysis - Facility Survey'!L11 -> 0.0211215731 | BE39: 26 | BF39: 0.04980739072 | BL39: 26 | BM39: 0.5166666667 | BN39: 31 | BP39: 26 | BQ39: 7 | BR39: 29 | BT39: 26 | BU39: 25.86206897
B40: 26 | C40: ='Raw Time Motion - HIVST'!AA34 -> 0.55 | D40: 0.55 | F40: 27 | G40: 35 | H40: =VLOOKUP(G40,BootStrappings!$B$15:$C$62,2,FALSE) -> 0.35 | J40: 27 | K40: 0.8361111111 | R40: 27 | S40: 45 | T40: =VLOOKUP(S40,BootStrappings!$B$15:$D$62,3,FALSE) -> 0.3333333333 | V40: 27 | W40: 0.4708333333 | AD40: 9 | AE40: ='Raw Time Motion - PDT'!J45*1440 -> 18 | AF40: 0.3 | AH40: 27 | AI40: 1.276923077 | AP40: 11 | AQ40: ='Analysis - Facility Survey'!M12 -> 0.4199200488 | AT40: 27 | AU40: 0.3603859372 | BA40: 11 | BB40: ='Analysis - Facility Survey'!M5*'Local Data'!B73/'Analysis - Facility Survey'!M11 -> 0.02163890683 | BE40: 27 | BF40: 0.01720993746 | BL40: 27 | BM40: 0.3333333333 | BN40: 20 | BP40: 27 | BQ40: 18 | BR40: 85 | BT40: 27 | BU40: 24.93103448
B41: 27 | C41: ='Raw Time Motion - HIVST'!AB34 -> 0.5333333333 | D41: 0.5333333333 | F41: 28 | G41: 28 | H41: =VLOOKUP(G41,BootStrappings!$B$15:$C$62,2,FALSE) -> 0.4333333333 | J41: 28 | K41: 0.5590277778 | R41: 28 | S41: 12 | T41: =VLOOKUP(S41,BootStrappings!$B$15:$D$62,3,FALSE) -> 1.583333333 | V41: 28 | W41: 0.3774305556 | AD41: 10 | AE41: ='Raw Time Motion - PDT'!K45*1440 -> 25 | AF41: 0.4166666667 | AH41: 28 | AI41: 1.847435897 | AP41: 12 | AQ41: ='Analysis - Facility Survey'!N12 -> 0.6199010433 | AT41: 28 | AU41: 0.4130705602 | BA41: 12 | BB41: ='Analysis - Facility Survey'!N5*'Local Data'!B73/'Analysis - Facility Survey'!N11 -> 0.0228240566 | BE41: 28 | BF41: 0.03599558158 | BL41: 28 | BM41: 0.3 | BN41: 18 | BP41: 28 | BQ41: 23 | BR41: 20 | BT41: 28 | BU41: 26.86206897
B42: 28 | C42: ='Raw Time Motion - HIVST'!AC34 -> 0.4333333333 | D42: 0.4333333333 | F42: 29 | G42: 9 | H42: =VLOOKUP(G42,BootStrappings!$B$15:$C$62,2,FALSE) -> 0.3333333333 | J42: 29 | K42: 0.6861111111 | R42: 29 | S42: 14 | T42: =VLOOKUP(S42,BootStrappings!$B$15:$D$62,3,FALSE) -> 0.2 | V42: 29 | W42: 0.4069444444 | AD42: 11 | AE42: ='Raw Time Motion - PDT'!L45*1440 -> 95 | AF42: 1.583333333 | AH42: 29 | AI42: 1.701282051 | AT42: 29 | AU42: 0.2791654145 | BE42: 29 | BF42: 0.02445919383 | BL42: 29 | BM42: 0.25 | BN42: 15 | BP42: 29 | BQ42: 1 | BR42: 30 | BT42: 29 | BU42: 29.17241379
B43: 29 | C43: ='Raw Time Motion - HIVST'!AD34 -> 0.35 | D43: 0.35 | F43: 30 | G43: 30 | H43: =VLOOKUP(G43,BootStrappings!$B$15:$C$62,2,FALSE) -> 1.416666667 | J43: 30 | K43: 0.6486111111 | R43: 30 | S43: 31 | T43: =VLOOKUP(S43,BootStrappings!$B$15:$D$62,3,FALSE) -> 1.95 | V43: 30 | W43: 0.5180555556 | AD43: 12 | AE43: ='Raw Time Motion - PDT'!M45*1440 -> 67 | AF43: 1.116666667 | AH43: 30 | AI43: 1.412820513 | AT43: 30 | AU43: 0.3289875276 | BE43: 30 | BF43: 0.02395250528 | BT43: 30 | BU43: 33.86206897
B44: 30 | C44: ='Raw Time Motion - HIVST'!AE34 -> 1.416666667 | D44: 1.416666667 | F44: 31 | G44: 9 | H44: =VLOOKUP(G44,BootStrappings!$B$15:$C$62,2,FALSE) -> 0.3333333333 | J44: 31 | K44: 0.8291666667 | R44: 31 | S44: 6 | T44: =VLOOKUP(S44,BootStrappings!$B$15:$D$62,3,FALSE) -> 0.25 | V44: 31 | W44: 0.4541666667 | AD44: 13 | AE44: ='Raw Time Motion - PDT'!N45*1440 -> 28 | AF44: 0.4666666667 | AH44: 31 | AI44: 2.133333333 | AT44: 31 | AU44: 0.226316765 | BE44: 31 | BF44: 0.02230256423 | BQ44: Average | BR44: =AVERAGE(BR14:BR42) -> 29.37931034 | BT44: 31 | BU44: 25.55172414
B45: 31 | C45: ='Raw Time Motion - HIVST'!AF34 -> 2.866666667 | D45: 1.95 | F45: 32 | G45: 27 | H45: =VLOOKUP(G45,BootStrappings!$B$15:$C$62,2,FALSE) -> 0.5333333333 | J45: 32 | K45: 0.8503472222 | R45: 32 | S45: 7 | T45: =VLOOKUP(S45,BootStrappings!$B$15:$D$62,3,FALSE) -> 0.2 | V45: 32 | W45: 0.5621527778 | AH45: 32 | AI45: 0.9884615385 | AT45: 32 | AU45: 0.2866788938 | BE45: 32 | BF45: 0.02124589337 | BT45: 32 | BU45: 23.31034483
B46: 32 | C46: ='Raw Time Motion - HIVST'!AG34 -> 0.3833333333 | D46: 0.3833333333 | F46: 33 | G46: 10 | H46: =VLOOKUP(G46,BootStrappings!$B$15:$C$62,2,FALSE) -> 0.5 | J46: 33 | K46: 0.7197916667 | R46: 33 | S46: 37 | T46: =VLOOKUP(S46,BootStrappings!$B$15:$D$62,3,FALSE) -> 0.2666666667 | V46: 33 | W46: 0.5170138889 | AH46: 33 | AI46: 1.494871795 | AT46: 33 | AU46: 0.3215209369 | BE46: 33 | BF46: 0.04215786235 | BT46: 33 | BU46: 29.79310345
B47: 33 | C47: ='Raw Time Motion - HIVST'!AH34 -> 0.7833333333 | D47: 0.7833333333 | F47: 34 | G47: 26 | H47: =VLOOKUP(G47,BootStrappings!$B$15:$C$62,2,FALSE) -> 0.55 | J47: 34 | K47: 0.6486111111 | R47: 34 | S47: 34 | T47: =VLOOKUP(S47,BootStrappings!$B$15:$D$62,3,FALSE) -> 0.6166666667 | V47: 34 | W47: 0.525 | AH47: 34 | AI47: 1.587179487 | AT47: 34 | AU47: 0.2970001101 | BE47: 34 | BF47: 0.02672417676 | BT47: 34 | BU47: 27.27586207
B48: 34 | C48: ='Raw Time Motion - HIVST'!AI34 -> 1.6 | D48: 0.6166666667 | F48: 35 | G48: 26 | H48: =VLOOKUP(G48,BootStrappings!$B$15:$C$62,2,FALSE) -> 0.55 | J48: 35 | K48: 0.8038194444 | R48: 35 | S48: 36 | T48: =VLOOKUP(S48,BootStrappings!$B$15:$D$62,3,FALSE) -> 0.6166666667 | V48: 35 | W48: 0.6215277778 | AH48: 35 | AI48: 1.430769231 | AT48: 35 | AU48: 0.275051721 | BE48: 35 | BF48: 0.06454812935 | BT48: 35 | BU48: 26.17241379
B49: 35 | C49: ='Raw Time Motion - HIVST'!AJ34 -> 0.35 | D49: 0.2833333333 | F49: 36 | G49: 46 | H49: =VLOOKUP(G49,BootStrappings!$B$15:$C$62,2,FALSE) -> 0.3 | J49: 36 | K49: 0.7989583333 | R49: 36 | S49: 22 | T49: =VLOOKUP(S49,BootStrappings!$B$15:$D$62,3,FALSE) -> 0.3166666667 | V49: 36 | W49: 0.6350694444 | AH49: 36 | AI49: 1.394871795 | AT49: 36 | AU49: 0.3838573597 | BE49: 36 | BF49: 0.02655711206 | BT49: 36 | BU49: 20.62068966
B50: 36 | C50: ='Raw Time Motion - HIVST'!AK34 -> 0.6166666667 | D50: 0.6166666667 | F50: 37 | G50: 27 | H50: =VLOOKUP(G50,BootStrappings!$B$15:$C$62,2,FALSE) -> 0.5333333333 | J50: 37 | K50: 0.9427083333 | R50: 37 | S50: 28 | T50: =VLOOKUP(S50,BootStrappings!$B$15:$D$62,3,FALSE) -> 0.4333333333 | V50: 37 | W50: 0.4881944444 | AH50: 37 | AI50: 1.866666667 | AT50: 37 | AU50: 0.5408308176 | BE50: 37 | BF50: 0.04732770259 | BT50: 37 | BU50: 23.44827586
B51: 37 | C51: ='Raw Time Motion - HIVST'!AL34 -> 1.633333333 | D51: 0.2666666667 | F51: 38 | G51: 6 | H51: =VLOOKUP(G51,BootStrappings!$B$15:$C$62,2,FALSE) -> 0.25 | J51: 38 | K51: 0.8465277778 | R51: 38 | S51: 21 | T51: =VLOOKUP(S51,BootStrappings!$B$15:$D$62,3,FALSE) -> 0.08333333333 | V51: 38 | W51: 0.4225694444 | AH51: 38 | AI51: 1.485897436 | AT51: 38 | AU51: 0.5788453625 | BE51: 38 | BF51: 0.0235593219 | BT51: 38 | BU51: 28.17241379
B52: 38 | C52: ='Raw Time Motion - HIVST'!AM34 -> 0.75 | D52: 0.1833333333 | F52: 39 | G52: 48 | H52: =VLOOKUP(G52,BootStrappings!$B$15:$C$62,2,FALSE) -> 0.6666666667 | J52: 39 | K52: 0.7451388889 | R52: 39 | S52: 7 | T52: =VLOOKUP(S52,BootStrappings!$B$15:$D$62,3,FALSE) -> 0.2 | V52: 39 | W52: 0.5003472222 | AH52: 39 | AI52: 1.814102564 | AT52: 39 | AU52: 0.5141367815 | BE52: 39 | BF52: 0.03032913042 | BT52: 39 | BU52: 24.62068966
B53: 39 | C53: ='Raw Time Motion - HIVST'!AN34 -> 0.2166666667 | D53: 0.2166666667 | F53: 40 | G53: 20 | H53: =VLOOKUP(G53,BootStrappings!$B$15:$C$62,2,FALSE) -> 1.383333333 | J53: 40 | K53: 0.8100694444 | R53: 40 | S53: 48 | T53: =VLOOKUP(S53,BootStrappings!$B$15:$D$62,3,FALSE) -> 0.6666666667 | V53: 40 | W53: 0.4732638889 | AH53: 40 | AI53: 0.8525641026 | AT53: 40 | AU53: 0.1841936122 | BE53: 40 | BF53: 0.04180000953 | BT53: 40 | BU53: 26.89655172
B54: 40 | C54: ='Raw Time Motion - HIVST'!AO34 -> 0.2 | D54: 0.2 | F54: 41 | G54: 8 | H54: =VLOOKUP(G54,BootStrappings!$B$15:$C$62,2,FALSE) -> 0.4833333333 | J54: 41 | K54: 0.6319444444 | R54: 41 | S54: 3 | T54: =VLOOKUP(S54,BootStrappings!$B$15:$D$62,3,FALSE) -> 0.4833333333 | V54: 41 | W54: 0.4694444444 | AH54: 41 | AI54: 1.237179487 | AT54: 41 | AU54: 0.4748544876 | BE54: 41 | BF54: 0.03260107545 | BT54: 41 | BU54: 27.68965517
B55: 41 | C55: ='Raw Time Motion - HIVST'!AP34 -> 0.3333333333 | D55: 0.3333333333 | F55: 42 | G55: 48 | H55: =VLOOKUP(G55,BootStrappings!$B$15:$C$62,2,FALSE) -> 0.6666666667 | J55: 42 | K55: 0.6930555556 | R55: 42 | S55: 20 | T55: =VLOOKUP(S55,BootStrappings!$B$15:$D$62,3,FALSE) -> 0.3333333333 | V55: 42 | W55: 0.5850694444 | AH55: 42 | AI55: 1.246153846 | AT55: 42 | AU55: 0.2525607474 | BE55: 42 | BF55: 0.05880480094 | BT55: 42 | BU55: 31.4137931
B56: 42 | C56: ='Raw Time Motion - HIVST'!AQ34 -> 0.45 | D56: 0.45 | F56: 43 | G56: 27 | H56: =VLOOKUP(G56,BootStrappings!$B$15:$C$62,2,FALSE) -> 0.5333333333 | J56: 43 | K56: 0.7388888889 | R56: 43 | S56: 25 | T56: =VLOOKUP(S56,BootStrappings!$B$15:$D$62,3,FALSE) -> 0.2833333333 | V56: 43 | W56: 0.6295138889 | AH56: 43 | AI56: 1.535897436 | AT56: 43 | AU56: 0.2088094993 | BE56: 43 | BF56: 0.04496305924 | BT56: 43 | BU56: 24.75862069
B57: 43 | C57: ='Raw Time Motion - HIVST'!AR34 -> 0.5333333333 | D57: 0.5333333333 | F57: 44 | G57: 47 | H57: =VLOOKUP(G57,BootStrappings!$B$15:$C$62,2,FALSE) -> 0.25 | J57: 44 | K57: 0.7111111111 | R57: 44 | S57: 32 | T57: =VLOOKUP(S57,BootStrappings!$B$15:$D$62,3,FALSE) -> 0.3833333333 | V57: 44 | W57: 0.5993055556 | AH57: 44 | AI57: 1.323076923 | AT57: 44 | AU57: 0.4997594217 | BE57: 44 | BF57: 0.04354824674 | BT57: 44 | BU57: 26.55172414
B58: 44 | C58: ='Raw Time Motion - HIVST'!AS34 -> 0.5166666667 | D58: 0.5166666667 | F58: 45 | G58: 5 | H58: =VLOOKUP(G58,BootStrappings!$B$15:$C$62,2,FALSE) -> 0.5833333333 | J58: 45 | K58: 0.6975694444 | R58: 45 | S58: 41 | T58: =VLOOKUP(S58,BootStrappings!$B$15:$D$62,3,FALSE) -> 0.3333333333 | V58: 45 | W58: 0.5913194444 | AH58: 45 | AI58: 1.561538462 | AT58: 45 | AU58: 0.3692776407 | BE58: 45 | BF58: 0.02431202141 | BT58: 45 | BU58: 24.48275862
B59: 45 | C59: ='Raw Time Motion - HIVST'!AT34 -> 0.3333333333 | D59: 0.3333333333 | F59: 46 | G59: 15 | H59: =VLOOKUP(G59,BootStrappings!$B$15:$C$62,2,FALSE) -> 0.9833333333 | J59: 46 | K59: 0.7888888889 | R59: 46 | S59: 24 | T59: =VLOOKUP(S59,BootStrappings!$B$15:$D$62,3,FALSE) -> 0.4666666667 | V59: 46 | W59: 0.5013888889 | AH59: 46 | AI59: 1.235897436 | AT59: 46 | AU59: 0.457610465 | BE59: 46 | BF59: 0.06160892678 | BT59: 46 | BU59: 26.82758621
B60: 46 | C60: ='Raw Time Motion - HIVST'!AU34 -> 0.3 | D60: 0.3 | F60: 47 | G60: 23 | H60: =VLOOKUP(G60,BootStrappings!$B$15:$C$62,2,FALSE) -> 0.05 | J60: 47 | K60: 0.653125 | R60: 47 | S60: 36 | T60: =VLOOKUP(S60,BootStrappings!$B$15:$D$62,3,FALSE) -> 0.6166666667 | V60: 47 | W60: 0.5340277778 | AH60: 47 | AI60: 1.491025641 | AT60: 47 | AU60: 0.2406972935 | BE60: 47 | BF60: 0.07819671413 | BT60: 47 | BU60: 25.68965517
B61: 47 | C61: ='Raw Time Motion - HIVST'!AV34 -> 0.25 | D61: 0.25 | F61: 48 | G61: 24 | H61: =VLOOKUP(G61,BootStrappings!$B$15:$C$62,2,FALSE) -> 0.4666666667 | J61: 48 | K61: 0.5927083333 | R61: 48 | S61: 27 | T61: =VLOOKUP(S61,BootStrappings!$B$15:$D$62,3,FALSE) -> 0.5333333333 | V61: 48 | W61: 0.5305555556 | AH61: 48 | AI61: 1.666666667 | AT61: 48 | AU61: 0.3108557555 | BE61: 48 | BF61: 0.04492092147 | BT61: 48 | BU61: 27.86206897
B62: 48 | C62: ='Raw Time Motion - HIVST'!AW34 -> 0.6666666667 | D62: 0.6666666667 | J62: 49 | K62: 0.7020833333 | V62: 49 | W62: 0.446875 | AH62: 49 | AI62: 1.646153846 | AT62: 49 | AU62: 0.1820535264 | BE62: 49 | BF62: 0.05952112067 | BT62: 49 | BU62: 24.4137931
J63: 50 | K63: 0.6517361111 | V63: 50 | W63: 0.5840277778 | AH63: 50 | AI63: 1.928205128 | AT63: 50 | AU63: 0.7577870077 | BE63: 50 | BF63: 0.03502659657 | BT63: 50 | BU63: 29.10344828
G64: Average | H64: =AVERAGE(H14:H61) -> 0.7121527778 | J64: 51 | K64: 0.7059027778 | S64: Average | T64: =AVERAGE(T14:T61) -> 0.4395833333 | V64: 51 | W64: 0.575 | AH64: 51 | AI64: 1.391025641 | AT64: 51 | AU64: 0.2845668497 | BE64: 51 | BF64: 0.03397723688 | BT64: 51 | BU64: 28.86206897
J65: 52 | K65: 0.6215277778 | V65: 52 | W65: 0.6 | AH65: 52 | AI65: 1.762820513 | AT65: 52 | AU65: 0.274651026 | BE65: 52 | BF65: 0.02378046384 | BT65: 52 | BU65: 24.48275862
J66: 53 | K66: 0.7739583333 | V66: 53 | W66: 0.4684027778 | AH66: 53 | AI66: 1.544871795 | AT66: 53 | AU66: 0.3530172814 | BE66: 53 | BF66: 0.04002887997 | BT66: 53 | BU66: 28.79310345
J67: 54 | K67: 0.7322916667 | V67: 54 | W67: 0.4114583333 | AH67: 54 | AI67: 1.655128205 | AT67: 54 | AU67: 0.2641275469 | BE67: 54 | BF67: 0.02797320329 | BT67: 54 | BU67: 30.17241379
J68: 55 | K68: 0.7315972222 | V68: 55 | W68: 0.4940972222 | AH68: 55 | AI68: 1.921794872 | AT68: 55 | AU68: 0.4697870681 | BE68: 55 | BF68: 0.0276967387 | BT68: 55 | BU68: 27.72413793
J69: 56 | K69: 0.7940972222 | V69: 56 | W69: 0.5975694444 | AH69: 56 | AI69: 1.2 | AT69: 56 | AU69: 0.2862243092 | BE69: 56 | BF69: 0.04155564872 | BT69: 56 | BU69: 34.03448276
J70: 57 | K70: 0.5902777778 | V70: 57 | W70: 0.5104166667 | AH70: 57 | AI70: 1.226923077 | AT70: 57 | AU70: 0.3227793591 | BE70: 57 | BF70: 0.05913463939 | BT70: 57 | BU70: 31.03448276
J71: 58 | K71: 0.7881944444 | V71: 58 | W71: 0.4444444444 | AH71: 58 | AI71: 1.658974359 | AT71: 58 | AU71: 0.397724181 | BE71: 58 | BF71: 0.03409578155 | BT71: 58 | BU71: 33.10344828
J72: 59 | K72: 0.9020833333 | V72: 59 | W72: 0.4298611111 | AH72: 59 | AI72: 1.588461538 | AT72: 59 | AU72: 0.2320188066 | BE72: 59 | BF72: 0.02602908344 | BT72: 59 | BU72: 24.27586207
J73: 60 | K73: 0.8270833333 | V73: 60 | W73: 0.5069444444 | AH73: 60 | AI73: 0.8435897436 | AT73: 60 | AU73: 0.3028146311 | BE73: 60 | BF73: 0.0330594407 | BT73: 60 | BU73: 26.06896552
J74: 61 | K74: 0.9048611111 | V74: 61 | W74: 0.4847222222 | AH74: 61 | AI74: 1.882051282 | AT74: 61 | AU74: 0.100314527 | BE74: 61 | BF74: 0.04168031211 | BT74: 61 | BU74: 28.34482759
J75: 62 | K75: 0.8694444444 | V75: 62 | W75: 0.4541666667 | AH75: 62 | AI75: 1.162820513 | AT75: 62 | AU75: 0.3203604537 | BE75: 62 | BF75: 0.06281419243 | BT75: 62 | BU75: 29.37931034
J76: 63 | K76: 0.8222222222 | V76: 63 | W76: 0.5284722222 | AH76: 63 | AI76: 1.63974359 | AT76: 63 | AU76: 0.2663981611 | BE76: 63 | BF76: 0.03236380474 | BT76: 63 | BU76: 20.72413793
J77: 64 | K77: 0.6381944444 | V77: 64 | W77: 0.409375 | AH77: 64 | AI77: 1.553846154 | AT77: 64 | AU77: 0.19940278 | BE77: 64 | BF77: 0.04942558163 | BT77: 64 | BU77: 24.86206897
J78: 65 | K78: 0.8149305556 | V78: 65 | W78: 0.4597222222 | AH78: 65 | AI78: 1.501282051 | AT78: 65 | AU78: 0.4018554693 | BE78: 65 | BF78: 0.03212385593 | BT78: 65 | BU78: 31.06896552
J79: 66 | K79: 0.70625 | V79: 66 | W79: 0.4444444444 | AH79: 66 | AI79: 1.46025641 | AT79: 66 | AU79: 0.3115745179 | BE79: 66 | BF79: 0.03592160846 | BT79: 66 | BU79: 24.48275862
J80: 67 | K80: 0.6868055556 | V80: 67 | W80: 0.5809027778 | AH80: 67 | AI80: 1.687179487 | AT80: 67 | AU80: 0.4056421751 | BE80: 67 | BF80: 0.07148602979 | BT80: 67 | BU80: 30.5862069
J81: 68 | K81: 0.8607638889 | V81: 68 | W81: 0.5680555556 | AH81: 68 | AI81: 2.532051282 | AT81: 68 | AU81: 0.2864261858 | BE81: 68 | BF81: 0.03146108592 | BT81: 68 | BU81: 23.31034483
J82: 69 | K82: 0.6996527778 | V82: 69 | W82: 0.5125 | AH82: 69 | AI82: 1.488461538 | AT82: 69 | AU82: 0.5288484933 | BE82: 69 | BF82: 0.02896040647 | BT82: 69 | BU82: 26.4137931
J83: 70 | K83: 0.8864583333 | V83: 70 | W83: 0.5357638889 | AH83: 70 | AI83: 1.507692308 | AT83: 70 | AU83: 0.5576695987 | BE83: 70 | BF83: 0.02069015012 | BT83: 70 | BU83: 27.03448276
J84: 71 | K84: 0.5850694444 | V84: 71 | W84: 0.6454861111 | AH84: 71 | AI84: 2.174358974 | AT84: 71 | AU84: 0.3453084064 | BE84: 71 | BF84: 0.03772912204 | BT84: 71 | BU84: 25.93103448
J85: 72 | K85: 0.8142361111 | V85: 72 | W85: 0.5472222222 | AH85: 72 | AI85: 1.355128205 | AT85: 72 | AU85: 0.3854518183 | BE85: 72 | BF85: 0.06647848939 | BT85: 72 | BU85: 27.62068966
J86: 73 | K86: 0.8173611111 | V86: 73 | W86: 0.4489583333 | AH86: 73 | AI86: 1.675641026 | AT86: 73 | AU86: 0.4657044047 | BE86: 73 | BF86: 0.04030054523 | BT86: 73 | BU86: 22.27586207
J87: 74 | K87: 0.7201388889 | V87: 74 | W87: 0.5159722222 | AH87: 74 | AI87: 1.419230769 | AT87: 74 | AU87: 0.3380869784 | BE87: 74 | BF87: 0.04374377407 | BT87: 74 | BU87: 29.55172414
J88: 75 | K88: 0.6711805556 | V88: 75 | W88: 0.4826388889 | AH88: 75 | AI88: 1.484615385 | AT88: 75 | AU88: 0.1863493495 | BE88: 75 | BF88: 0.1027791263 | BT88: 75 | BU88: 39.55172414
J89: 76 | K89: 0.6885416667 | V89: 76 | W89: 0.5194444444 | AH89: 76 | AI89: 1.230769231 | AT89: 76 | AU89: 0.3916206071 | BE89: 76 | BF89: 0.08203884001 | BT89: 76 | BU89: 25.44827586
J90: 77 | K90: 0.7065972222 | V90: 77 | W90: 0.45625 | AH90: 77 | AI90: 1.694871795 | AT90: 77 | AU90: 0.3805203386 | BE90: 77 | BF90: 0.05857620755 | BT90: 77 | BU90: 33.68965517
J91: 78 | K91: 0.5864583333 | V91: 78 | W91: 0.5326388889 | AH91: 78 | AI91: 1.937179487 | AT91: 78 | AU91: 0.383279599 | BE91: 78 | BF91: 0.01577240783 | BT91: 78 | BU91: 23.10344828
J92: 79 | K92: 0.8340277778 | V92: 79 | W92: 0.4993055556 | AH92: 79 | AI92: 1.366666667 | AT92: 79 | AU92: 0.2930400296 | BE92: 79 | BF92: 0.06714961933 | BT92: 79 | BU92: 21.34482759
J93: 80 | K93: 0.6809027778 | V93: 80 | W93: 0.4628472222 | AH93: 80 | AI93: 1.602564103 | AT93: 80 | AU93: 0.5345979428 | BE93: 80 | BF93: 0.07906209736 | BT93: 80 | BU93: 26.93103448
J94: 81 | K94: 0.7892361111 | V94: 81 | W94: 0.5118055556 | AH94: 81 | AI94: 1.561538462 | AT94: 81 | AU94: 0.374929684 | BE94: 81 | BF94: 0.04176478445 | BT94: 81 | BU94: 25.37931034
J95: 82 | K95: 0.7916666667 | V95: 82 | W95: 0.471875 | AH95: 82 | AI95: 1.684615385 | AT95: 82 | AU95: 0.5524975406 | BE95: 82 | BF95: 0.03644143044 | BT95: 82 | BU95: 26.03448276
J96: 83 | K96: 0.8628472222 | V96: 83 | W96: 0.49375 | AH96: 83 | AI96: 1.538461538 | AT96: 83 | AU96: 0.2595573311 | BE96: 83 | BF96: 0.02224914642 | BT96: 83 | BU96: 25.34482759
J97: 84 | K97: 0.6118055556 | V97: 84 | W97: 0.5121527778 | AH97: 84 | AI97: 1.269230769 | AT97: 84 | AU97: 0.7192834864 | BE97: 84 | BF97: 0.02252933571 | BT97: 84 | BU97: 24.34482759
J98: 85 | K98: 0.7496527778 | V98: 85 | W98: 0.575 | AH98: 85 | AI98: 1.648717949 | AT98: 85 | AU98: 0.2906636849 | BE98: 85 | BF98: 0.02539685388 | BT98: 85 | BU98: 25.96551724
J99: 86 | K99: 0.5100694444 | V99: 86 | W99: 0.5857638889 | AH99: 86 | AI99: 1.847435897 | AT99: 86 | AU99: 0.3991965584 | BE99: 86 | BF99: 0.02673756549 | BT99: 86 | BU99: 28.24137931
J100: 87 | K100: 0.7090277778 | V100: 87 | W100: 0.5041666667 | AH100: 87 | AI100: 1.532051282 | AT100: 87 | AU100: 0.5078852155 | BE100: 87 | BF100: 0.03071929443 | BT100: 87 | BU100: 26.4137931
J101: 88 | K101: 0.4989583333 | V101: 88 | W101: 0.4631944444 | AH101: 88 | AI101: 1.443589744 | AT101: 88 | AU101: 0.3141348106 | BE101: 88 | BF101: 0.03234168233 | BT101: 88 | BU101: 23.72413793
J102: 89 | K102: 0.665625 | V102: 89 | W102: 0.5829861111 | AH102: 89 | AI102: 1.234615385 | AT102: 89 | AU102: 0.5275410285 | BE102: 89 | BF102: 0.04495956138 | BT102: 89 | BU102: 30.4137931
J103: 90 | K103: 0.6111111111 | V103: 90 | W103: 0.4954861111 | AH103: 90 | AI103: 1.678205128 | AT103: 90 | AU103: 0.1078522237 | BE103: 90 | BF103: 0.05995169839 | BT103: 90 | BU103: 32.13793103
J104: 91 | K104: 0.7777777778 | V104: 91 | W104: 0.4597222222 | AH104: 91 | AI104: 1.246153846 | AT104: 91 | AU104: 0.4560439098 | BE104: 91 | BF104: 0.05730810068 | BT104: 91 | BU104: 27.96551724
J105: 92 | K105: 0.6878472222 | V105: 92 | W105: 0.5704861111 | AH105: 92 | AI105: 1.385897436 | AT105: 92 | AU105: 0.4196396907 | BE105: 92 | BF105: 0.05817372091 | BT105: 92 | BU105: 23.62068966
J106: 93 | K106: 0.7590277778 | V106: 93 | W106: 0.4131944444 | AH106: 93 | AI106: 1.391025641 | AT106: 93 | AU106: 0.443499597 | BE106: 93 | BF106: 0.02561917289 | BT106: 93 | BU106: 32.5862069
J107: 94 | K107: 0.8538194444 | V107: 94 | W107: 0.5045138889 | AH107: 94 | AI107: 1.107692308 | AT107: 94 | AU107: 0.313801171 | BE107: 94 | BF107: 0.06651826019 | BT107: 94 | BU107: 28.37931034
J108: 95 | K108: 0.7670138889 | V108: 95 | W108: 0.4923611111 | AH108: 95 | AI108: 1.619230769 | AT108: 95 | AU108: 0.5712720417 | BE108: 95 | BF108: 0.05020254931 | BT108: 95 | BU108: 28.10344828
J109: 96 | K109: 0.5892361111 | V109: 96 | W109: 0.5597222222 | AH109: 96 | AI109: 1.474358974 | AT109: 96 | AU109: 0.5226593323 | BE109: 96 | BF109: 0.05529059892 | BT109: 96 | BU109: 31.17241379
J110: 97 | K110: 0.7107638889 | V110: 97 | W110: 0.4447916667 | AH110: 97 | AI110: 1.15 | AT110: 97 | AU110: 0.3235011452 | BE110: 97 | BF110: 0.02677358154 | BT110: 97 | BU110: 28.89655172
J111: 98 | K111: 0.7920138889 | V111: 98 | W111: 0.4934027778 | AH111: 98 | AI111: 1.734615385 | AT111: 98 | AU111: 0.495756968 | BE111: 98 | BF111: 0.05541792552 | BT111: 98 | BU111: 26.06896552
J112: 99 | K112: 0.8038194444 | V112: 99 | W112: 0.559375 | AH112: 99 | AI112: 1.201282051 | AT112: 99 | AU112: 0.3262676957 | BE112: 99 | BF112: 0.01997672753 | BT112: 99 | BU112: 22.68965517
J113: 100 | K113: 0.6138888889 | V113: 100 | W113: 0.4826388889 | AH113: 100 | AI113: 1.829487179 | AT113: 100 | AU113: 0.3323917132 | BE113: 100 | BF113: 0.06943350591 | BT113: 100 | BU113: 26.96551724
J114: 101 | K114: 0.5989583333 | V114: 101 | W114: 0.4559027778 | AH114: 101 | AI114: 1.766666667 | AT114: 101 | AU114: 0.2747749155 | BE114: 101 | BF114: 0.03537764262 | BT114: 101 | BU114: 24.4137931
J115: 102 | K115: 0.5604166667 | V115: 102 | W115: 0.4770833333 | AH115: 102 | AI115: 1.478205128 | AT115: 102 | AU115: 0.3236952616 | BE115: 102 | BF115: 0.1008282487 | BT115: 102 | BU115: 26.10344828
J116: 103 | K116: 0.7621527778 | V116: 103 | W116: 0.5236111111 | AH116: 103 | AI116: 1.703846154 | AT116: 103 | AU116: 0.1807685553 | BE116: 103 | BF116: 0.02589867015 | BT116: 103 | BU116: 23.44827586
J117: 104 | K117: 0.6555555556 | V117: 104 | W117: 0.5423611111 | AH117: 104 | AI117: 1.747435897 | AT117: 104 | AU117: 0.3220512004 | BE117: 104 | BF117: 0.06020320538 | BT117: 104 | BU117: 28.27586207
J118: 105 | K118: 0.6430555556 | V118: 105 | W118: 0.5361111111 | AH118: 105 | AI118: 1.085897436 | AT118: 105 | AU118: 0.2562568554 | BE118: 105 | BF118: 0.03888037764 | BT118: 105 | BU118: 28.06896552
J119: 106 | K119: 0.7996527778 | V119: 106 | W119: 0.6697916667 | AH119: 106 | AI119: 1.891025641 | AT119: 106 | AU119: 0.2121790425 | BE119: 106 | BF119: 0.03602167505 | BT119: 106 | BU119: 23.24137931
J120: 107 | K120: 0.7305555556 | V120: 107 | W120: 0.5378472222 | AH120: 107 | AI120: 1.548717949 | AT120: 107 | AU120: 0.3801928325 | BE120: 107 | BF120: 0.0460011563 | BT120: 107 | BU120: 25.31034483
J121: 108 | K121: 0.6427083333 | V121: 108 | W121: 0.5486111111 | AH121: 108 | AI121: 1.761538462 | AT121: 108 | AU121: 0.5403323666 | BE121: 108 | BF121: 0.02582419466 | BT121: 108 | BU121: 24.86206897
J122: 109 | K122: 0.6802083333 | V122: 109 | W122: 0.5482638889 | AH122: 109 | AI122: 1.05 | AT122: 109 | AU122: 0.7124713438 | BE122: 109 | BF122: 0.02395650551 | BT122: 109 | BU122: 24.44827586
J123: 110 | K123: 0.790625 | V123: 110 | W123: 0.4899305556 | AH123: 110 | AI123: 1.455128205 | AT123: 110 | AU123: 0.3273977066 | BE123: 110 | BF123: 0.05747181783 | BT123: 110 | BU123: 23.72413793
J124: 111 | K124: 0.8427083333 | V124: 111 | W124: 0.5375 | AH124: 111 | AI124: 1.414102564 | AT124: 111 | AU124: 0.2558291327 | BE124: 111 | BF124: 0.02998964871 | BT124: 111 | BU124: 30.17241379
J125: 112 | K125: 0.5885416667 | V125: 112 | W125: 0.4684027778 | AH125: 112 | AI125: 1.426923077 | AT125: 112 | AU125: 0.3452944607 | BE125: 112 | BF125: 0.06331453592 | BT125: 112 | BU125: 28.13793103
J126: 113 | K126: 0.73125 | V126: 113 | W126: 0.5826388889 | AH126: 113 | AI126: 1.2 | AT126: 113 | AU126: 0.4025402153 | BE126: 113 | BF126: 0.04003963249 | BT126: 113 | BU126: 29.17241379
J127: 114 | K127: 0.6604166667 | V127: 114 | W127: 0.5458333333 | AH127: 114 | AI127: 1.403846154 | AT127: 114 | AU127: 0.4247942902 | BE127: 114 | BF127: 0.06058643741 | BT127: 114 | BU127: 26.17241379
J128: 115 | K128: 0.7024305556 | V128: 115 | W128: 0.6086805556 | AH128: 115 | AI128: 1.382051282 | AT128: 115 | AU128: 0.3612597939 | BE128: 115 | BF128: 0.03361852386 | BT128: 115 | BU128: 23.72413793
J129: 116 | K129: 0.759375 | V129: 116 | W129: 0.4479166667 | AH129: 116 | AI129: 1.278205128 | AT129: 116 | AU129: 0.380373699 | BE129: 116 | BF129: 0.03564313346 | BT129: 116 | BU129: 26.82758621
J130: 117 | K130: 0.66875 | V130: 117 | W130: 0.5145833333 | AH130: 117 | AI130: 1.520512821 | AT130: 117 | AU130: 0.504427951 | BE130: 117 | BF130: 0.04036501157 | BT130: 117 | BU130: 31.72413793
J131: 118 | K131: 0.9295138889 | V131: 118 | W131: 0.4600694444 | AH131: 118 | AI131: 1.605128205 | AT131: 118 | AU131: 0.1996914585 | BE131: 118 | BF131: 0.08292796307 | BT131: 118 | BU131: 22.24137931
J132: 119 | K132: 0.7329861111 | V132: 119 | W132: 0.484375 | AH132: 119 | AI132: 1.506410256 | AT132: 119 | AU132: 0.7574151549 | BE132: 119 | BF132: 0.02602380499 | BT132: 119 | BU132: 25.03448276
J133: 120 | K133: 0.5902777778 | V133: 120 | W133: 0.4548611111 | AH133: 120 | AI133: 1.492307692 | AT133: 120 | AU133: 0.3964243372 | BE133: 120 | BF133: 0.01482166349 | BT133: 120 | BU133: 25.65517241
J134: 121 | K134: 0.9482638889 | V134: 121 | W134: 0.5527777778 | AH134: 121 | AI134: 1.796153846 | AT134: 121 | AU134: 0.2959509163 | BE134: 121 | BF134: 0.04792996792 | BT134: 121 | BU134: 31.55172414
J135: 122 | K135: 0.6079861111 | V135: 122 | W135: 0.4739583333 | AH135: 122 | AI135: 1.738461538 | AT135: 122 | AU135: 0.3243136884 | BE135: 122 | BF135: 0.08870445035 | BT135: 122 | BU135: 34.31034483
J136: 123 | K136: 0.8399305556 | V136: 123 | W136: 0.5826388889 | AH136: 123 | AI136: 1.532051282 | AT136: 123 | AU136: 0.2175517093 | BE136: 123 | BF136: 0.01807919576 | BT136: 123 | BU136: 24.55172414
J137: 124 | K137: 0.928125 | V137: 124 | W137: 0.5684027778 | AH137: 124 | AI137: 1.198717949 | AT137: 124 | AU137: 0.4806329019 | BE137: 124 | BF137: 0.06173816538 | BT137: 124 | BU137: 32.96551724
J138: 125 | K138: 0.6402777778 | V138: 125 | W138: 0.3895833333 | AH138: 125 | AI138: 1.033333333 | AT138: 125 | AU138: 0.5026031432 | BE138: 125 | BF138: 0.05372418888 | BT138: 125 | BU138: 29.96551724
J139: 126 | K139: 0.8333333333 | V139: 126 | W139: 0.5135416667 | AH139: 126 | AI139: 1.556410256 | AT139: 126 | AU139: 0.4666023249 | BE139: 126 | BF139: 0.01344935252 | BT139: 126 | BU139: 25
J140: 127 | K140: 0.7142361111 | V140: 127 | W140: 0.4434027778 | AH140: 127 | AI140: 1.488461538 | AT140: 127 | AU140: 0.3514042885 | BE140: 127 | BF140: 0.0271417384 | BT140: 127 | BU140: 29.51724138
J141: 128 | K141: 0.86875 | V141: 128 | W141: 0.4697916667 | AH141: 128 | AI141: 1.884615385 | AT141: 128 | AU141: 0.3116214506 | BE141: 128 | BF141: 0.05559274476 | BT141: 128 | BU141: 25.44827586
J142: 129 | K142: 0.6684027778 | V142: 129 | W142: 0.4892361111 | AH142: 129 | AI142: 1.556410256 | AT142: 129 | AU142: 0.3184554458 | BE142: 129 | BF142: 0.03802727255 | BT142: 129 | BU142: 25.27586207
J143: 130 | K143: 0.6972222222 | V143: 130 | W143: 0.4996527778 | AH143: 130 | AI143: 1.715384615 | AT143: 130 | AU143: 0.4954360911 | BE143: 130 | BF143: 0.01798129649 | BT143: 130 | BU143: 26.72413793
J144: 131 | K144: 0.7440972222 | V144: 131 | W144: 0.5954861111 | AH144: 131 | AI144: 1.796153846 | AT144: 131 | AU144: 0.4877443085 | BE144: 131 | BF144: 0.02632827005 | BT144: 131 | BU144: 27.5862069
J145: 132 | K145: 0.6201388889 | V145: 132 | W145: 0.4677083333 | AH145: 132 | AI145: 1.367948718 | AT145: 132 | AU145: 0.3586914031 | BE145: 132 | BF145: 0.03041442823 | BT145: 132 | BU145: 25.27586207
J146: 133 | K146: 0.7489583333 | V146: 133 | W146: 0.4934027778 | AH146: 133 | AI146: 1.808974359 | AT146: 133 | AU146: 0.4205180953 | BE146: 133 | BF146: 0.04653313125 | BT146: 133 | BU146: 31.89655172
J147: 134 | K147: 0.9621527778 | V147: 134 | W147: 0.6194444444 | AH147: 134 | AI147: 1.635897436 | AT147: 134 | AU147: 0.3206034987 | BE147: 134 | BF147: 0.0388388569 | BT147: 134 | BU147: 30.37931034
J148: 135 | K148: 0.5163194444 | V148: 135 | W148: 0.4784722222 | AH148: 135 | AI148: 2.266666667 | AT148: 135 | AU148: 0.5319990743 | BE148: 135 | BF148: 0.03483667165 | BT148: 135 | BU148: 27.72413793
J149: 136 | K149: 0.6329861111 | V149: 136 | W149: 0.4888888889 | AH149: 136 | AI149: 1.578205128 | AT149: 136 | AU149: 0.2860251931 | BE149: 136 | BF149: 0.05310705164 | BT149: 136 | BU149: 27.51724138
J150: 137 | K150: 0.6631944444 | V150: 137 | W150: 0.5121527778 | AH150: 137 | AI150: 1.328205128 | AT150: 137 | AU150: 0.5930974169 | BE150: 137 | BF150: 0.02018859828 | BT150: 137 | BU150: 29.72413793
J151: 138 | K151: 0.7642361111 | V151: 138 | W151: 0.4652777778 | AH151: 138 | AI151: 1.625641026 | AT151: 138 | AU151: 0.2533859467 | BE151: 138 | BF151: 0.01797287998 | BT151: 138 | BU151: 23.20689655
J152: 139 | K152: 0.7979166667 | V152: 139 | W152: 0.3833333333 | AH152: 139 | AI152: 1.81025641 | AT152: 139 | AU152: 0.5209458552 | BE152: 139 | BF152: 0.03729873415 | BT152: 139 | BU152: 26.03448276
J153: 140 | K153: 0.6621527778 | V153: 140 | W153: 0.5666666667 | AH153: 140 | AI153: 1.679487179 | AT153: 140 | AU153: 0.5213402802 | BE153: 140 | BF153: 0.01551906435 | BT153: 140 | BU153: 22.31034483
J154: 141 | K154: 0.7541666667 | V154: 141 | W154: 0.4496527778 | AH154: 141 | AI154: 1.432051282 | AT154: 141 | AU154: 0.50064385 | BE154: 141 | BF154: 0.03154522753 | BT154: 141 | BU154: 20
J155: 142 | K155: 0.9055555556 | V155: 142 | W155: 0.5118055556 | AH155: 142 | AI155: 1.698717949 | AT155: 142 | AU155: 0.2204608717 | BE155: 142 | BF155: 0.07007249283 | BT155: 142 | BU155: 29.24137931
J156: 143 | K156: 0.7097222222 | V156: 143 | W156: 0.6055555556 | AH156: 143 | AI156: 1.525641026 | AT156: 143 | AU156: 0.2803808469 | BE156: 143 | BF156: 0.02203255315 | BT156: 143 | BU156: 33.06896552
J157: 144 | K157: 0.5576388889 | V157: 144 | W157: 0.5670138889 | AH157: 144 | AI157: 1.958974359 | AT157: 144 | AU157: 0.2880172967 | BE157: 144 | BF157: 0.04321915013 | BT157: 144 | BU157: 27.51724138
J158: 145 | K158: 0.8034722222 | V158: 145 | W158: 0.4642361111 | AH158: 145 | AI158: 1.657692308 | AT158: 145 | AU158: 0.4219951516 | BE158: 145 | BF158: 0.02758576759 | BT158: 145 | BU158: 28.31034483
J159: 146 | K159: 0.7180555556 | V159: 146 | W159: 0.4416666667 | AH159: 146 | AI159: 1.714102564 | AT159: 146 | AU159: 0.4950522132 | BE159: 146 | BF159: 0.06382983283 | BT159: 146 | BU159: 27.13793103
J160: 147 | K160: 0.696875 | V160: 147 | W160: 0.6208333333 | AH160: 147 | AI160: 1.867948718 | AT160: 147 | AU160: 0.5134720407 | BE160: 147 | BF160: 0.05994206441 | BT160: 147 | BU160: 35.5862069
J161: 148 | K161: 0.7784722222 | V161: 148 | W161: 0.4513888889 | AH161: 148 | AI161: 0.9923076923 | AT161: 148 | AU161: 0.5149300665 | BE161: 148 | BF161: 0.0607873665 | BT161: 148 | BU161: 31.31034483
J162: 149 | K162: 0.9211805556 | V162: 149 | W162: 0.5142361111 | AH162: 149 | AI162: 2.108974359 | AT162: 149 | AU162: 0.6037614949 | BE162: 149 | BF162: 0.02389185518 | BT162: 149 | BU162: 28.86206897
J163: 150 | K163: 0.6451388889 | V163: 150 | W163: 0.4520833333 | AH163: 150 | AI163: 1.058974359 | AT163: 150 | AU163: 0.6064727857 | BE163: 150 | BF163: 0.0134640885 | BT163: 150 | BU163: 29.4137931
J164: 151 | K164: 0.8878472222 | V164: 151 | W164: 0.4760416667 | AH164: 151 | AI164: 1.602564103 | AT164: 151 | AU164: 0.5710427682 | BE164: 151 | BF164: 0.05592358218 | BT164: 151 | BU164: 29.89655172
J165: 152 | K165: 0.6253472222 | V165: 152 | W165: 0.6631944444 | AH165: 152 | AI165: 1.534615385 | AT165: 152 | AU165: 0.6762622557 | BE165: 152 | BF165: 0.04047190427 | BT165: 152 | BU165: 31.75862069
J166: 153 | K166: 0.7152777778 | V166: 153 | W166: 0.4579861111 | AH166: 153 | AI166: 1.751282051 | AT166: 153 | AU166: 0.3458208747 | BE166: 153 | BF166: 0.05000278606 | BT166: 153 | BU166: 29.5862069
J167: 154 | K167: 0.6986111111 | V167: 154 | W167: 0.5045138889 | AH167: 154 | AI167: 1.7 | AT167: 154 | AU167: 0.3845606366 | BE167: 154 | BF167: 0.03409455908 | BT167: 154 | BU167: 27.24137931
J168: 155 | K168: 0.7277777778 | V168: 155 | W168: 0.5194444444 | AH168: 155 | AI168: 1.141025641 | AT168: 155 | AU168: 0.1701576467 | BE168: 155 | BF168: 0.03308323245 | BT168: 155 | BU168: 24.72413793
J169: 156 | K169: 0.8184027778 | V169: 156 | W169: 0.4753472222 | AH169: 156 | AI169: 1.597435897 | AT169: 156 | AU169: 0.4214900413 | BE169: 156 | BF169: 0.0446367487 | BT169: 156 | BU169: 26.31034483
J170: 157 | K170: 0.6027777778 | V170: 157 | W170: 0.4815972222 | AH170: 157 | AI170: 1.553846154 | AT170: 157 | AU170: 0.4604510664 | BE170: 157 | BF170: 0.04430958962 | BT170: 157 | BU170: 26.10344828
J171: 158 | K171: 1.000694444 | V171: 158 | W171: 0.6166666667 | AH171: 158 | AI171: 1.991025641 | AT171: 158 | AU171: 0.4235022909 | BE171: 158 | BF171: 0.02730379682 | BT171: 158 | BU171: 23.82758621
J172: 159 | K172: 0.7996527778 | V172: 159 | W172: 0.5211805556 | AH172: 159 | AI172: 1.465384615 | AT172: 159 | AU172: 0.3805559732 | BE172: 159 | BF172: 0.01811633192 | BT172: 159 | BU172: 22.10344828
J173: 160 | K173: 0.6732638889 | V173: 160 | W173: 0.5631944444 | AH173: 160 | AI173: 1.302564103 | AT173: 160 | AU173: 0.4874096799 | BE173: 160 | BF173: 0.05858026298 | BT173: 160 | BU173: 23.24137931
J174: 161 | K174: 0.7715277778 | V174: 161 | W174: 0.3621527778 | AH174: 161 | AI174: 1.684615385 | AT174: 161 | AU174: 0.1849028831 | BE174: 161 | BF174: 0.04907897252 | BT174: 161 | BU174: 30.5862069
J175: 162 | K175: 0.6565972222 | V175: 162 | W175: 0.5135416667 | AH175: 162 | AI175: 1.682051282 | AT175: 162 | AU175: 0.4210322499 | BE175: 162 | BF175: 0.03872582807 | BT175: 162 | BU175: 28.44827586
J176: 163 | K176: 0.9149305556 | V176: 163 | W176: 0.5378472222 | AH176: 163 | AI176: 1.858974359 | AT176: 163 | AU176: 0.3216254459 | BE176: 163 | BF176: 0.0508220878 | BT176: 163 | BU176: 23.72413793
J177: 164 | K177: 0.7447916667 | V177: 164 | W177: 0.4541666667 | AH177: 164 | AI177: 0.9987179487 | AT177: 164 | AU177: 0.2383300446 | BE177: 164 | BF177: 0.07736342744 | BT177: 164 | BU177: 28.31034483
J178: 165 | K178: 0.8538194444 | V178: 165 | W178: 0.6055555556 | AH178: 165 | AI178: 1.676923077 | AT178: 165 | AU178: 0.2809669177 | BE178: 165 | BF178: 0.04348130521 | BT178: 165 | BU178: 30.86206897
J179: 166 | K179: 0.6989583333 | V179: 166 | W179: 0.4461805556 | AH179: 166 | AI179: 1.466666667 | AT179: 166 | AU179: 0.1874519898 | BE179: 166 | BF179: 0.02621306479 | BT179: 166 | BU179: 23.13793103
J180: 167 | K180: 0.7798611111 | V180: 167 | W180: 0.53125 | AH180: 167 | AI180: 1.562820513 | AT180: 167 | AU180: 0.3790344596 | BE180: 167 | BF180: 0.05866773285 | BT180: 167 | BU180: 22.75862069
J181: 168 | K181: 0.7715277778 | V181: 168 | W181: 0.5538194444 | AH181: 168 | AI181: 1.878205128 | AT181: 168 | AU181: 0.7169636532 | BE181: 168 | BF181: 0.0620190462 | BT181: 168 | BU181: 27.55172414
J182: 169 | K182: 0.9291666667 | V182: 169 | W182: 0.4819444444 | AH182: 169 | AI182: 1.835897436 | AT182: 169 | AU182: 0.3736253906 | BE182: 169 | BF182: 0.01742704843 | BT182: 169 | BU182: 24.68965517
J183: 170 | K183: 0.6326388889 | V183: 170 | W183: 0.4975694444 | AH183: 170 | AI183: 1.856410256 | AT183: 170 | AU183: 0.4081593495 | BE183: 170 | BF183: 0.05617884838 | BT183: 170 | BU183: 25.48275862
J184: 171 | K184: 0.7680555556 | V184: 171 | W184: 0.521875 | AH184: 171 | AI184: 1.206410256 | AT184: 171 | AU184: 0.230289905 | BE184: 171 | BF184: 0.03459142109 | BT184: 171 | BU184: 24.5862069
J185: 172 | K185: 0.6944444444 | V185: 172 | W185: 0.4482638889 | AH185: 172 | AI185: 1.25 | AT185: 172 | AU185: 0.3063168037 | BE185: 172 | BF185: 0.03700181325 | BT185: 172 | BU185: 27
J186: 173 | K186: 0.7708333333 | V186: 173 | W186: 0.4197916667 | AH186: 173 | AI186: 1.982051282 | AT186: 173 | AU186: 0.7217216813 | BE186: 173 | BF186: 0.0511053547 | BT186: 173 | BU186: 33.10344828
J187: 174 | K187: 1.085069444 | V187: 174 | W187: 0.4381944444 | AH187: 174 | AI187: 1.128205128 | AT187: 174 | AU187: 0.2222761513 | BE187: 174 | BF187: 0.0428771168 | BT187: 174 | BU187: 22.86206897
J188: 175 | K188: 0.6947916667 | V188: 175 | W188: 0.484375 | AH188: 175 | AI188: 1.785897436 | AT188: 175 | AU188: 0.421580051 | BE188: 175 | BF188: 0.05416787465 | BT188: 175 | BU188: 26.79310345
J189: 176 | K189: 0.6642361111 | V189: 176 | W189: 0.5399305556 | AH189: 176 | AI189: 1.314102564 | AT189: 176 | AU189: 0.6591768239 | BE189: 176 | BF189: 0.02240567574 | BT189: 176 | BU189: 29.20689655
J190: 177 | K190: 0.6822916667 | V190: 177 | W190: 0.5135416667 | AH190: 177 | AI190: 1.516666667 | AT190: 177 | AU190: 0.4796011144 | BE190: 177 | BF190: 0.04886187684 | BT190: 177 | BU190: 31
J191: 178 | K191: 0.7881944444 | V191: 178 | W191: 0.50625 | AH191: 178 | AI191: 1.733333333 | AT191: 178 | AU191: 0.3403077044 | BE191: 178 | BF191: 0.05155137179 | BT191: 178 | BU191: 27.31034483
J192: 179 | K192: 0.7569444444 | V192: 179 | W192: 0.4184027778 | AH192: 179 | AI192: 1.553846154 | AT192: 179 | AU192: 0.5765306254 | BE192: 179 | BF192: 0.05933233734 | BT192: 179 | BU192: 25.86206897
J193: 180 | K193: 0.81875 | V193: 180 | W193: 0.5142361111 | AH193: 180 | AI193: 1.38974359 | AT193: 180 | AU193: 0.3767876451 | BE193: 180 | BF193: 0.04016495735 | BT193: 180 | BU193: 23.65517241
J194: 181 | K194: 0.7590277778 | V194: 181 | W194: 0.4552083333 | AH194: 181 | AI194: 1.420512821 | AT194: 181 | AU194: 0.4091149863 | BE194: 181 | BF194: 0.05234701077 | BT194: 181 | BU194: 23.72413793
J195: 182 | K195: 0.7034722222 | V195: 182 | W195: 0.5642361111 | AH195: 182 | AI195: 1.542307692 | AT195: 182 | AU195: 0.4418842814 | BE195: 182 | BF195: 0.04602458008 | BT195: 182 | BU195: 20.79310345
J196: 183 | K196: 0.6934027778 | V196: 183 | W196: 0.6069444444 | AH196: 183 | AI196: 1.03974359 | AT196: 183 | AU196: 0.5173039489 | BE196: 183 | BF196: 0.03817623935 | BT196: 183 | BU196: 27.79310345
J197: 184 | K197: 0.7197916667 | V197: 184 | W197: 0.5166666667 | AH197: 184 | AI197: 1.557692308 | AT197: 184 | AU197: 0.4966469088 | BE197: 184 | BF197: 0.05855545055 | BT197: 184 | BU197: 28.03448276
J198: 185 | K198: 0.6694444444 | V198: 185 | W198: 0.5885416667 | AH198: 185 | AI198: 1.462820513 | AT198: 185 | AU198: 0.3042458691 | BE198: 185 | BF198: 0.02322974221 | BT198: 185 | BU198: 24.65517241
J199: 186 | K199: 0.7725694444 | V199: 186 | W199: 0.4892361111 | AH199: 186 | AI199: 1.480769231 | AT199: 186 | AU199: 0.6997469015 | BE199: 186 | BF199: 0.04096669273 | BT199: 186 | BU199: 23.24137931
J200: 187 | K200: 0.7288194444 | V200: 187 | W200: 0.4586805556 | AH200: 187 | AI200: 1.294871795 | AT200: 187 | AU200: 0.2708656584 | BE200: 187 | BF200: 0.05141980483 | BT200: 187 | BU200: 29.65517241
J201: 188 | K201: 0.7975694444 | V201: 188 | W201: 0.4840277778 | AH201: 188 | AI201: 1.433333333 | AT201: 188 | AU201: 0.7168547098 | BE201: 188 | BF201: 0.02489307199 | BT201: 188 | BU201: 27.82758621
J202: 189 | K202: 0.7395833333 | V202: 189 | W202: 0.5121527778 | AH202: 189 | AI202: 1.753846154 | AT202: 189 | AU202: 0.3432798619 | BE202: 189 | BF202: 0.02268147682 | BT202: 189 | BU202: 32.34482759
J203: 190 | K203: 0.6604166667 | V203: 190 | W203: 0.5055555556 | AH203: 190 | AI203: 2.16025641 | AT203: 190 | AU203: 0.180036554 | BE203: 190 | BF203: 0.03782565648 | BT203: 190 | BU203: 22.86206897
... 810 more rows

Sheet Analysis - NGO Survey
A1: Administrative Support Costs
A3: Cost Category | B3: Sub-category | C3: Allocation / Annuitization | D3: Total Cost | E3: NGO Allocation | F3: MOH Allocation | G3: Comments
A4: Overhead (Annual) | B4: Electricity | C4: Floor space +FTE | D4: ='Raw - NGO Survey'!B13/'Local Data'!B61 -> 12356.19751 | E4: =(SUM('Raw - NGO Survey'!$F$20:$F$25)/'Raw - NGO Survey'!$B$18)*D4 -> 721.9895797 | F4: - | G4: Not included in MOH scenario, considered research cost and common between arms
B5: Water | C5: Floor space +FTE | D5: ='Raw - NGO Survey'!B14/'Local Data'!B61 -> 2682.081955 | E5: =(SUM('Raw - NGO Survey'!$F$20:$F$25)/'Raw - NGO Survey'!$B$18)*D5 -> 156.7177299 | F5: -
B6: Gas Refills | C6: Floor space +FTE | D6: ='Raw - NGO Survey'!B16/'Local Data'!B61 -> 223.5344023 | E6: =(SUM('Raw - NGO Survey'!$F$20:$F$25)/'Raw - NGO Survey'!$B$18)*D6 -> 13.06142194 | F6: -
B7: Office Internet | C7: Floor space +FTE | D7: ='Raw - NGO Survey'!C57*110/'Local Data'!B61 -> 17070.93238 | E7: =(SUM('Raw - NGO Survey'!$F$20:$F$25)/'Raw - NGO Survey'!$B$18)*D7 -> 997.4780098 | F7: -
B8: Rent | C8: Floor space +FTE | D8: ='Raw - NGO Survey'!B17/'Local Data'!B61 -> 73906.49631 | E8: =(SUM('Raw - NGO Survey'!$F$20:$F$25)/'Raw - NGO Survey'!$B$18)*D8 -> 4318.45802 | F8: -
B9: TOTAL | D9: =SUM(D4:D8) -> 106239.2426 | E9: =SUM(E4:E8) -> 6207.704761 | F9: =SUM(F4:F8) -> 0
A10: Capital Investment | B10: APS Staff training (Initial) | C10: 5 year annuitization | D10: =('Raw - NGO Survey'!B40*'Raw - NGO Survey'!C40)/'Local Data'!B61 -> 1289.556291 | E10: =D10/((1-(1+'Local Data'!$B$63)^-5)/'Local Data'!$B$63) -> 281.5805112 | F10: =E10 -> 281.5805112 | G10: Direct, Fixed
B11: Dispenser on job training | C11: 5 year annuitization | D11: 0 | E11: =D11/((1-(1+'Local Data'!$B$63)^-5)/'Local Data'!$B$63) -> 0 | F11: =E11 -> 0
B12: APS refresher training | C12: 5 year annuitization | D12: =('Raw - NGO Survey'!C42*'Raw - NGO Survey'!B42)/'Local Data'!B61 -> 530.2451854 | E12: =D12/((1-(1+'Local Data'!$B$63)^-5)/'Local Data'!$B$63) -> 115.7814602 | G12: Considered common cost with comparator arm
B13: Tablets | C13: 5 year annuitization | D13: =(('Raw - NGO Survey'!C44*12)+('Raw - NGO Survey'!C44*3/2))/'Local Data'!B61 -> 1946.945788 | E13: =D13/((1-(1+'Local Data'!$B$63)^-5)/'Local Data'!$B$63) -> 425.124513 | G13: Considered common cost with comparator arm
B14: Computers (Laptops) | C14: 5 year annuitization | D14: =('Raw - NGO Survey'!C45*'Raw - NGO Survey'!B45)/'Local Data'!B61 -> 16967.84593 | E14: =D14/((1-(1+'Local Data'!$B$63)^-5)/'Local Data'!$B$63) -> 3705.006726 | G14: Considered common cost with comparator arm
B15: Phones | C15: 5 year annuitization | D15: =('Raw - NGO Survey'!C46*'Raw - NGO Survey'!B46)/'Local Data'!B61 -> 407.1264953 | E15: =D15/((1-(1+'Local Data'!$B$63)^-5)/'Local Data'!$B$63) -> 88.89793139 | G15: Considered common cost with comparator arm
B16: Printer | C16: 5 year annuitization | D16: =('Raw - NGO Survey'!C47*'Raw - NGO Survey'!B47)/'Local Data'!B61 -> 762.1896157 | E16: =D16/((1-(1+'Local Data'!$B$63)^-5)/'Local Data'!$B$63) -> 166.4275869 | G16: Considered common cost with comparator arm
B17: Vehicle - Toyota Double CAB | C17: 10 year annuitization | D17: =6500000/'Local Data'!B61 -> 55145.49928 | E17: =D17/((1-(1+'Local Data'!$B$63)^-10)/'Local Data'!$B$63) -> 6464.734817 | F17: =E17*('Local Data'!B7/('Local Data'!B9+'Local Data'!B7)) -> 2456.66227 | G17: Apportioned by number of patients seen at pharmacy
B18: Cabinets | C18: 5 year annuitization | D18: =('Raw - NGO Survey'!C50*'Raw - NGO Survey'!B50)/'Local Data'!B61 -> 1728.965131 | E18: =D18/((1-(1+'Local Data'!$B$63)^-5)/'Local Data'!$B$63) -> 377.5274402 | G18: Included under health facility survey
B19: TOTAL | D19: =SUM(D10:D18) -> 78778.37372 | E19: =SUM(E10:E18) -> 11625.08099 | F19: =SUM(F10:F18) -> 2738.242782
A20: Operational Costs | B20: Supervisory Field Trips | D20: ='Raw - NGO Survey'!C70/'Local Data'!B61 -> 9173.895817 | E20: =D20*1 -> 9173.895817 | F20: =E20*'Local Data'!B7/('Local Data'!B9+'Local Data'!B7) -> 3486.169868 | G20: Apportioned by number of patients seen at pharmacy
B21: Printing | C21: Catridges and Sheets | D21: =(('Raw - NGO Survey'!B58*'Raw - NGO Survey'!C58)+('Raw - NGO Survey'!B59*'Raw - NGO Survey'!C59))/'Local Data'!B61 -> 134.470179 | E21: =D21 -> 134.470179 | G21: Considered common cost with comparator arm
B22: Bar Code Labels | D22: ='Raw - NGO Survey'!C62*110/'Local Data'!B61 -> 36.8719776 | E22: =D22 -> 36.8719776 | G22: Considered research cost, and common cost between arms
B23: Files | D23: ='Raw - NGO Survey'!C63/'Local Data'!B61 -> 606.6004921 | E23: =D23 -> 606.6004921 | G23: Considered common cost with comparator arm
A24: Communication Costs | B24: Health advisor | C24: per FTE | D24: =('Raw - NGO Survey'!B76*'Raw - NGO Survey'!C76)*12/'Local Data'!B61 -> 458.1318402 | E24: =D24*1 -> 458.1318402 | G24: Covered under time and motion, coordination costs considered common between arms
B25: HTS provider | C25: per FTE | D25: =('Raw - NGO Survey'!B77*'Raw - NGO Survey'!C77)*12/'Local Data'!B61 -> 916.2636803 | E25: =D25*1 -> 916.2636803 | G25: Covered under time and motion, coordination costs considered common between arms
B26: Administrator | C26: per FTE | D26: =('Raw - NGO Survey'!B78*'Raw - NGO Survey'!C78)*12/'Local Data'!B61 -> 0 | E26: =D26*1 -> 0 | G26: Considered common between arms
B27: Data manager | C27: per FTE | D27: =('Raw - NGO Survey'!B79*'Raw - NGO Survey'!C79)*12/'Local Data'!B61 -> 407.2283024 | E27: 407.2283024 | G27: Considered research costs and common between arms
B28: Study coordinator | C28: per FTE | D28: =('Raw - NGO Survey'!B80*'Raw - NGO Survey'!C80)*12/'Local Data'!B61 -> 407.2283024 | E28: 407.2283024 | G28: Considered common between arms
B29: Accountant | C29: per FTE | D29: =('Raw - NGO Survey'!B81*'Raw - NGO Survey'!C81)*12/'Local Data'!B61 -> 305.4212268 | E29: =D29*5% -> 15.27106134 | G29: Considered common cost
B30: Site PI | C30: per FTE | D30: =('Raw - NGO Survey'!B82*'Raw - NGO Survey'!C82)*12/'Local Data'!B61 -> 610.8424536 | E30: =D30*3% -> 18.32527361 | G30: Considered research cost
B31: Dispensing points | C31: per FTE | D31: =('Raw - NGO Survey'!B83*'Raw - NGO Survey'!C83)*12/'Local Data'!B61 -> 427.5897175 | E31: =D31*1 -> 427.5897175 | F31: =E31 -> 427.5897175
B32: Health advisor - Data Bundles | C32: per FTE | D32: =('Raw - NGO Survey'!B85*'Raw - NGO Survey'!C85)*12/'Local Data'!B61 -> 76.35530669 | E32: =D32*1 -> 76.35530669 | G32: Considered common between arms
B33: HTS provider - Data Bundles | C33: per FTE | D33: =('Raw - NGO Survey'!B86*'Raw - NGO Survey'!C86)*12/'Local Data'!B61 -> 305.4212268 | E33: =D33*1 -> 305.4212268 | G33: Considered common between arms
B34: TOTAL | D34: =SUM(D20:D33) -> 13866.32052 | E34: =SUM(E20:E33) -> 12983.65318 | F34: =SUM(F20:F33) -> 3913.759586
A35: Direct Supplies/operational | B35: HIVST Kits | C35: Purchase cost | D35: =(65/25) -> 2.6 | E35: =D35 -> 2.6 | F35: =D35 -> 2.6 | G35: HIVST purchase cost at KEMSA
B36: HTS reimbursements | C36: Daily travel allowance | D36: =300/'Local Data'!B61 -> 2.54517689 | E36: =D36 -> 2.54517689 | F36: - | G36: Considered common between arms
B37: HIVST Dispensing Fee | C37: per HIVST dispensing | D37: =100/'Local Data'!B61 -> 0.8483922966 | E37: =D37 -> 0.8483922966 | F37: =E37 -> 0.8483922966
A38: Personnel (Annual) | B38: Study Coordinator | C38: per FTE - 100% | D38: =1255440/'Local Data'!B61 -> 10651.05625 | E38: ='Raw - NGO Survey'!C30*D38 -> 2130.21125 | F38: =E38*('Local Data'!B7/('Local Data'!B9+'Local Data'!B7)) -> 809.5010473 | G38: 20% FTE Apportioned by number of patients seen at pharmacy | H38: Masters, PH
B39: Data Manager | C39: per FTE - 100% | D39: =1140840/'Local Data'!B61 -> 9678.798677 | E39: ='Raw - NGO Survey'!C31*D39 -> 9678.798677 | G39: Considered common between arms, as apportioned by number of test | H39: Degree, PH
B40: Health advisor | C40: per FTE - 300% | D40: =887640/'Local Data'!B61 -> 7530.669382 | E40: ='Raw - NGO Survey'!C32*D40 -> 22592.00814 | G40: Included in time and motion survey | H40: Diploma PH
B41: HTS provider | C41: per FTE - 1200% | D41: =722040/'Local Data'!B61 -> 6125.731738 | E41: ='Raw - NGO Survey'!C33*D41 -> 73508.78086 | G41: Included in time and motion survey | H41: Cert PH
B42: Driver | C42: per FTE - 100% | D42: =493200/'Local Data'!B61 -> 4184.270807 | E42: ='Raw - NGO Survey'!C34*D42 -> 836.8541614 | F42: =E42*('Local Data'!B7/('Local Data'!B9+'Local Data'!B7)) -> 318.0127418 | G42: 20% FTE Apportioned by number of tests at intervention sites only
B43: Accountant | C43: per FTE - 5% | D43: =1219440/'Local Data'!B61 -> 10345.63502 | E43: ='Raw - NGO Survey'!C35*D43 -> 517.2817511 | G43: Considered common between arms, as apportioned by number of test | H43: Degree Acc
B44: Administrator | C44: per FTE- 100% | D44: =1219440/'Local Data'!B61 -> 10345.63502 | E44: ='Raw - NGO Survey'!C36*D44 -> 2069.127004 | G44: Considered common between arms, as apportioned by number of test | H44: Degree Admin
B45: Country Lead / PI | C45: per FTE- 3% | D45: =2909640/'Local Data'!B61 -> 24685.16162 | E45: ='Raw - NGO Survey'!C37*D45 -> 617.1290405 | G45: Considered common between arms, as apportioned by number of test | H45: Degree PH
B46: TOTAL | D46: =SUM(D38:D45) -> 83546.95851 | E46: =SUM(E38:E45) -> 111950.1909 | F46: =SUM(F38:F45) -> 1127.513789
D48: =D38/124880 -> 0.0852903287
D49: =D48*60 -> 5.117419722

Sheet Analysis - Facility Survey
A1: Administrative Support Costs
A3: Cost Category | B3: Sub-category | C3: Facility 1 | D3: Facility 2 | E3: Facility 3 | F3: Facility 4 | G3: Facility 5 | H3: Facility 6 | I3: Facility 7 | J3: Facility 8 | K3: Facility 9 | L3: Facility 10 | M3: Facility 11 | N3: Facility 12
A4: Facility Cost (Annual) | B4: Total overhead cost | C4: =SUM('Raw - Facility Survey'!B8:B15)/'Local Data'!B61 -> 15729.19318 | D4: =SUM('Raw - Facility Survey'!D8:D15)/'Local Data'!B61 -> 2952.405192 | E4: =SUM('Raw - Facility Survey'!F8:F15)/'Local Data'!B61 -> 1018.070756 | F4: =SUM('Raw - Facility Survey'!H8:H15)/'Local Data'!B61 -> 20463.22219 | G4: =SUM('Raw - Facility Survey'!J8:J15)/'Local Data'!B61 -> 899.2958344 | H4: =SUM('Raw - Facility Survey'!L8:L15)/'Local Data'!B61 -> 54564.28268 | I4: =SUM('Raw - Facility Survey'!N8:N15)/'Local Data'!B61 -> 2137.948587 | J4: =SUM('Raw - Facility Survey'!P8:P15)/'Local Data'!B61 -> 11809.62077 | K4: =SUM('Raw - Facility Survey'!R8:R15)/'Local Data'!B61 -> 3181.471112 | L4: =SUM('Raw - Facility Survey'!T8:T15)/'Local Data'!B61 -> 4143.547977 | M4: =SUM('Raw - Facility Survey'!V8:V15)/'Local Data'!B61 -> 1340.459829 | N4: =SUM('Raw - Facility Survey'!X8:X15)/'Local Data'!B61 -> 1153.813523
B5: HTS Floor space | C5: ='Raw - Facility Survey'!B47 -> 25 | D5: ='Raw - Facility Survey'!D47 -> 10 | E5: ='Raw - Facility Survey'!F47 -> 25 | F5: ='Raw - Facility Survey'!H47 -> 210 | G5: ='Raw - Facility Survey'!J47 -> 16 | H5: ='Raw - Facility Survey'!L47 -> 30 | I5: ='Raw - Facility Survey'!N47 -> 144 | J5: ='Raw - Facility Survey'!P47 -> 72 | K5: ='Raw - Facility Survey'!R47 -> 72 | L5: ='Raw - Facility Survey'!T47 -> 106 | M5: ='Raw - Facility Survey'!V47 -> 30 | N5: ='Raw - Facility Survey'!X47 -> 25
B6: Other testing spaces
B7: Total Floor Space | C7: =SUM('Raw - Facility Survey'!B17:B47) -> 4324 | D7: =SUM('Raw - Facility Survey'!D17:D47) -> 280 | E7: =SUM('Raw - Facility Survey'!F17:F47) -> 1466 | F7: =SUM('Raw - Facility Survey'!H17:H47) -> 3440 | G7: =SUM('Raw - Facility Survey'!J17:J47) -> 661 | H7: =SUM('Raw - Facility Survey'!L17:L47) -> 10194 | I7: =SUM('Raw - Facility Survey'!N17:N47) -> 633 | J7: =SUM('Raw - Facility Survey'!P17:P47) -> 3051 | K7: =SUM('Raw - Facility Survey'!R17:R47) -> 916 | L7: =SUM('Raw - Facility Survey'!T17:T47) -> 1187 | M7: =SUM('Raw - Facility Survey'!V17:V47) -> 3181 | N7: =SUM('Raw - Facility Survey'!X17:X47) -> 552
B8: Allocated Amount | C8: =((C5+C6)/C7)*C4 -> 90.94121866 | D8: =((D5+D6)/D7)*D4 -> 105.4430426 | E8: 17.36137033 | F8: 1249.208332 | G8: 21.76812912 | H8: 160.5776418 | I8: 486.3579725 | J8: 278.6931155 | K8: 250.0719652 | L8: 370.021976 | M8: =((M5+M6)/M7)*M4 -> 12.64187201 | N8: =((N5+N6)/N7)*N4 -> 52.25604725
A9: Overhead / Person tested | B9: Storage cabinet | C9: ='Raw - NGO Survey'!$C$50*'Raw - Facility Survey'!B80/'Local Data'!B61 -> 14.40804276 | D9: ='Raw - NGO Survey'!$C$50*'Raw - Facility Survey'!D80/'Local Data'!B61 -> 47.97878239 | E9: ='Raw - NGO Survey'!$C$50*'Raw - Facility Survey'!F80/'Local Data'!B61 -> 47.97878239 | F9: ='Raw - NGO Survey'!$C$50*'Raw - Facility Survey'!H80/'Local Data'!B61 -> 36.0201069 | G9: ='Raw - NGO Survey'!$C$50*'Raw - Facility Survey'!J80/'Local Data'!B61 -> 14.40804276 | H9: ='Raw - NGO Survey'!$C$50*'Raw - Facility Survey'!L80/'Local Data'!B61 -> 144.0804276 | I9: ='Raw - NGO Survey'!$C$50*'Raw - Facility Survey'!N80/'Local Data'!B61 -> 47.97878239 | J9: ='Raw - NGO Survey'!$C$50*'Raw - Facility Survey'!P80/'Local Data'!B61 -> 144.0804276 | K9: ='Raw - NGO Survey'!$C$50*'Raw - Facility Survey'!R80/'Local Data'!B61 -> 14.40804276 | L9: ='Raw - NGO Survey'!$C$50*'Raw - Facility Survey'!T80/'Local Data'!B61 -> 36.0201069 | M9: ='Raw - NGO Survey'!$C$50*'Raw - Facility Survey'!V80/'Local Data'!B61 -> 36.0201069 | N9: ='Raw - NGO Survey'!$C$50*'Raw - Facility Survey'!X80/'Local Data'!B61 -> 100.8562993
B10: HTS Floor space value | C10: =C5*(('Local Data'!$B$73)^2)*'Local Data'!$B$66 -> 241.144717 | D10: =D5*(('Local Data'!$B$73)^2)*'Local Data'!$B$66 -> 96.4578868 | E10: =E5*(('Local Data'!$B$73)^2)*'Local Data'!$B$66 -> 241.144717 | F10: =F5*(('Local Data'!$B$73)^2)*'Local Data'!$B$66 -> 2025.615623 | G10: =G5*(('Local Data'!$B$73)^2)*'Local Data'!$B$66 -> 154.3326189 | H10: =H5*(('Local Data'!$B$73)^2)*'Local Data'!$B$66 -> 289.3736604 | I10: =I5*(('Local Data'!$B$73)^2)*'Local Data'!$B$66 -> 1388.99357 | J10: =J5*(('Local Data'!$B$73)^2)*'Local Data'!$B$66 -> 694.496785 | K10: =K5*(('Local Data'!$B$73)^2)*'Local Data'!$B$66 -> 694.496785 | L10: =L5*(('Local Data'!$B$73)^2)*'Local Data'!$B$66 -> 1022.4536 | M10: =M5*(('Local Data'!$B$73)^2)*'Local Data'!$B$66 -> 289.3736604 | N10: =N5*(('Local Data'!$B$73)^2)*'Local Data'!$B$66 -> 241.144717
B11: Total number tested | C11: ='Raw - Facility Survey'!B50+'Raw - Facility Survey'!B54+'Raw - Facility Survey'!B55 -> 1493 | D11: ='Raw - Facility Survey'!D50+'Raw - Facility Survey'!D54+'Raw - Facility Survey'!D55 -> 903 | E11: ='Raw - Facility Survey'!F50+'Raw - Facility Survey'!F54+'Raw - Facility Survey'!F55 -> 673 | F11: ='Raw - Facility Survey'!H50+'Raw - Facility Survey'!H54+'Raw - Facility Survey'!H55 -> 1663 | G11: ='Raw - Facility Survey'!J50+'Raw - Facility Survey'!J54+'Raw - Facility Survey'!J55 -> 817 | H11: ='Raw - Facility Survey'!L50+'Raw - Facility Survey'!L54+'Raw - Facility Survey'!L55 -> 3730 | I11: ='Raw - Facility Survey'!N50+'Raw - Facility Survey'!N54+'Raw - Facility Survey'!N55 -> 363 | J11: ='Raw - Facility Survey'!P50+'Raw - Facility Survey'!P54+'Raw - Facility Survey'!P55 -> 680 | K11: ='Raw - Facility Survey'!R50+'Raw - Facility Survey'!R54+'Raw - Facility Survey'!R55 -> 4091 | L11: ='Raw - Facility Survey'!T50+'Raw - Facility Survey'!T54+'Raw - Facility Survey'!T55 -> 2914 | M11: ='Raw - Facility Survey'!V50+'Raw - Facility Survey'!V54+'Raw - Facility Survey'!V55 -> 805 | N11: ='Raw - Facility Survey'!X50+'Raw - Facility Survey'!X54+'Raw - Facility Survey'!X55 -> 636
B12: Overhead allocation per test | C12: =(C8+C9+C10)/C11 -> 0.232079021 | D12: =(D8+D9+D10)/D11 -> 0.2767217185 | E12: 0.4554009951 | F12: 1.990886387 | G12: 0.2331808944 | H12: 0.1592578364 | I12: 5.298430647 | J12: 1.6430446 | K12: 0.2344113402 | L12: 0.4902181479 | M12: =(M8+M9+M10)/M11 -> 0.4199200488 | N12: =(N8+N9+N10)/N11 -> 0.6199010433
A13: Variable Cost | O13: UNIT COST | P13: Av units | Q13: Total | R13: Adjusted | S13: Comments
A14: Determine (1st Serial Test) | B14: ='Raw - Facility Survey'!A72 -> Latex gloves | C14: ='Raw - Facility Survey'!B72 -> 1 | D14: ='Raw - Facility Survey'!D84 -> 1 | E14: ='Raw - Facility Survey'!F84 -> 1 | F14: ='Raw - Facility Survey'!H72 -> 1 | G14: ='Raw - Facility Survey'!J72 -> 1 | H14: ='Raw - Facility Survey'!L72 -> 1 | I14: ='Raw - Facility Survey'!N72 -> 1 | J14: ='Raw - Facility Survey'!P72 -> 1 | K14: ='Raw - Facility Survey'!R72 -> 1 | L14: ='Raw - Facility Survey'!T72 -> 1 | M14: ='Raw - Facility Survey'!V72 -> 1 | N14: 1 | O14: =('Local Data'!B67/50) -> 0.1272588445 | P14: =AVERAGE(C14:N14) -> 1 | Q14: =O14*P14 -> 0.1272588445 | R14: =Q14*(1+$P$31) -> 0.1366221052
B15: ='Raw - Facility Survey'!A73 -> Alcohol swabs | C15: ='Raw - Facility Survey'!B73 -> 1 | D15: ='Raw - Facility Survey'!D85 -> 1 | E15: ='Raw - Facility Survey'!F85 -> 1 | F15: ='Raw - Facility Survey'!H73 -> 0 | G15: ='Raw - Facility Survey'!J73 -> 1 | H15: ='Raw - Facility Survey'!L73 -> 1 | I15: ='Raw - Facility Survey'!N73 -> 1 | J15: ='Raw - Facility Survey'!P73 -> 1 | K15: ='Raw - Facility Survey'!R73 -> 1 | L15: ='Raw - Facility Survey'!T73 -> 1 | M15: ='Raw - Facility Survey'!V73 -> 2 | N15: 1 | O15: =(('Local Data'!B68/100)*2) -> 0.01527106134 | P15: =AVERAGE(C15:N15) -> 1 | Q15: 0.01527106134 | R15: =Q15*(1+$P$31) -> 0.01639465263
B16: ='Raw - Facility Survey'!A74 -> Cotton wool/Spirit | C16: ='Raw - Facility Survey'!B74 -> 0 | D16: ='Raw - Facility Survey'!D86 -> 3 | E16: ='Raw - Facility Survey'!F86 -> 2 | F16: ='Raw - Facility Survey'!H74 -> 1 | G16: ='Raw - Facility Survey'!J74 -> 0 | H16: ='Raw - Facility Survey'!L74 -> 0 | I16: ='Raw - Facility Survey'!N74 -> 0 | J16: ='Raw - Facility Survey'!P74 -> 2 | K16: ='Raw - Facility Survey'!R74 -> 1 | L16: ='Raw - Facility Survey'!T74 -> 1 | M16: ='Raw - Facility Survey'!V74 -> 0 | N16: 1 | O16: 0 | P16: =AVERAGE(C16:N16) -> 0.9166666667 | Q16: 0 | R16: 0 | S16: included under swabs
B17: ='Raw - Facility Survey'!A75 -> Prickers | C17: ='Raw - Facility Survey'!B75 -> 0 | D17: ='Raw - Facility Survey'!D87 -> 1 | E17: ='Raw - Facility Survey'!F87 -> 1 | F17: ='Raw - Facility Survey'!H75 -> 1 | G17: ='Raw - Facility Survey'!J75 -> 0 | H17: ='Raw - Facility Survey'!L75 -> 1 | I17: ='Raw - Facility Survey'!N75 -> 1 | J17: ='Raw - Facility Survey'!P75 -> 0 | K17: ='Raw - Facility Survey'!R75 -> 0 | L17: ='Raw - Facility Survey'!T75 -> 0 | M17: ='Raw - Facility Survey'!V75 -> 0 | N17: 1 | O17: 0 | P17: 0.5 | Q17: 0 | R17: 0 | S17: included in test kits
B18: ='Raw - Facility Survey'!A76 -> Capillary Tubes | C18: ='Raw - Facility Survey'!B76 -> 0 | D18: ='Raw - Facility Survey'!D88 -> 0 | E18: ='Raw - Facility Survey'!F88 -> 0 | F18: ='Raw - Facility Survey'!H76 -> 0 | G18: ='Raw - Facility Survey'!J76 -> 0 | H18: ='Raw - Facility Survey'!L76 -> 0 | I18: ='Raw - Facility Survey'!N76 -> 1 | J18: ='Raw - Facility Survey'!P76 -> 0 | K18: ='Raw - Facility Survey'!R76 -> 0 | L18: ='Raw - Facility Survey'!T76 -> 0 | M18: ='Raw - Facility Survey'!V76 -> 1 | O18: 0 | P18: 0.1818181818 | Q18: 0 | R18: 0 | S18: included in test kits
B19: ='Raw - Facility Survey'!A77 -> Test Kits | C19: ='Raw - Facility Survey'!B77 -> 1 | D19: 1 | E19: ='Raw - Facility Survey'!F89 -> 1 | F19: ='Raw - Facility Survey'!H77 -> 1 | G19: ='Raw - Facility Survey'!J77 -> 1 | H19: ='Raw - Facility Survey'!L77 -> 1 | I19: 1 | J19: ='Raw - Facility Survey'!P77 -> 1 | K19: ='Raw - Facility Survey'!R77 -> 1 | L19: 1 | M19: ='Raw - Facility Survey'!V77 -> 1 | N19: 1 | O19: =('Local Data'!E50*1.215)*1.08 -> 1.102248 | P19: 1 | Q19: 1.102248 | R19: 1.183347553
B20: ='Raw - Facility Survey'!A78 -> Bin liner & sharp box | C20: ='Raw - Facility Survey'!B78 -> 0 | D20: ='Raw - Facility Survey'!D90 -> 0 | E20: ='Raw - Facility Survey'!F90 -> 0 | F20: ='Raw - Facility Survey'!H78 -> 2 | G20: ='Raw - Facility Survey'!J78 -> 2 | H20: ='Raw - Facility Survey'!L78 -> 1 | I20: ='Raw - Facility Survey'!N78 -> 1 | J20: ='Raw - Facility Survey'!P78 -> 1 | K20: ='Raw - Facility Survey'!R78 -> 1 | L20: ='Raw - Facility Survey'!T78 -> 1 | M20: ='Raw - Facility Survey'!V78 -> 3 | N20: 1 | O20: =('Local Data'!B69/500) -> 0.05938746076 | P20: 1.083333333 | Q20: 0.06433641583 | R20: =Q20*(1+$P$31) -> 0.06907006432
B21: TOTAL Cost | Q21: =SUM(Q14:Q20) -> 1.309114322 | R21: =Q21*(1+$P$31) -> 1.405434375 | S21: =Q19/Q21 -> 0.8419799415 | T21: Proportion of test kit cost
A22: First Response (2nd Serial Test) | B22: ='Raw - Facility Survey'!A84 -> Latex gloves | C22: ='Raw - Facility Survey'!B84 -> 1 | D22: ='Raw - Facility Survey'!D84 -> 1 | E22: ='Raw - Facility Survey'!F84 -> 1 | F22: ='Raw - Facility Survey'!H84 -> 1 | G22: ='Raw - Facility Survey'!J84 -> 1 | H22: ='Raw - Facility Survey'!L84 -> 1 | I22: ='Raw - Facility Survey'!N84 -> 1 | J22: ='Raw - Facility Survey'!P84 -> 1 | K22: ='Raw - Facility Survey'!R84 -> 1 | L22: ='Raw - Facility Survey'!T84 -> 1 | M22: ='Raw - Facility Survey'!V84 -> 1 | N22: 1 | O22: =O14 -> 0.1272588445 | P22: =AVERAGE(C22:N22) -> 1 | Q22: =O22*P22 -> 0.1272588445 | R22: 0.1366221052
B23: ='Raw - Facility Survey'!A85 -> Alcohol swabs | C23: ='Raw - Facility Survey'!B85 -> 1 | D23: ='Raw - Facility Survey'!D85 -> 1 | E23: ='Raw - Facility Survey'!F85 -> 1 | F23: ='Raw - Facility Survey'!H85 -> 0 | G23: ='Raw - Facility Survey'!J85 -> 2 | H23: ='Raw - Facility Survey'!L85 -> 1 | I23: ='Raw - Facility Survey'!N85 -> 1 | J23: ='Raw - Facility Survey'!P85 -> 1 | K23: ='Raw - Facility Survey'!R85 -> 1 | L23: ='Raw - Facility Survey'!T85 -> 1 | M23: ='Raw - Facility Survey'!V85 -> 2 | N23: 1 | O23: =O15 -> 0.01527106134 | P23: =AVERAGE(C23:N23) -> 1.083333333 | Q23: =O23*P23 -> 0.01654364978 | R23: 0.01776087368
B24: ='Raw - Facility Survey'!A86 -> Bin liner & sharp box | C24: ='Raw - Facility Survey'!B86 -> 0 | D24: ='Raw - Facility Survey'!D86 -> 3 | E24: ='Raw - Facility Survey'!F86 -> 2 | F24: ='Raw - Facility Survey'!H86 -> 2 | G24: ='Raw - Facility Survey'!J86 -> 2 | H24: ='Raw - Facility Survey'!L86 -> 1 | I24: ='Raw - Facility Survey'!N86 -> 1 | J24: ='Raw - Facility Survey'!P86 -> 1 | K24: ='Raw - Facility Survey'!R86 -> 1 | L24: ='Raw - Facility Survey'!T86 -> 1 | M24: ='Raw - Facility Survey'!V86 -> 3 | N24: 1 | O24: =O20 -> 0.05938746076 | P24: 1.5 | Q24: 0.08908119114 | R24: 0.09563547367
B25: ='Raw - Facility Survey'!A87 -> Test Kits | C25: ='Raw - Facility Survey'!B87 -> 1 | D25: ='Raw - Facility Survey'!D87 -> 1 | E25: ='Raw - Facility Survey'!F87 -> 1 | F25: ='Raw - Facility Survey'!H87 -> 1 | G25: ='Raw - Facility Survey'!J87 -> 1 | H25: ='Raw - Facility Survey'!L87 -> 1 | I25: ='Raw - Facility Survey'!N87 -> 1 | J25: 1 | K25: ='Raw - Facility Survey'!R87 -> 1 | L25: ='Raw - Facility Survey'!T87 -> 1 | M25: 1 | N25: 1 | O25: =('Local Data'!F50*1.215)*1.08 -> 1.3122 | P25: 1 | Q25: 1.3122 | R25: 1.408747087
B26: ='Raw - Facility Survey'!A88 -> Prickers | C26: ='Raw - Facility Survey'!B88 -> 0 | D26: ='Raw - Facility Survey'!D88 -> 0 | E26: ='Raw - Facility Survey'!F88 -> 0 | F26: ='Raw - Facility Survey'!H88 -> 1 | G26: ='Raw - Facility Survey'!J88 -> 0 | H26: ='Raw - Facility Survey'!L88 -> 1 | I26: ='Raw - Facility Survey'!N88 -> 0 | J26: ='Raw - Facility Survey'!P88 -> 0 | K26: ='Raw - Facility Survey'!R88 -> 0 | L26: ='Raw - Facility Survey'!T88 -> 0 | M26: ='Raw - Facility Survey'!V88 -> 0 | O26: 0 | P26: 0.1818181818 | Q26: 0 | R26: 0 | S26: included in test kits
B27: ='Raw - Facility Survey'!A89 -> Capillary Tubes | C27: ='Raw - Facility Survey'!B89 -> 0 | D27: ='Raw - Facility Survey'!D89 -> 0 | E27: ='Raw - Facility Survey'!F89 -> 1 | F27: ='Raw - Facility Survey'!H89 -> 0 | G27: ='Raw - Facility Survey'!J89 -> 0 | H27: ='Raw - Facility Survey'!L89 -> 0 | I27: ='Raw - Facility Survey'!N89 -> 1 | J27: ='Raw - Facility Survey'!P89 -> 0 | K27: ='Raw - Facility Survey'!R89 -> 0 | L27: ='Raw - Facility Survey'!T89 -> 0 | M27: ='Raw - Facility Survey'!V89 -> 1 | N27: 1 | O27: 0 | P27: 0.3333333333 | Q27: 0 | R27: 0 | S27: included in test kits
B28: ='Raw - Facility Survey'!A90 -> Spirit and Wool | C28: ='Raw - Facility Survey'!B90 -> 0 | D28: ='Raw - Facility Survey'!D90 -> 0 | E28: ='Raw - Facility Survey'!F90 -> 0 | F28: ='Raw - Facility Survey'!H90 -> 1 | G28: ='Raw - Facility Survey'!J90 -> 0 | H28: ='Raw - Facility Survey'!L90 -> 0 | I28: ='Raw - Facility Survey'!N90 -> 0 | J28: ='Raw - Facility Survey'!P90 -> 2 | K28: ='Raw - Facility Survey'!R90 -> 1 | L28: ='Raw - Facility Survey'!T90 -> 1 | M28: ='Raw - Facility Survey'!V90 -> 0 | N28: 1 | O28: 0 | P28: 0.5 | Q28: 0 | R28: 0 | S28: included under swabs
B29: TOTAL Cost | Q29: =SUM(Q22:Q28) -> 1.545083685 | R29: =Q29*(1+$P$31) -> 1.65876554 | S29: =Q25/Q29 -> 0.8492743871 | T29: Proportion of test kit cost
A30: TEST Quality Procedures | B30: Total QA/QC Tests | C30: ='Raw - Facility Survey'!B54+'Raw - Facility Survey'!B55 -> 94 | D30: ='Raw - Facility Survey'!D54+'Raw - Facility Survey'!D55 -> 54 | E30: ='Raw - Facility Survey'!F54+'Raw - Facility Survey'!F55 -> 78 | F30: ='Raw - Facility Survey'!H54+'Raw - Facility Survey'!H55 -> 98 | G30: ='Raw - Facility Survey'!J54+'Raw - Facility Survey'!J55 -> 66 | H30: ='Raw - Facility Survey'!L54+'Raw - Facility Survey'!L55 -> 203 | I30: ='Raw - Facility Survey'!N54+'Raw - Facility Survey'!N55 -> 14 | J30: ='Raw - Facility Survey'!P54+'Raw - Facility Survey'!P55 -> 69 | K30: ='Raw - Facility Survey'!R54+'Raw - Facility Survey'!R55 -> 68 | L30: ='Raw - Facility Survey'!T54+'Raw - Facility Survey'!T55 -> 116 | M30: ='Raw - Facility Survey'!V54+'Raw - Facility Survey'!V55 -> 54 | N30: ='Raw - Facility Survey'!X54+'Raw - Facility Survey'!X55 -> 73
B31: Proportion of repeats/QA | C31: =C30/(C11-C30) -> 0.06719085061 | D31: 0.06360424028 | E31: 0.131092437 | F31: 0.06261980831 | G31: 0.0878828229 | H31: 0.0575559966 | I31: 0.04011461318 | J31: 0.1129296236 | K31: 0.01690280885 | L31: 0.04145818442 | M31: =M30/(M11-M30) -> 0.07190412783 | N31: =N30/(N11-N30) -> 0.1296625222 | O31: Av Adj. Factor | P31: =AVERAGE(C31:N31) -> 0.07357650298

Sheet Raw Time Motion - HIVST
A1: TIME AND MOTION SURVEY (PARTNER TRACING AND NOTIFICATION PROCEDURES)
A2: Record Number | B2: 1 | C2: 2 | D2: 3 | E2: 4 | F2: 5 | G2: 6 | H2: 7 | I2: 8 | J2: 9 | K2: 10 | L2: 11 | M2: 12 | N2: 13 | O2: 14 | P2: 15 | Q2: 16 | R2: 17 | S2: 18 | T2: 19 | U2: 20 | V2: 21 | W2: 22 | X2: 23 | Y2: 24 | Z2: 25 | AA2: 26 | AB2: 27 | AC2: 28 | AD2: 29 | AE2: 30 | AF2: 31 | AG2: 32 | AH2: 33 | AI2: 34 | AJ2: 35 | AK2: 36 | AL2: 37 | AM2: 38 | AN2: 39 | AO2: 40 | AP2: 41 | AQ2: 42 | AR2: 43 | AS2: 44 | AT2: 45 | AU2: 46 | AV2: 47 | AW2: 48
A3: Date | B3: 2022-07-06 | C3: 2022-05-26 | D3: 2022-05-25 | E3: 2022-06-02 | F3: 2022-06-02 | G3: 2022-05-26 | H3: 2022-05-25 | I3: 2022-06-09 | J3: 2022-06-09 | K3: 2022-06-09 | L3: 2022-06-07 | M3: 2022-06-13 | N3: 2022-06-14 | O3: 2022-06-13 | P3: 2022-06-17 | Q3: 2022-06-17 | R3: 2022-06-19 | S3: 2022-06-19 | T3: 2022-06-08 | U3: 2022-06-17 | V3: 2022-06-06 | W3: 2022-06-14 | X3: 2022-06-06 | Y3: 2022-06-06 | Z3: 2022-06-07 | AA3: 2022-06-13 | AB3: 2022-06-16 | AC3: 2022-06-06 | AD3: 2022-06-14 | AE3: 2022-06-14 | AF3: 2022-06-06 | AG3: 2022-06-06 | AH3: 2022-06-06 | AI3: 2022-06-07 | AJ3: 2022-06-07 | AK3: 2022-06-06 | AL3: 2022-06-06 | AM3: 2022-06-07 | AN3: 2022-05-26 | AO3: 2022-05-26 | AP3: 2022-05-26 | AQ3: 2022-06-09 | AR3: 2022-06-09 | AS3: 2022-04-16 | AT3: 2022-05-26 | AU3: 2022-06-09 | AV3: 2022-06-14 | AW3: 2022-06-15
A4: Facility | B4: OT | C4: RD | D4: RD | E4: NY | F4: NY | G4: RD | H4: NY | I4: KA | J4: KA | K4: KA | L4: RD | M4: KS | N4: RD | O4: OT | P4: PF | Q4: PF | R4: KO | S4: KO | T4: KO | U4: KO | V4: TA | W4: RD | X4: TA | Y4: OT | Z4: RD | AA4: OT | AB4: RD | AC4: RD | AD4: RD | AE4: RD | AF4: RD | AG4: RD | AH4: RD | AI4: RD | AJ4: RD | AK4: RD | AL4: RD | AM4: RD | AN4: RD | AO4: RD | AP4: RD | AQ4: KA | AR4: KS | AS4: RD | AT4: RD | AU4: KA | AV4: RD | AW4: TA
A5: Visit | B5: Tracing and notifiation | C5: Tracing and notifiation | D5: Tracing and notification | E5: Tracing and notification | F5: Tracing and Notification | G5: Tracing and Notification | H5: Tracing and notification | I5: Tracing and notification | J5: Tracing and notification | K5: Tracing and notification | L5: Tracing and notification | M5: Tracing and notification | N5: Tracing and notification | O5: Tracing and notification | P5: Tracing and notification | Q5: Tracing and notification | R5: Tracing and notification | S5: Tracing and notification | T5: Tracing and notification | U5: Tracing and notification | V5: Tracing and notification | W5: Tracing and notification | X5: Tracing and notification | Y5: Tracing and notification | Z5: Tracing and notification | AA5: Tracing and notification | AB5: Tracing and notification | AC5: Tracing and notification | AD5: Tracing and notification | AE5: Tracing and notification | AF5: Tracing and notification | AG5: Tracing and notification | AH5: Tracing and notification | AI5: Tracing and notification | AJ5: Tracing and notification | AK5: Tracing and notification | AL5: Tracing and notification | AM5: Tracing and notification | AN5: Tracing and notification | AO5: Tracing and notification | AP5: Tracing and notification | AQ5: Tracing and notification | AR5: Tracing and notification | AS5: Tracing and notification | AT5: Tracing and notification | AU5: Tracing and notification | AV5: Tracing and notification | AW5: Tracing and notification
A6: Participant Type | B6: All Partners | C6: All Partners | D6: All partners | E6: All partners | F6: All partners | G6: All partners | H6: All partners | I6: All partners | J6: All partners | K6: All partners | L6: All partners | M6: All partners | N6: All partners | O6: All partners | P6: All partners | Q6: All partners | R6: All partners | S6: All partners | T6: All partners | U6: All partners | V6: All partners | W6: All partners | X6: All partners | Y6: All partners | Z6: All partners | AA6: All partners | AB6: All partners | AC6: All partners | AD6: All partners | AE6: All partners | AF6: All partners | AG6: All partners | AH6: All partners | AI6: All partners | AJ6: All partners | AK6: All partners | AL6: All partners | AM6: All partners | AN6: All partners | AO6: All partners | AP6: All partners | AQ6: All partners | AR6: All partners | AS6: All partners | AT6: All partners | AU6: All partners | AV6: All partners | AW6: All partners
A7: Facility | B7: Intervention | C7: Intervention | D7: Intervention | E7: Intervention | F7: Intervention | G7: Interverntion | H7: Intervantion | I7: Intervention | J7: Intervention | K7: Intervention | L7: Intervention | M7: Intervention | N7: Intervention | O7: Intervention | P7: Intervention | Q7: Intervention | R7: Intervention | S7: Intervention | T7: Intervention | U7: Intervention | V7: Intervention | W7: Intervention | X7: Intervention | Y7: Intervention | Z7: Intervention | AA7: Intervention | AB7: Intervention | AC7: . | AD7: Intervention | AE7: Intervention | AF7: Intervention | AG7: Intervention | AH7: Intervention | AI7: Intervention | AJ7: . | AK7: Intervention | AL7: Intervention | AM7: Intervention | AN7: Intervention | AO7: Intervention | AP7: Intervention | AQ7: Intervention | AR7: Intervention | AS7: Intervention | AT7: Intervention | AU7: Intervention | AV7: Intervention | AW7: Intervention
A8: Testing | B8: Facility Based | C8: Facility Based | D8: HIVST | E8: Facility Based | F8: Facility Based | G8: Facility Based | H8: Facility Based | I8: Facility Based | J8: Facility Based | K8: Facility Based | L8: Facility Based | M8: HIVST | N8: Facility Based | O8: Facility Based | P8: . | Q8: . | R8: HIVST | S8: HIVST | T8: HIVST | U8: HIVST | V8: HIVST | W8: Facility Based | X8: HIVST | Y8: Facility Based | Z8: Facility Based | AA8: . | AB8: Facility Based | AC8: . | AD8: Facility Based | AE8: Facility Based | AF8: . | AG8: Facility Based | AH8: Facility Based | AI8: . | AJ8: . | AK8: . | AL8: HIVST | AM8: HIVST | AN8: Facility Based | AO8: Facility Based | AP8: Facility Based | AQ8: Facility Based | AR8: Facility Based | AS8: Facility Based | AT8: Facility Based | AU8: Facility Based | AV8: Facility Based | AW8: HIVST
A9: Obtaning participant contacts from records
A10: Time in/Start | B10: 10:00:00 | C10: 07:00:00 | D10: 10:50:00 | E10: 11:00:00 | F10: 09:10:00 | G10: 08:55:00 | H10: 09:00:00 | I10: 13:00:00 | J10: 14:35:00 | K10: 13:50:00 | L10: 09:00:00 | M10: 08:30:00 | N10: 13:07:00 | O10: 14:10:00 | P10: 08:00:00 | Q10: 08:00:00 | R10: 08:30:00 | S10: 14:20:00 | T10: 11:00:00 | U10: 09:17:00 | V10: 10:00:00 | W10: 13:50:00 | X10: 09:00:00 | Y10: 08:00:00 | Z10: 11:10:00 | AA10: 13:00:00 | AB10: 10:52:00 | AC10: 10:00:00 | AD10: 09:30:00 | AE10: 09:30:00 | AF10: 12:00:00 | AG10: 11:27:00 | AH10: 18:00:00 | AI10: 09:30:00 | AJ10: 15:00:00 | AK10: 09:15:00 | AL10: 09:10:00 | AM10: 08:50:00 | AN10: 12:40:00 | AO10: 13:30:00 | AP10: 13:00:00 | AQ10: 10:50:00 | AR10: 11:50:00 | AS10: 12:12:00 | AT10: 14:30:00 | AU10: 10:00:00 | AV10: 14:50:00 | AW10: 08:50:00
A11: Time out/End | B11: 10:05:00 | C11: 07:05:00 | D11: 10:55:00 | E11: 11:10:00 | F11: 09:20:00 | G11: 09:00:00 | H11: 09:02:00 | I11: 13:05:00 | J11: 14:40:00 | K11: 13:55:00 | L11: 09:10:00 | M11: 09:00:00 | N11: 13:11:00 | O11: 14:15:00 | P11: 08:35:00 | Q11: 08:30:00 | R11: 08:35:00 | S11: 14:20:00 | T11: 11:03:00 | U11: 09:20:00 | V11: 10:02:00 | W11: 13:59:00 | X11: 09:03:00 | Y11: 08:10:00 | Z11: 11:15:00 | AA11: 13:08:00 | AB11: 11:00:00 | AC11: 10:09:00 | AD11: 09:40:00 | AE11: 10:55:00 | AF11: 12:12:00 | AG11: 11:30:00 | AH11: 18:12:00 | AI11: 09:36:00 | AJ11: 15:07:00 | AK11: 09:20:00 | AL11: 09:18:00 | AM11: 08:56:00 | AN11: 12:43:00 | AO11: 13:36:00 | AP11: 13:05:00 | AQ11: 11:00:00 | AR11: 12:00:00 | AS11: 12:24:00 | AT11: 14:40:00 | AU11: 10:08:00 | AV11: 14:55:00 | AW11: 08:55:00
A12: Phone Call 1
A13: Time in/Start | B13: 10:10 | C13: 7.05 | D13: 10:56 | E13: 11:10:00 | F13: 09:20 | G13: 09:00 | H13: 09:05 | I13: 13:06:00 | J13: 14:40:00 | K13: 13:55:00 | L13: 09:12 | N13: 13:11:00 | O13: 14:15:00 | P13: 08:30 | Q13: 08:30 | R13: 08:37 | S13: 14:20:00 | T13: 11:05:00 | U13: 09:22 | V13: 10:02:00 | W13: 14:00:00 | X13: 09:03 | Y13: 08:12 | Z13: 11:15:00 | AA13: 13:10:00 | AB13: 11:05:00 | AC13: 10:13 | AD13: 09:47 | AF13: 12:15:00 | AG13: 11:35:00 | AH13: 08:15 | AI13: 09:45 | AJ13: 15:10:00 | AK13: 09:26 | AL13: 09:20:00 | AM13: 09:10 | AN13: 12:45:00 | AO13: 13:36:00 | AP13: 13:05:00 | AQ13: 11:02 | AR13: 12:00 | AS13: 12:30 | AT13: 14:40:00 | AU13: 10:10:00 | AV13: 02:55 | AW13: 08:55:00
A14: Time out/End | B14: 10:35 | C14: 7.1 | D14: 11:20:00 | E14: 11:20:00 | F14: 09:45 | G14: 09:10 | H14: 09:15 | I14: 13:30:00 | J14: 14:55:00 | K14: 14:20:00 | L14: 09:30 | N14: 13:20:00 | O14: 14:17:00 | P14: 08:54 | Q14: 09:30 | R14: 08:38 | S14: 14:33:00 | T14: 11:19:00 | U14: 09:39 | V14: 10:05:00 | W14: 14:10:00 | X14: 09:03:00 | Y14: 08:30 | Z14: 11:27:00 | AA14: 13:35:00 | AB14: 11:29:00 | AC14: 10:30 | AD14: 09:58 | AF14: 13:05:00 | AG14: 11:55:00 | AH14: 08:50 | AI14: 10:16:00 | AJ14: 15:20:00 | AK14: 09:58 | AL14: 09:28:00 | AM14: 09:15 | AN14: 12:55:00 | AO14: 13:42:00 | AP14: 13:20:00 | AQ14: 11:19 | AR14: 12:22 | AS14: 12:49 | AT14: 14:50:00 | AU14: 10:20:00 | AV14: 03:05 | AW14: 09:30:00
A15: Phone Call 2
A16: Time in/Start | M16: 09:15 | O16: 14:20:00 | R16: 10:00:00 | AF16: 14:20:00
A17: Time out/End | M17: 09:50 | O17: 14:25:00 | R17: 10:22:00 | AF17: 15:15:00
A18: Phone Call 3
A19: Time in/Start | M19: 09:55
A20: Time out/End | M20: 10:25:00
B21: =(B11-B10)+(B14-B13)+(B17-B16)+(B20-B19) -> 00:30:00 | C21: 01:17:00 | D21: 00:29:00 | E21: 00:20:00 | F21: 00:35:00 | G21: 00:15:00 | H21: 00:12:00 | I21: 00:29:00 | J21: 00:20:00 | K21: 00:30:00 | L21: 00:28:00 | M21: 01:35:00 | N21: 00:13:00 | O21: 00:12:00 | P21: 00:59:00 | Q21: 01:30:00 | R21: 00:28:00 | S21: 00:13:00 | T21: 00:17:00 | U21: 00:20:00 | V21: 00:05:00 | W21: 00:19:00 | X21: 00:03:00 | Y21: 00:28:00 | Z21: 00:17:00 | AA21: 00:33:00 | AB21: 00:32:00 | AC21: 00:26:00 | AD21: 00:21:00 | AE21: 01:25:00 | AF21: 01:57:00 | AG21: 00:23:00 | AH21: 00:47:00 | AI21: 00:37:00 | AJ21: 00:17:00 | AK21: 00:37:00 | AL21: 00:16:00 | AM21: 00:11:00 | AN21: 00:13:00 | AO21: 00:12:00 | AP21: 00:20:00 | AQ21: 00:27:00 | AR21: 00:32:00 | AS21: 00:31:00 | AT21: 00:20:00 | AU21: 00:18:00 | AV21: 00:15:00 | AW21: 00:40:00
A22: Phone Call Time in Hours | B22: 0.5 | C22: 1.283333333 | D22: 0.4833333333 | E22: 0.3333333333 | F22: 0.5833333333 | G22: 0.25 | H22: 0.2 | I22: 0.4833333333 | J22: 0.3333333333 | K22: 0.5 | L22: 0.4666666667 | M22: 1.583333333 | N22: 0.2166666667 | O22: 0.2 | P22: 0.9833333333 | Q22: 1.5 | R22: 0.4666666667 | S22: 0.2166666667 | T22: 0.2833333333 | U22: 0.3333333333 | V22: 0.08333333333 | W22: 0.3166666667 | X22: 0.05 | Y22: 0.4666666667 | Z22: 0.2833333333 | AA22: 0.55 | AB22: 0.5333333333 | AC22: 0.4333333333 | AD22: 0.35 | AE22: 1.416666667 | AF22: 1.95 | AG22: 0.3833333333 | AH22: 0.7833333333 | AI22: 0.6166666667 | AJ22: 0.2833333333 | AK22: 0.6166666667 | AL22: 0.2666666667 | AM22: 0.1833333333 | AN22: 0.2166666667 | AO22: 0.2 | AP22: 0.3333333333 | AQ22: 0.45 | AR22: 0.5333333333 | AS22: 0.5166666667 | AT22: 0.3333333333 | AU22: 0.3 | AV22: 0.25 | AW22: 0.6666666667
A23: Physical Visit 1
A24: Time in/Start | M24: 10:43 | R24: 10:40:00 | S24: 15:02:00 | T24: 11:30:00 | U24: 11:03:00 | V24: 10:05:00 | X24: 00:00:00 | AF24: 02:20 | AI24: 10:30:00 | AJ24: 15:48:00 | AL24: 09:36:00 | AM24: 09:25
A25: Time out/End | M25: 12:40:00 | R25: 11:44:00 | S25: 16:03:00 | T25: 12:20:00 | U25: 12:05:00 | V25: 10:55:00 | X25: 00:00:00 | AF25: 03:15 | AI25: 11:29:00 | AJ25: 15:52:00 | AL25: 10:58:00 | AM25: 09:59
B26: =(B25-B24) -> 00:00:00 | C26: =(C25-C24) -> 00:00:00 | D26: 00:00:00 | E26: 00:00:00 | F26: 00:00:00 | G26: 00:00:00 | H26: 00:00:00 | I26: 00:00:00 | J26: 00:00:00 | K26: 00:00:00 | L26: 00:00:00 | M26: =(M25-M24) -> 01:57:00 | N26: =(N25-N24) -> 00:00:00 | O26: =(O25-O24) -> 00:00:00 | P26: =(P25-P24) -> 00:00:00 | Q26: =(Q25-Q24) -> 00:00:00 | R26: =(R25-R24) -> 01:04:00 | S26: =(S25-S24) -> 01:01:00 | T26: =(T25-T24) -> 00:50:00 | U26: =(U25-U24) -> 01:02:00 | V26: =(V25-V24) -> 00:50:00 | W26: =(W25-W24) -> 00:00:00 | X26: =(X25-X24) -> 00:00:00 | Y26: =(Y25-Y24) -> 00:00:00 | Z26: =(Z25-Z24) -> 00:00:00 | AA26: =(AA25-AA24) -> 00:00:00 | AB26: =(AB25-AB24) -> 00:00:00 | AC26: =(AC25-AC24) -> 00:00:00 | AD26: =(AD25-AD24) -> 00:00:00 | AE26: =(AE25-AE24) -> 00:00:00 | AF26: =(AF25-AF24) -> 00:55:00 | AG26: =(AG25-AG24) -> 00:00:00 | AH26: =(AH25-AH24) -> 00:00:00 | AI26: =(AI25-AI24) -> 00:59:00 | AJ26: =(AJ25-AJ24) -> 00:04:00 | AK26: =(AK25-AK24) -> 00:00:00 | AL26: =(AL25-AL24) -> 01:22:00 | AM26: =(AM25-AM24) -> 00:34:00 | AN26: =(AN25-AN24) -> 00:00:00 | AO26: =(AO25-AO24) -> 00:00:00 | AP26: =(AP25-AP24) -> 00:00:00 | AQ26: =(AQ25-AQ24) -> 00:00:00 | AR26: =(AR25-AR24) -> 00:00:00 | AS26: =(AS25-AS24) -> 00:00:00 | AT26: =(AT25-AT24) -> 00:00:00 | AU26: =(AU25-AU24) -> 00:00:00 | AV26: =(AV25-AV24) -> 00:00:00 | AW26: =(AW25-AW24) -> 00:00:00
A27: SMS code + QR code egenrated and shared
A28: Time in/Start | M28: 12:45:00 | R28: 11:45:00 | S28: 16:04:00 | U28: 12:05:00
A29: Time out/End | M29: 12:50:00 | R29: 11:46:00 | S29: 16:05:00 | U29: 12:06:00
B30: =(B29-B28) -> 00:00:00 | C30: =(C29-C28) -> 00:00:00 | D30: 00:00:00 | E30: 00:00:00 | F30: 00:00:00 | G30: 00:00:00 | H30: 00:00:00 | I30: 00:00:00 | J30: 00:00:00 | K30: 00:00:00 | L30: 00:00:00 | M30: 00:05:00 | N30: 00:00:00 | O30: 00:00:00 | P30: 00:00:00 | Q30: 00:00:00 | R30: 00:01:00 | S30: 00:01:00 | T30: 00:00:00 | U30: 00:01:00 | V30: 00:00:00 | W30: 00:00:00 | X30: 00:00:00 | Y30: 00:00:00 | Z30: 00:00:00 | AA30: 00:00:00 | AB30: 00:00:00 | AC30: 00:00:00 | AD30: 00:00:00 | AE30: 00:00:00 | AF30: 00:00:00 | AG30: 00:00:00 | AH30: 00:00:00 | AI30: 00:00:00 | AJ30: 00:00:00 | AK30: 00:00:00 | AL30: 00:00:00 | AM30: 00:00:00 | AN30: 00:00:00 | AO30: 00:00:00 | AP30: 00:00:00 | AQ30: 00:00:00 | AR30: 00:00:00 | AS30: 00:00:00 | AT30: 00:00:00 | AU30: 00:00:00 | AV30: 00:00:00 | AW30: 00:00:00
A32: TOTAL | B32: =B30+B26+B21 -> 00:30:00 | C32: =C30+C26+C21 -> 01:17:00 | D32: =D30+D26+D21 -> 00:29:00 | E32: =E30+E26+E21 -> 00:20:00 | F32: =F30+F26+F21 -> 00:35:00 | G32: =G30+G26+G21 -> 00:15:00 | H32: =H30+H26+H21 -> 00:12:00 | I32: =I30+I26+I21 -> 00:29:00 | J32: =J30+J26+J21 -> 00:20:00 | K32: =K30+K26+K21 -> 00:30:00 | L32: =L30+L26+L21 -> 00:28:00 | M32: =M30+M26+M21 -> 03:37:00 | N32: =N30+N26+N21 -> 00:13:00 | O32: =O30+O26+O21 -> 00:12:00 | P32: =P30+P26+P21 -> 00:59:00 | Q32: =Q30+Q26+Q21 -> 01:30:00 | R32: =R30+R26+R21 -> 01:33:00 | S32: =S30+S26+S21 -> 01:15:00 | T32: =T30+T26+T21 -> 01:07:00 | U32: =U30+U26+U21 -> 01:23:00 | V32: =V30+V26+V21 -> 00:55:00 | W32: =W30+W26+W21 -> 00:19:00 | X32: =X30+X26+X21 -> 00:03:00 | Y32: =Y30+Y26+Y21 -> 00:28:00 | Z32: =Z30+Z26+Z21 -> 00:17:00 | AA32: =AA30+AA26+AA21 -> 00:33:00 | AB32: =AB30+AB26+AB21 -> 00:32:00 | AC32: =AC30+AC26+AC21 -> 00:26:00 | AD32: =AD30+AD26+AD21 -> 00:21:00 | AE32: =AE30+AE26+AE21 -> 01:25:00 | AF32: =AF30+AF26+AF21 -> 02:52:00 | AG32: =AG30+AG26+AG21 -> 00:23:00 | AH32: =AH30+AH26+AH21 -> 00:47:00 | AI32: =AI30+AI26+AI21 -> 01:36:00 | AJ32: =AJ30+AJ26+AJ21 -> 00:21:00 | AK32: =AK30+AK26+AK21 -> 00:37:00 | AL32: =AL30+AL26+AL21 -> 01:38:00 | AM32: =AM30+AM26+AM21 -> 00:45:00 | AN32: =AN30+AN26+AN21 -> 00:13:00 | AO32: =AO30+AO26+AO21 -> 00:12:00 | AP32: =AP30+AP26+AP21 -> 00:20:00 | AQ32: =AQ30+AQ26+AQ21 -> 00:27:00 | AR32: =AR30+AR26+AR21 -> 00:32:00 | AS32: =AS30+AS26+AS21 -> 00:31:00 | AT32: =AT30+AT26+AT21 -> 00:20:00 | AU32: =AU30+AU26+AU21 -> 00:18:00 | AV32: =AV30+AV26+AV21 -> 00:15:00 | AW32: =AW30+AW26+AW21 -> 00:40:00
A34: TOTAL (Hours) | B34: =B32*(1440/60) -> 0.5 | C34: 1.283333333 | D34: 0.4833333333 | E34: 0.3333333333 | F34: 0.5833333333 | G34: 0.25 | H34: 0.2 | I34: 0.4833333333 | J34: 0.3333333333 | K34: 0.5 | L34: 0.4666666667 | M34: 3.616666667 | N34: 0.2166666667 | O34: 0.2 | P34: 0.9833333333 | Q34: 1.5 | R34: 1.55 | S34: 1.25 | T34: 1.116666667 | U34: 1.383333333 | V34: 0.9166666667 | W34: 0.3166666667 | X34: 0.05 | Y34: 0.4666666667 | Z34: 0.2833333333 | AA34: 0.55 | AB34: 0.5333333333 | AC34: 0.4333333333 | AD34: 0.35 | AE34: 1.416666667 | AF34: 2.866666667 | AG34: 0.3833333333 | AH34: 0.7833333333 | AI34: 1.6 | AJ34: 0.35 | AK34: 0.6166666667 | AL34: 1.633333333 | AM34: 0.75 | AN34: 0.2166666667 | AO34: 0.2 | AP34: 0.3333333333 | AQ34: 0.45 | AR34: 0.5333333333 | AS34: 0.5166666667 | AT34: 0.3333333333 | AU34: 0.3 | AV34: 0.25 | AW34: 0.6666666667

Sheet Raw Time Motion - PDT
A1: TIME AND MOTION SURVEY (PROVIDER DELIVERED TESTING)
A2: Record Number | B2: 1 | C2: 2 | D2: 3 | E2: 4 | F2: 5 | G2: 6 | H2: 7 | I2: 8 | J2: 9 | K2: 10 | L2: 11 | M2: 12 | N2: 13
A3: Date | B3: 2022-05-26 | C3: 2022-05-26 | D3: 2022-06-10 | E3: 2022-05-23 | F3: 2022-06-13 | G3: 06-JUN-2022 | H3: 2022-06-06 | I3: 2022-06-16 | J3: 2022-06-14 | K3: 2022-06-06 | L3: 2022-06-16 | M3: 2022-06-16 | N3: 2022-06-16
A4: Clinic | B4: RD | C4: RD | D4: TA | E4: KS | F4: KS | G4: KS | H4: KS | I4: RD | J4: TA | K4: TA | L4: RD | M4: RD | N4: TA
A5: Visit | B5: HIV TESTING FOR PARTNER | C5: HIV TESTING FOR PARTNER | D5: HIV TESTING FOR PARTNER | E5: HIV TESTING FOR PARTNER | F5: HIV TESTING FOR PARTNER | G5: HIV TESTING FOR PARTNER | H5: HIV TESTING FOR PARTNER | I5: HIV TESTING FOR PARTNER | J5: HIV TESTING FOR PARTNER | K5: HIV TESTING FOR PARTNER | L5: HIV TESTING FOR PARTNER | M5: HIV TESTING FOR PARTNER | N5: HIV TESTING FOR PARTNER
A6: Participant Type | B6: Partner at Control Site or Intervention Site Partner For Confirmation Testing | C6: Partner at Control Site or Intervention Site Partner For Confirmation Testing | D6: Partner at Control Site or Intervention Site Partner For Confirmation Testing | E6: Partner at Control Site or Intervention Site Partner For Confirmation Testing | F6: Partner at Control Site or Intervention Site Partner For Confirmation Testing | G6: Partner at Control Site or Intervention Site Partner For Confirmation Testing | H6: Partner at Control Site or Intervention Site Partner For Confirmation Testing | I6: Partner at Control Site or Intervention Site Partner For Confirmation Testing | J6: Partner at Control Site or Intervention Site Partner For Confirmation Testing | K6: Partner at Control Site or Intervention Site Partner For Confirmation Testing | L6: Partner at Control Site or Intervention Site Partner For Confirmation Testing | M6: Partner at Control Site or Intervention Site Partner For Confirmation Testing | N6: Partner at Control Site or Intervention Site Partner For Confirmation Testing
A7: Participant ID
A8: Facility | B8: Intervention | C8: Intervention | D8: Intervention | E8: Intervention | F8: Intervention | G8: Intervention | H8: Intervention | I8: Intervention | J8: Intervention | K8: Intervention | L8: Intervention | M8: Intervention | N8: Intervention
A9: Testing | B9: Facility Based | C9: Facility Based | D9: HIVST | E9: Facility Based | F9: Facility Based | G9: Facility Based | H9: Facility Based | I9: Facility Based | J9: HIVST | K9: HIVST | L9: Facility Based | M9: Facility Based | N9: HIVST
A10: Patient Enters Clinic
A11: Time in/Start | B11: 08:30 | C11: 11:00:00 | D11: 11:00 | E11: 09:00 | F11: 08:30 | G11: 09:10 | H11: 12:35 | I11: 12:00 | J11: 14:00:00 | K11: 11:00 | L11: 09:10 | M11: 14:40:00 | N11: 09:35
A12: Time out/End
A13: Identity Confirmation
A14: Time in/Start | B14: 08:35 | C14: 11:00:00 | D14: 11:03:00 | E14: 09:05 | F14: 08:35 | G14: 09:15 | H14: 12:40 | I14: 12:05 | J14: 14:01:00 | K14: 11:03 | L14: 09:15 | M14: 14:42:00 | N14: 09:35
A15: Time out/End | B15: 08:40 | C15: 11:05:00 | D15: 11:03:00 | E15: 09:35 | F15: 09:05 | G15: 09:45 | H15: 13:10:00 | I15: 12:10 | J15: 14:03:00 | K15: 11:03:00 | L15: 09:20 | M15: 14:43 | N15: 09:37:00
B16: =B15-B14 -> 00:05:00 | C16: =C15-C14 -> 00:05:00 | D16: =D15-D14 -> 00:00:00 | E16: 00:30:00 | F16: 00:30:00 | G16: 00:30:00 | H16: 00:30:00 | I16: 00:05:00 | J16: 00:02:00 | K16: 00:00:00 | L16: 00:05:00 | M16: 00:01:00 | N16: 00:02:00
A17: Pre-Test couselling + partner elicitation with contacts
A18: Time in/Start | B18: 08:40 | C18: 11:05:00 | D18: 11:03 | E18: 09:35 | F18: 09:05 | G18: 09:45 | H18: 13:15:00 | I18: 12:12 | J18: 14:03:00 | K18: 11:03 | L18: 09:22 | M18: 14:42:00 | N18: 09:37
A19: Time out/End | B19: 08:50 | C19: 11:20:00 | D19: 11:08:00 | E19: 09:55 | F19: 09:35:00 | G19: 10:15 | H19: 13:45:00 | I19: 12:30 | J19: 14:05:00 | K19: 11:08:00 | L19: 10:00 | M19: 14:52:00 | N19: 09:39:00 | AV19: =AVERAGE(AV5:AV17) -> 
B20: =B19-B18 -> 00:10:00 | C20: =C19-C18 -> 00:15:00 | D20: =D19-D18 -> 00:05:00 | E20: 00:20:00 | F20: 00:30:00 | G20: 00:30:00 | H20: 00:30:00 | I20: 00:18:00 | J20: 00:02:00 | K20: 00:05:00 | L20: 00:38:00 | M20: 00:10:00 | N20: 00:02:00
A21: Consenting
A22: Time in/Start | B22: 08:50 | C22: 11:20:00 | D22: 11:08 | E22: 10:00 | F22: 09:40 | G22: 10:15 | H22: 13:45:00 | I22: 12:32 | J22: 14:05:00 | K22: 11:08 | L22: 10:00 | M22: 14:42:00 | N22: 09:39
A23: Time out/End | B23: 09:00 | C23: 11:25:00 | D23: 11:24:00 | E23: 10:05 | F23: 09:45 | G23: 10:20 | H23: 13:50:00 | I23: 12:40 | J23: 14:20:00 | K23: 11:23:00 | L23: 10:10 | M23: 14:45:00 | N23: 09:50:00
B24: =B23-B22 -> 00:10:00 | C24: =C23-C22 -> 00:05:00 | D24: =D23-D22 -> 00:16:00 | E24: 00:05:00 | F24: 00:05:00 | G24: 00:05:00 | H24: 00:05:00 | I24: 00:08:00 | J24: 00:15:00 | K24: 00:15:00 | L24: 00:10:00 | M24: 00:03:00 | N24: 00:11:00
A25: HIV Testing as per national guidelines
A26: Time in/Start | B26: 09:00 | C26: 11:25:00 | D26: 11:24 | E26: 10:06:00 | F26: 09:50 | G26: 10:20 | H26: 13:55:00 | I26: 12:40 | J26: 14:20:00 | K26: 11:23 | L26: 10:10 | M26: 14:45:00 | N26: 09:50
A27: Time out/End | B27: 09:45 | C27: 12:00:00 | D27: 11:30:00 | E27: 10:26:00 | F27: 10:10:00 | G27: 10:50 | H27: 14:15:00 | I27: 13:10:00 | J27: 14:22:00 | K27: 11:34:00 | L27: 10:30 | M27: 15:15:00 | N27: 09:55:00
B28: =B27-B26 -> 00:45:00 | C28: =C27-C26 -> 00:35:00 | D28: =D27-D26 -> 00:06:00 | E28: 00:20:00 | F28: 00:20:00 | G28: 00:30:00 | H28: 00:20:00 | I28: 00:30:00 | J28: 00:02:00 | K28: 00:11:00 | L28: 00:20:00 | M28: 00:30:00 | N28: 00:05:00
A29: Post-test counselling | CA29: =AVERAGE(CA15:CA27) -> 
A30: Time in/Start | B30: 09:45 | C30: 12:00:00 | D30: 11:30 | E30: 10:30:00 | F30: 10:15 | G30: 10:50 | H30: 14:20:00 | I30: 13:12:00 | J30: 14:22:00 | K30: 11:34 | L30: 10:30 | M30: 15:15:00 | N30: 09:55
A31: Time out/End | B31: 10:00 | C31: 12:05:00 | D31: 11:33:00 | E31: 10:50:00 | F31: 10:35:00 | G31: 11:10 | H31: 14:40:00 | I31: 13:15:00 | J31: 14:23:00 | K31: 11:35:00 | L31: 10:40 | M31: 15:25:00 | N31: 10:00:00
B32: =B31-B30 -> 00:15:00 | C32: =C31-C30 -> 00:05:00 | D32: =D31-D30 -> 00:03:00 | E32: 00:20:00 | F32: 00:20:00 | G32: 00:20:00 | H32: 00:20:00 | I32: =I31-I30 -> 00:03:00 | J32: 00:01:00 | K32: 00:01:00 | L32: 00:10:00 | M32: 00:10:00 | N32: 00:05:00
A33: Completing index contact form and partner contact form
A34: Time in/Start | B34: 10:00 | C34: 12:05:00 | D34: 11:33 | E34: 10:55:00 | F34: 10:40:00 | G34: 11:15 | H34: 14:45:00 | I34: 13:16:00 | J34: 14:23:00 | K34: 11:35 | L34: 10:42 | M34: 15:26:00 | N34: 10:00
A35: Time out/End | B35: 10:10 | C35: 12:20:00 | D35: 11:34:00 | E35: 11:15:00 | F35: 11:00:00 | G35: 11:35 | H35: 15:05:00 | I35: 13:25:00 | J35: 14:33:00 | K35: 11:40:00 | L35: 10:50 | M35: 15:35:00 | N35: 10:14:00
B36: =B35-B34 -> 00:10:00 | C36: =C35-C34 -> 00:15:00 | D36: =D35-D34 -> 00:01:00 | E36: 00:20:00 | F36: 00:20:00 | G36: 00:20:00 | H36: 00:20:00 | I36: 00:09:00 | J36: 00:10:00 | K36: 00:05:00 | L36: 00:08:00 | M36: 00:09:00 | N36: 00:14:00
A37: Documentation: HTS register, referrl and linkage form, index locator form
A38: Time in/Start | B38: 10:10 | C38: 12:20:00 | D38: 11:34:00 | E38: 11:20:00 | F38: 11:05:00 | G38: 11:40 | H38: 15:10:00 | I38: 13:26:00 | J38: 14:33:00 | K38: 11:40 | L38: 10:51 | M38: 15:35:00 | N38: 10:14
A39: Time out/End | B39: 10:20 | C39: 12:30:00 | D39: 11:34:00 | E39: 11:40 | F39: 11:25:00 | G39: 12:00 | H39: 15:20:00 | I39: 13:30:00 | J39: 14:33:00 | K39: 11:40:00 | L39: 10:55 | M39: 15:50:00 | N39: 10:14:00
B40: =B39-B38 -> 00:10:00 | C40: =C39-C38 -> 00:10:00 | D40: =D39-D38 -> 00:00:00 | E40: 00:20:00 | F40: 00:20:00 | G40: 00:20:00 | H40: 00:10:00 | I40: 00:04:00 | J40: 00:00:00 | K40: 00:00:00 | L40: 00:04:00 | M40: 00:15:00 | N40: 00:00:00 | DF40: =AVERAGE(DF26:DF38) -> 
A41: Seen off
A42: Time in/Start
A43: Time out/End | B43: 10:30:00 | C43: 12:35:00 | D43: 11:34:00 | E43: 11:45:00 | F43: 11:30:00 | G43: 12:05 | H43: 15:25:00 | I43: 13:30:00 | J43: 14:33:00 | K43: 11:40 | L43: 10:55:00 | M43: 15:50:00 | N43: 10:14:00
A45: Time Consumed | B45: =(B43-B11)-B24 -> 01:50:00 | C45: =(C43-C11)-C24 -> 01:30:00 | D45: =(D43-D11)-D24 -> 00:18:00 | E45: 02:40:00 | F45: 02:55:00 | G45: 02:50:00 | H45: 02:45:00 | I45: 01:22:00 | J45: 00:18:00 | K45: 00:25:00 | L45: 01:35:00 | M45: 01:07:00 | N45: 00:28:00
EK52: =AVERAGE(EK38:EK50) -> 
FP65: =AVERAGE(FP51:FP63) -> 
GU79: =AVERAGE(GU65:GU77) -> 
HZ94: =AVERAGE(HZ80:HZ92) -> 
JE110: =AVERAGE(JE96:JE108) -> 
KJ127: =AVERAGE(KJ113:KJ125) -> 
LO145: =AVERAGE(LO131:LO143) -> 
MT164: =AVERAGE(MT150:MT162) -> 
NY184: =AVERAGE(NY170:NY182) -> 
PD205: =AVERAGE(PD191:PD203) -> 
QI227: =AVERAGE(QI213:QI225) -> 
RN250: =AVERAGE(RN236:RN248) -> 
SS274: =AVERAGE(SS260:SS272) -> 
TX299: =AVERAGE(TX285:TX297) -> 
VC325: =AVERAGE(VC311:VC323) -> 
WH352: =AVERAGE(WH338:WH350) -> 
XM380: =AVERAGE(XM366:XM378) -> 
YR409: =AVERAGE(YR395:YR407) -> 
ZW439: =AVERAGE(ZW425:ZW437) -> 
ABB470: =AVERAGE(ABB456:ABB468) -> 
ACG502: =AVERAGE(ACG488:ACG500) -> 
ADL535: =AVERAGE(ADL521:ADL533) -> 
AEQ569: =AVERAGE(AEQ555:AEQ567) -> 
AFV604: =AVERAGE(AFV590:AFV602) -> 
AHA640: =AVERAGE(AHA626:AHA638) -> 
AIF677: =AVERAGE(AIF663:AIF675) -> 
AJK715: =AVERAGE(AJK701:AJK713) -> 
AKP754: =AVERAGE(AKP740:AKP752) -> 
ALU794: =AVERAGE(ALU780:ALU792) -> 
AMZ835: =AVERAGE(AMZ821:AMZ833) -> 
AOE877: =AVERAGE(AOE863:AOE875) -> 
APJ920: =AVERAGE(APJ906:APJ918) -> 
AQO964: =AVERAGE(AQO950:AQO962) -> 
... 5 more rows

Sheet Raw - NGO Survey
A1: ORGANIZATION SUPPORTING APS (Costs in KSh)
A3: Study: | B3: Cost analysis of aPS+HIVST vs standard APS
A4: Interviewer Name: | B4: VM
A5: Organization Name: | B5: PATH Kenya
A6: Contact Person: | B6: GN
B7: 725609125
A8: Other ContactPersons: | B8: GO
B9: Study Coordinator
A10: Role or job of interviewee? | B10: Administrator
A11: Were they working throughout 2021? | B11: Yes
A12: Adminstrative Cost Overview
A13: Total cost for Electricity in 2021 (KSh) | B13: 1456425
A14: Total cost for water in 2021 (KSh) | B14: 316137
A15: Other Monthly/Annual Costs
A16: Gas refills | B16: 26348
A17: Rent | B17: 8711358.72 | C17: Per annum over 4,287 sq feet
A18: Total building size (sq. paces) | B18: =(16*13)+(12*16)+(25*35) -> 1275
A19: Offices that support APS: | F19: Project Space
A20: Accounting Office (sq. paces) | B20: =4.5*4 -> 18 | F20: =B20 -> 18
A21: Coordinator Office (sq. paces) | B21: =4*4 -> 16 | F21: =B21 -> 16
A22: Administrator (sq. paces) | B22: =4*7 -> 28 | C22: four people sharing, only 1 on poject | F22: =B22*1/4 -> 7
A23: Data Manager Office (sq. Paces) | B23: =6*7 -> 42 | C23: 4 people sharing, only 3 on project | F23: =B23*3/4 -> 31.5
A24: Health advisor (sq. paces) | B24: 0 | C24: field based | F24: 0
A25: Driver (sq. paces) | B25: =4*3 -> 12 | C25: 6 drivers sharing, only 1 on project | F25: =B25*1/6 -> 2
A26: Other administrative overheads:
A27: Security | C27: missing details
A28: Human Resources
A29: Employees working on APS in 2021: | B29: Salary | C29: FTE
A30: Study Coordinator | B30: 2355805 | C30: 0.2
A31: Data Manager | B31: 3355423 | C31: =1*1 -> 1
A32: Health advisor | B32: 1128000 | C32: =3*1 -> 3
A33: HTS provider | B33: 264000 | C33: =12 -> 12
A34: Driver | B34: 945975 | C34: 0.2
A35: Accountant | B35: 436464 | C35: =1*0.05 -> 0.05 | D35: already apportioned
A36: Administrator | B36: 697934 | C36: 0.2
A37: PI | B37: 1226038 | C37: =1*0.025 -> 0.025 | D37: already apportioned
A38: Startup Costs
A39: Training Costs | B39: Freq | C39: Costs
A40: APS Staff training (Initial) | B40: 2 | C40: =13500+62500 -> 76000
A41: Dispenser on job training | B41: 2 | D41: Transport for 90kms+90kms each
A42: APS refresher training | B42: 1 | C42: 62500
A43: Equipment
A44: Tablets | B44: 15 | C44: 16999 | D44: one per facility (n=12) and one per HA (n=3)
A45: Computers (Laptops) | B45: 8 | C45: 250000 | D45: Market price; 2 shared by HAs, one each for driver, admin, data mgr, study cooridnator, accountant and PI)
A46: Phones | B46: 12 | C46: 3999
A47: Printer | B47: 1 | C47: 89839.29
A48: Other Investments
A49: Vehicle - Toyota Double CAB | B49: 1
A50: Cabinets | B50: 12 | C50: 16982.76 | D50: one cabinet per facility
A51: Accounting and Contract Unit
A52: Organiation overhead rate | B52: 0.2
A53: Project Annual budget | B53: USD 298,575.85
A54: Indirect Annual Costs on project | B54: USD 57,027.25
A55: Contracted | B55: Unit | C55: Amount
A56: Vehicle maintenance | C56: 151163 | D56: included in coord visits
A57: office internet | C57: 18292.28 | D57: USD Per annum
A58: Bulk printing - Cartridges | B58: 55 | C58: 70
A59: Bulk printing - Fact sheets | B59: 100 | C59: 120
A60: Supplies to support the project
A61: HIVST Kits | D61: Market Price
A62: Bar code labels | C62: 39.51 | D62: Cost in USD for batch
A63: Files | C63: 71500
A64: Drinking water | B64: 570 | D64: Each
A65: Masks | B65: 390 | D65: Each
A66: Sanitizers | B66: 500 | D66: Each
A67: Toners | B67: 20000 | D67: Each
A68: Operational Costs
A69: Supervisory visits
A70: Coordinator | B70: 4 trips weekly | C70: =843468.1+72776+13920+151163 -> 1081327.1 | D70: Per annum
A71: Health advisor | B71: Reimbursement of actual expenses
A72: HTS provider | B72: Reimbursement of actual expenses
A73: Dispensing Pharmacy
A74: HIVST Pickup contract | B74: 100 per pickup | C74: 138709 | D74: a year
A75: Airtime breakdown - monthly
A76: Health advisor | B76: 3 | C76: 1500
A77: HTS provider | B77: 12 | C77: 750
A78: Administrator | B78: 0 | C78: 0
A79: Data manager | B79: 1 | C79: 4000
A80: study coordinator | B80: 1 | C80: 4000
A81: Accountant | B81: 1 | C81: 3000
A82: Site PI | B82: 1 | C82: 6000
A83: Dispensing points | B83: 12 | C83: 350
A84: Data bundles allocation - monthly
A85: Health advisor | B85: 3 | C85: 250
A86: HTS provider | B86: 12 | C86: 250

Sheet Raw - Facility Survey
A1: Health Facility Interview (Costs in KSh)
A2: Cost Analysis of HIVST+APS vs Standard APS
B3: 1 | D3: 2 | F3: 3 | H3: 4 | J3: 5 | L3: 6 | N3: 7 | P3: 8 | R3: 9 | T3: 10 | V3: 11 | X3: 12
A4: Interviewer Name: | B4: ms | D4: MS | F4: MS | H4: EO | J4: MS | L4: MS | N4: EO | P4: MS | R4: EO | T4: MS | V4: MS | X4: MS
A5: Health Facility Name: | B5: SLC | D5: LHC | F5: AH | H5: PF | J5: SP | L5: RCH | N5: KHC | P5: KSC | R5: OHC | T5: NHC | V5: OSC | X5: THC
A7: Facility Cost Overview
A8: Annual electricity cost: | B8: 420000 | D8: 120000 | F8: 0 | G8: uses solar | H8: 996000 | J8: =50000 -> 50000 | L8: 2760000 | N8: 60000 | P8: 420000 | R8: 120000 | T8: 120000 | V8: 108000 | X8: 60000
A9: Annual water cost: | B9: 120000 | D9: 96000 | F9: 48000 | H9: 720000 | J9: 20000 | L9: 789200 | N9: 36000 | P9: 48000 | R9: 0 | T9: 0 | V9: 24000 | X9: 20000
A10: Other cost items:
A11: Fuel | B11: 576000 | D11: 84000 | H11: =25000*12 -> 300000 | L11: 1140000 | N11: 120000 | P11: 300000 | R11: 60000 | T11: 120000 | X11: 40000
A12: Gas | B12: 18000 | D12: 48000 | F12: 72000 | H12: =5000*12 -> 60000 | J12: 36000 | L12: 134500 | N12: 36000 | P12: 84000 | R12: 9000 | T12: 8400 | V12: 26000 | X12: 16000
A13: Firewood/Charcoal | B13: 240000 | H13: =18000*12 -> 216000 | R13: 6000
A14: Oxygen | H14: =10000*12 -> 120000
A15: Cleaners/Casuals | B15: 480000 | L15: 1607792 | P15: 540000 | R15: 180000 | T15: 240000
A16: Total Building size of facility:
A17: Toilets | B17: =(12*6)+(8*8) -> 136 | D17: =7*5 -> 35 | J17: =8*6 -> 48 | N17: =5*3 -> 15 | P17: =6*3 -> 18 | T17: =8*8 -> 64 | V17: =8*8 -> 64
A18: Laundry | B18: =12*10 -> 120 | L18: =11*3 -> 33
A19: Kitchen and Laundry | H19: =19*12 -> 228
A20: Garage/Engineering | B20: =11*17 -> 187 | H20: =28*8 -> 224 | P20: =8*7 -> 56
A21: Xray and Eye Clinic | B21: =(20*13)+(4*2) -> 268 | L21: =15*15 -> 225
A22: Radiology | H22: =10*4 -> 40
A23: Theatre+Maternity ward | B23: =(19*31)+(20*19) -> 969
A24: Administration | B24: =25*11 -> 275 | F24: =6*7 -> 42 | H24: =4*8 -> 32 | L24: =16*12 -> 192 | P24: =12*25 -> 300 | R24: =4*11 -> 44 | T24: =6*6 -> 36
A25: Pharmacy +store | D25: =8*2 -> 16 | F25: =(11*7)+(6*4) -> 101 | J25: =6*5 -> 30
A26: Kitchen and store | B26: =22*30 -> 660 | P26: =(14*13)+(8*4) -> 214
A27: CCC and data | B27: =22*11 -> 242 | F27: =6*5 -> 30 | H27: =21*10 -> 210 | L27: =53*29 -> 1537 | N27: =12*12 -> 144 | P27: =18*10 -> 180 | R27: =7*11 -> 77 | T27: =(18*10)+(6*3) -> 198 | V27: =5*6 -> 30 | X27: =5*5 -> 25
A28: CCC/MCH | D28: =13*6 -> 78 | E28: dispensing and psychological counseling | L28: =32*25 -> 800 | V28: =(40*21)+(10*11) -> 950
A29: Laboratory | B29: =16*15 -> 240 | C29: drawing of blood and lab procedures | D29: =5*6 -> 30 | E29: bleeding and lab procedures | F29: =6*5 -> 30 | H29: =10*20 -> 200 | L29: =12*20 -> 240 | P29: =11*14 -> 154 | R29: =8*11 -> 88 | T29: =9*10 -> 90 | V29: =6*5 -> 30 | X29: =5*5 -> 25
A30: PHLEBOTOMY ROOM | V30: =6*7 -> 42
A31: NHIF Billing | B31: =12*7 -> 84
A32: Maternity | B32: =19*20 -> 380 | R32: =(12*22)-(6*6) -> 228 | X32: =25*11 -> 275
A33: Opd, Clinic, Triage | B33: =42*8 -> 336 | C33: General clinical reviews | F33: =(18*12)+(7*5) -> 251 | H33: =(68*32) -> 2176 | J33: =(14*16)-(J25+J36+J47) -> 154 | L33: =(19*20)+(15*13)+(10*20)+(24*13) -> 1087 | N33: =(25*12)+(6*5) -> 330 | P33: =42*11 -> 462 | R33: =19*11 -> 209 | T33: =(13*7)+(11*8)+(13*10)+(15*10) -> 459 | V33: =(27*11)-(V27+V29+V30) -> 195 | X33: =(18*14)-(X27+X47) -> 202
A34: Triage | D34: =10*7 -> 70 | F34: =(12*7)+(7*29) -> 287 | P34: =10*6 -> 60
A35: Wards, consultations | B35: =14*8 -> 112 | J35: =19*20 -> 380 | L35: =30*53 -> 1590 | P35: =11*32 -> 352 | T35: =39*6 -> 234 | V35: =(36*40)+(16*15)+(16*10) -> 1840
A36: MCH, ANC | B36: =(13*10)-(5*5) -> 105 | F36: =36*19 -> 684 | J36: =6*4 -> 24 | L36: =43*22 -> 946 | P36: =33*16 -> 528 | R36: =9*11 -> 99
A37: Waiting bay | B37: =12*8 -> 96 | P37: =9*6 -> 54
A38: Chiefs Office | D38: =4*1 -> 4
A39: InCharge's Office | D39: =4*2 -> 8
A40: Canteen | B40: =5*5 -> 25 | P40: =12*7 -> 84
A41: Morgue | H41: =15*8 -> 120 | L41: =25*15 -> 375
A42: Public Health Offices | L42: =67*40 -> 2680
A43: Store | L43: =17*9 -> 153 | P43: =11*5 -> 55 | R43: =9*11 -> 99
A44: Program Office | L44: =19*6 -> 114 | P44: =9*8 -> 72
A45: Physiotherapy | L45: =16*12 -> 192 | P45: =26*15 -> 390
A46: Screening tent | B46: =8*8 -> 64 | D46: =(5*5)+(2*2) -> 29 | F46: =4*4 -> 16 | J46: =3*3 -> 9
A47: HTS | B47: =5*5 -> 25 | C47: counselling, elicitation, testing, enrollment | D47: =5*2 -> 10 | E47: counseling and testing | F47: =5*5 -> 25 | H47: =(10*21) -> 210 | J47: =4*4 -> 16 | L47: =5*6 -> 30 | N47: =12*12 -> 144 | P47: =(6*6)+(6*6) -> 72 | R47: =(6*6)+(6*6) -> 72 | T47: =(7*10)+(6*6) -> 106 | V47: =5*6 -> 30 | X47: 25
A48: HTS Unit
A49: Patient volumes in 2021 | B49: Determine | C49: First reponse | D49: Determine | E49: First Response | F49: Determine | G49: First Response | H49: Determine | I49: First Response | J49: Determine | K49: First Response | L49: Determine | M49: First Response | N49: Determine | O49: First Response | P49: Determine | Q49: First Response | R49: Determine | S49: First Response | T49: Determine | U49: First Response | V49: Determine | W49: First Response | X49: Determine | Y49: First Response
A50: Total number tested | B50: 1399 | D50: 849 | F50: 595 | H50: 1565 | J50: 751 | L50: 3527 | N50: 349 | P50: 611 | R50: 4023 | T50: 2798 | V50: 751 | X50: 563
A51: Number testing positive | B51: 90 | C51: 90 | D51: 52 | E51: 52 | F51: 39 | G51: 39 | H51: 98 | I51: 98 | J51: 43 | K51: 43 | L51: 203 | M51: 203 | N51: 30 | O51: 30 | P51: 63 | Q51: 63 | R51: 52 | S51: 52 | T51: 58 | U51: 58 | V51: 34 | W51: 34 | X51: 58
A52: Number testing negative | B52: 1309 | D52: 797 | F52: 556 | H52: 1467 | J52: 708 | L52: 3324 | N52: 319 | P52: 548 | R52: 3971 | T52: 2740 | V52: 717 | X52: 505
A53: Tests for training | B53: 0 | C53: 0 | D53: 0 | E53: 0 | F53: 0 | G53: 0 | H53: 72 | I53: 12 | J53: 0 | K53: 0 | L53: 0 | M53: 0 | N53: 0 | O53: 0 | P53: 84 | Q53: 28 | R53: 0 | S53: 0 | T53: 0 | U53: 0 | V53: 0 | W53: 0 | X53: 4 | Y53: 4
A54: Tests for QC | B54: 4 | C54: 4 | D54: 2 | E54: 2 | F54: 39 | G54: 39 | H54: 0 | I54: 0 | J54: 23 | K54: 14 | L54: 0 | M54: 0 | N54: 14 | O54: 4 | P54: 6 | Q54: 6 | R54: 16 | S54: 8 | T54: 0 | U54: 0 | V54: 20 | W54: 20 | X54: 15 | Y54: 15
A55: Tests that were repeats | B55: 90 | C55: 90 | D55: 52 | E55: 52 | F55: 39 | G55: 39 | H55: 98 | I55: 98 | J55: 43 | K55: 43 | L55: 203 | M55: 203 | P55: 63 | Q55: 63 | R55: 52 | S55: 52 | T55: 116 | U55: 116 | V55: 34 | W55: 34 | X55: 58 | Y55: 58
A56: Community Testing for determine | B56: 298 | C56: 0 | D56: 116 | E56: 0 | F56: 0 | G56: 0 | H56: 64 | I56: 0 | J56: 202 | K56: 0 | L56: 146 | M56: 0 | N56: 36 | O56: 0 | P56: 0 | Q56: 0 | R56: 2180 | T56: 500 | U56: 0 | V56: 3 | W56: 0 | X56: 10 | Y56: 10
A57: Other testing | B57: 0 | C57: 142 | D57: 0 | E57: 0 | F57: 0 | G57: 0 | H57: 0 | I57: 64 | J57: 0 | K57: 202 | L57: 0 | M57: 0 | N57: 0 | O57: 0 | P57: 0 | Q57: 0 | T57: 0 | U57: 40 | V57: 0 | W57: 0 | X57: 0 | Y57: 0
A58: Number of staff employed for HTS/APS
B59: Number | C59: FTE | D59: Number | E59: FTE
A60: HTS lead counsellor | B60: 1 | C60: 1 | D60: 2 | E60: 1 | F60: 2 | G60: 1.4 | H60: 4 | I60: 3.6 | J60: 1 | K60: 1 | L60: 9 | M60: 1 | N60: 2 | O60: 1 | P60: 4 | Q60: 1 | R60: 3 | S60: 1 | T60: 4 | U60: 1 | X60: 2 | Y60: 1
A61: Index screening (HTS provider) | B61: 1 | C61: 1 | L61: 3 | M61: 1 | P61: 1 | Q61: 1 | R61: 1 | S61: 1 | X61: 1 | Y61: 1
A62: OPD screening | B62: 1 | C62: 1
A63: APNS Followup | B63: 1 | C63: 1 | T63: 1 | U63: 1 | X63: 1 | Y63: 1
A64: Volunteer | D64: 1 | E64: 1 | F64: 1 | G64: 1 | J64: 1 | K64: 1 | N64: 1 | O64: 1 | P64: 2 | Q64: 1 | T64: 1 | U64: 1
A65: Clinician | D65: 1 | E65: 1 | H65: 1 | I65: 1 | L65: 4 | M65: 1 | X65: 2 | Y65: 1
A66: Mentor Mother | D66: 1 | E66: 1 | F66: 1 | G66: 1 | H66: 2 | I66: 1.6 | L66: 5 | M66: 1 | N66: 1 | O66: 1 | P66: 2 | Q66: 1 | R66: 2 | S66: 1 | T66: 1 | U66: 1
A67: Nurse | H67: 1 | I67: 1 | L67: 4 | M67: 1 | X67: 1 | Y67: 1
A68: Health records officer | D68: 1 | E68: 1 | H68: 1 | I68: 1 | J68: 1 | K68: 1
A69: DETERMINE - Testing Supplies
A70: Samples collected in HTS room | B70: 1 | D70: 1 | F70: 1 | H70: 0.95 | J70: 1 | L70: 1 | N70: 0.7 | P70: 1 | R70: 1 | T70: 1 | V70: 1 | X70: 0.8
A71: Consumables: | B71: unit per test | C71: Unit cost | D71: unit per test | E71: Unit cost
A72: Latex gloves | B72: 1 | D72: 1 | F72: 1 | H72: 1 | J72: 1 | L72: 1 | N72: 1 | P72: 1 | R72: 1 | T72: 1 | V72: 1 | X72: 1
A73: Alcohol swabs | B73: 1 | D73: 1 | F73: 1 | J73: 1 | L73: 1 | N73: 1 | P73: 1 | R73: 1 | T73: 1 | V73: 2 | X73: 1
A74: Cotton wool/Spirit | G74: shared | H74: 1 | P74: 2 | R74: 1 | T74: 1 | X74: 1
A75: Prickers | H75: 1 | L75: 1 | N75: 1 | X75: 1
A76: Capillary Tubes | N76: 1 | V76: 1
A77: Test Kits | B77: 1 | D77: 1 | F77: 1 | H77: 1 | J77: 1 | L77: 1 | P77: 1 | R77: 1 | V77: 1
A78: Bin liner & sharp box | D78: 3 | F78: 2 | H78: 2 | J78: 2 | L78: 1 | N78: 1 | P78: 1 | R78: 1 | T78: 1 | V78: 3 | X78: 1
A79: Storage location of kits/supplies | B79: Lockable drawer | D79: Lockable cabinet | F79: Lockable cabinet | H79: Lockable cabinet | J79: Rack and Cabinet | L79: Lockable cabinet | N79: Lockable Cabinet | P79: Lockable cabinets | R79: Lockable cabinet | T79: Lockable cabinet | V79: Lockable cabinets | X79: Lockable cabinet
A80: Proportion of storage location | B80: 0.1 | C80: Other supplies stored in re-test room in the lab | D80: 0.333 | F80: 0.333 | H80: 0.25 | I80: some done in phlebotomy room | J80: 0.1 | L80: 1 | N80: 0.333 | P80: 1 | R80: 0.1 | T80: 0.25 | V80: 0.25 | X80: 0.7
A81: FIRST RESPONSE - Testing Supplies
A82: Samples collected in HTS room | B82: 0.5 | C82: Other samples collected in re-test room in the lab | D82: 0.7 | E82: others done in clinic rooms | F82: 1 | H82: 0.95 | J82: 1 | L82: 1 | N82: 0.5 | P82: 1 | R82: 1 | T82: 1 | V82: 1 | X82: 0.7
A83: Consumables:
A84: Latex gloves | B84: 1 | D84: 1 | F84: 1 | H84: 1 | J84: 1 | L84: 1 | N84: 1 | P84: 1 | R84: 1 | T84: 1 | V84: 1 | X84: 1
A85: Alcohol swabs | B85: 1 | D85: 1 | F85: 1 | J85: 2 | L85: 1 | N85: 1 | P85: 1 | R85: 1 | T85: 1 | V85: 2 | X85: 1
A86: Bin liner & sharp box | D86: 3 | F86: 2 | H86: 2 | J86: 2 | L86: 1 | N86: 1 | P86: 1 | R86: 1 | T86: 1 | V86: 3 | X86: 1
A87: Test Kits | B87: 1 | D87: 1 | F87: 1 | H87: 1 | J87: 1 | L87: 1 | N87: 1 | R87: 1 | T87: 1
A88: Prickers | H88: 1 | L88: 1
A89: Capillary Tubes | F89: 1 | N89: 1 | V89: 1 | X89: 1
A90: Spirit and Wool | H90: 1 | P90: 2 | R90: 1 | T90: 1 | X90: 1
A91: Storage location of kits/supplies | B91: Lockable drawer | D91: Lockable cabinets | F91: Lockable cabinet | H91: Lockable cabinet | J91: Rack and cabinet | L91: Lockable cabinets | N91: Lockable cabinet | P91: Lockable cabinets | R91: locable cabinets | T91: Lockable cabinets | V91: Lockable cabinets | X91: Lockable cabinets
A92: Proportion of storage location | B92: 0.1 | C92: Other supplies stored in re-test room in the lab | D92: 0.7 | E92: others are stored in clinic room | F92: 0.333 | H92: 0.25 | J92: 0.1 | L92: 1 | N92: 0.7 | P92: 1 | R92: 0.1 | T92: 0.25 | V92: 0.25 | X92: 0.7
A93: CLINIC ROOM
A94: DETERMINE - Testing Supplies
A95: Samples collected in Clinic room | D95: 0.3 | N95: 0.3 | X95: 0.1
A96: Consumables:
A97: Latex gloves | D97: 1 | N97: 1 | X97: 1
A98: Alcohol swabs | D98: 1 | N98: 1 | X98: 1
A99: Spirit
A100: Test Kits | D100: 1
A101: Bin liner & sharp box | D101: 3 | N101: 1 | X101: 1
A102: Storage location of kits/supplies | D102: None | N102: Lockable Cabinet | X102: Cabinet
A103: Proportion of storage location | D103: 0.333 | N103: 0.333 | X103: 0.7
A104: FIRST RESPONSE - Testing Supplies
A105: Samples collected in HTS room | N105: 0.5 | X105: 0.1
A106: Consumables:
A107: Latex gloves | N107: 1 | X107: 1
A108: Alcohol swabs | N108: 1 | X108: 1
A109: Bin liner & sharp box | N109: 1 | X109: 1
A110: Test Kits | N110: 1
A111: Prickers
A112: Capillary Tubes | X112: 1
A113: Spirit and Wool | N113: 1
A114: Storage location of kits/supplies | N114: Lockable cabinet | X114: Cabinets
A115: Proportion of storage location | N115: 0.5 | X115: 0.7
A116: PHLEBOTOMY ROOM | F116: within the lab room
A117: DETERMINE - Testing Supplies | O117: no phlebotomy room | U117: No phlebotomy room, done in the clinical rooms | X117: Lab used as phlebotomy room
A118: Proportion of samples collected | H118: 0.05 | X118: 0.9 | Y118: General samples
A119: Consumables:
A120: Latex gloves | H120: 1 | X120: 1
A121: Alcohol Swabs | H121: 1 | X121: 1
A122: Bin liner & sharp box | H122: 3 | X122: 1
A123: Cotton wool/Spirit | H123: 1 | X123: 1
A124: Test Kits | H124: 1 | X124: 1
A125: Storage location of kits/supplies | H125: Lockable cabinets | X125: Yes
A126: Proportion of storage location | H126: 0.9 | X126: 0.3
A127: FIRST RESPONSE - Testing Supplies
A128: Proportion of samples collected | H128: 0.05 | X128: 0.9
A129: Consumables:
A130: Latex gloves | H130: 1 | X130: 1
A131: Alcohol Swabs | H131: 1 | X131: 1
A132: Bin liner & sharp box | H132: 4 | X132: 1
A133: Cotton wool/Spirit | H133: 1 | X133: 1
A134: Prickers | H134: 1
A135: Test Kits | H135: 1 | X135: 1
A136: Storage location of kits/supplies | H136: Lockable cabinets | X136: Cabinets
A137: Proportion of storage location | H137: 0.9 | X137: 0.7
